Workbook

Sheet Poz (hidden)
B3: Вредности
A4: Ознаке редова | B4: Збир од Средства из буџета | C4: Збир од Средства из буџета републике | D4: Збир од Средства из осталих извора | E4: Збир од Укупно
A5: 5 | B5: 8 | C5: 9 | D5: 10 | E5: 11
A6: Укупни збир | B6: 8 | C6: 9 | D6: 10 | E6: 11

Sheet Лист5 (hidden)
B3: Вредности
A4: Ознаке редова | B4: Збир од Средства из буџета | C4: Збир од Средства из буџета републике | D4: Збир од Средства из осталих извора | E4: Збир од Укупно
A5: 411 | B5: 204714900 | D5: 4400000 | E5: 209114900
A6: 412 | B6: 36644000 | D6: 787800 | E6: 37431800
A7: 413 | B7: 50000 | E7: 50000
A8: 414 | B8: 5983300 | D8: 880000 | E8: 6863300
A9: 415 | B9: 4671800 | D9: 430000 | E9: 5101800
A10: 416 | B10: 1582500 | D10: 150000 | E10: 1732500
A11: 421 | B11: 35168000 | D11: 8130900 | E11: 43298900
A12: 422 | B12: 2230000 | D12: 402000 | E12: 2632000
A13: 423 | B13: 42707000 | D13: 2825000 | E13: 45532000
A14: 424 | B14: 10695000 | D14: 610000 | E14: 11305000
A15: 425 | B15: 10635000 | C15: 25600000 | D15: 2160000 | E15: 38395000
A16: 426 | B16: 10050000 | D16: 7871300 | E16: 17921300
A17: 451 | B17: 25000000 | E17: 25000000
A18: 463 | B18: 91632100 | C18: 0 | D18: 0 | E18: 91632100
A19: 464 | B19: 18300000 | E19: 18300000
A20: 465 | B20: 19770200 | D20: 1090800 | E20: 20861000
A21: 472 | B21: 14300000 | C21: 5754000 | E21: 20054000
A22: 481 | B22: 27230000 | E22: 27230000
A23: 482 | B23: 817000 | D23: 107000 | E23: 924000
A24: 483 | B24: 3250000 | E24: 3250000
A25: 511 | B25: 10660000 | C25: 20000000 | E25: 30660000
A26: 512 | B26: 5994000 | D26: 3474200 | E26: 9468200
A27: 515 | B27: 1200000 | E27: 1200000
A28: 49911 | B28: 500000 | E28: 500000
A29: 49912 | B29: 8000000 | E29: 8000000
A30: 423 | B30: 2300000 | E30: 2300000
A31: 425 | B31: 18099960 | E31: 18099960
A32: 451 | B32: 7000000 | E32: 7000000
A33: 454 | B33: 33000000 | E33: 33000000
A34: 463 | B34: 2860000 | E34: 2860000
A35: 4631 | B35: 25500000 | E35: 25500000
A36: 472 | B36: 3500000 | E36: 3500000
A37: 481 | B37: 2130000 | E37: 2130000
A38: 485 | B38: 1500000 | E38: 1500000
A39: 511 | B39: 84030040 | C39: 75895200 | E39: 159925240
A40: 512 | B40: 8100000 | E40: 8100000
A41: Укупни збир | B41: 779804800 | C41: 127249200 | D41: 33319000 | E41: 940373000

Sheet Лист6 (hidden)
B3: Вредности
A4: Ознаке редова | B4: Збир од Средства из буџета | C4: Збир од Средства из буџета републике | D4: Збир од Средства из осталих извора | E4: Збир од Укупно
A5: ПРОГРАМ 1: ЛОКАЛНИ РАЗВОЈ И ПРОСТОРНО ПЛАНИРАЊЕ | E5: 0
A6: ПРОГРАМ 10: СРЕДЊЕ ОБРАЗОВАЊЕ | E6: 0
A7: ПРОГРАМ 11: СОЦИЈАЛНА И ДЕЧЈА ЗАШТИТА | E7: 0
A8: ПРОГРАМ 12: ЗДРАВСТВЕНА ЗАШТИТА | E8: 0
A9: ПРОГРАМ 13: РАЗВОЈ КУЛТУРЕ | E9: 0
A10: ПРОГРАМ 14: РАЗВОЈ СПОРТА И ОМЛАДИНЕ | E10: 0
A11: ПРОГРАМ 15: ЛОКАЛНА САМОУПРАВА | E11: 0
A12: ПРОГРАМ 16: ПОЛИТИЧКИ СИСТЕМ ЛОКАЛНЕ САМОУПРАВЕ | E12: 0
A13: ПРОГРАМ 2: КОМУНАЛНА ДЕЛАТНОСТ | E13: 0
A14: ПРОГРАМ 3: ЛОКАЛНИ ЕКОНОМСКИ РАЗВОЈ | E14: 0
A15: ПРОГРАМ 4: РАЗВОЈ ТУРИЗМА | E15: 0
A16: ПРОГРАМ 5: РАЗВОЈ ПОЉОПРИВРЕДЕ | E16: 0
A17: ПРОГРАМ 6: ЗАШТИТА ЖИВОТНЕ СРЕДИНЕ | E17: 0
A18: ПРОГРАМ 7: ПУТНА ИНФРАСТРУКТУРА | E18: 0
A19: ПРОГРАМ 8: ПРЕДШКОЛСКО ВАСПИТАЊЕ | E19: 0
A20: ПРОГРАМ 9: ОСНОВНО ОБРАЗОВАЊЕ | E20: 0
A21: Програмска активност 0101-0001: | B21: 23000000 | C21: 0 | D21: 0 | E21: 23000000
A22: Програмска активност 0101-0002: | B22: 2000000 | C22: 0 | D22: 0 | E22: 2000000
A23: Програмска активност 0401-0001: | B23: 7564000 | C23: 0 | D23: 0 | E23: 7564000
A24: Програмска активност 0401-0005: | B24: 0 | C24: 20000000 | D24: 0 | E24: 20000000
A25: Програмска активност 0602-0001: | B25: 194455900 | C25: 0 | D25: 0 | E25: 194455900
A26: Програмска активност 0602-0002: | B26: 3900000 | C26: 0 | D26: 0 | E26: 3900000
A27: Програмска активност 0602-0004: | B27: 5377200 | C27: 0 | D27: 0 | E27: 5377200
A28: Програмска активност 0602-0007: | B28: 3700000 | C28: 0 | D28: 0 | E28: 3700000
A29: Програмска активност 0602-0010: | B29: 8500000 | C29: 0 | D29: 0 | E29: 8500000
A30: Програмска активност 0602-0014: | B30: 1000000 | C30: 0 | D30: 0 | E30: 1000000
A31: Програмска активност 0901-0001: | B31: 6000000 | C31: 0 | D31: 0 | E31: 6000000
A32: Програмска активност 0901-0002: | B32: 3500000 | C32: 0 | D32: 0 | E32: 3500000
A33: Програмска активност 0901-0005: | B33: 500000 | C33: 0 | D33: 0 | E33: 500000
A34: Програмска активност 0901-0006: | B34: 1040000 | C34: 0 | D34: 0 | E34: 1040000
A35: Програмска активност 0901-0007: | B35: 0 | C35: 750000 | D35: 0 | E35: 750000
A36: Програмска активност 1101-0001: | B36: 3000000 | C36: 7495200 | D36: 0 | E36: 10495200
A37: Програмска активност 1102-0001: | B37: 20300000 | C37: 0 | D37: 0 | E37: 20300000
A38: Програмска активност 1102-0002: | B38: 1000000 | C38: 0 | D38: 0 | E38: 1000000
A39: Програмска активност 1102-0003: | B39: 9000000 | C39: 0 | D39: 0 | E39: 9000000
A40: Програмска активност 1102-0004: | B40: 1500000 | C40: 0 | D40: 0 | E40: 1500000
A41: Програмска активност 1102-0008: | B41: 25250000 | C41: 0 | D41: 0 | E41: 25250000
A42: Програмска активност 1201-0001 | B42: 21750000 | C42: 0 | D42: 860000 | E42: 22610000
A43: Програмска активност 1201-0001: | B43: 13822500 | C43: 0 | D43: 124000 | E43: 13946500
A44: Програмска активност 1201-0002: | B44: 3830000 | C44: 0 | D44: 0 | E44: 3830000
A45: Програмска активност 1201-0003: | B45: 2900000 | C45: 0 | D45: 0 | E45: 2900000
A46: Програмска активност 1201-0004: | B46: 7000000 | C46: 0 | D46: 0 | E46: 7000000
A47: Програмска активност 1301-0001: | B47: 10000000 | C47: 0 | D47: 0 | E47: 10000000
A48: Програмска активност 1501-0002: | B48: 25500000 | C48: 0 | D48: 0 | E48: 25500000
A49: Програмска активност 1501-0003: | B49: 10000000 | C49: 0 | D49: 0 | E49: 10000000
A50: Програмска активност 1502-0001: | B50: 7601800 | C50: 0 | D50: 0 | E50: 7601800
A51: Програмска активност 1502-0002: | B51: 392000 | C51: 0 | D51: 0 | E51: 392000
A52: Програмска активност 1801-0001: | B52: 18450000 | C52: 0 | D52: 0 | E52: 18450000
A53: Програмска активност 1801-0002: | B53: 300000 | C53: 0 | D53: 0 | E53: 300000
A54: Програмска активност 2001-0001: | B54: 72067200 | C54: 0 | D54: 25762000 | E54: 97829200
A55: Програмска активност 2002-0001: | B55: 69460100 | C55: 0 | D55: 0 | E55: 69460100
A56: Програмска активност 2003-0001: | B56: 32532000 | C56: 5004000 | D56: 0 | E56: 37536000
A57: Програмска активност 2101-0001: | B57: 21417400 | C57: 0 | D57: 0 | E57: 21417400
A58: Програмска активност 2101-0002: | B58: 9770500 | C58: 0 | D58: 0 | E58: 9770500
A59: Програмска активност 2101-0003: | B59: 6400000 | C59: 0 | D59: 0 | E59: 6400000
A60: Пројекат 0701-01 | B60: 0 | C60: 25600000 | D60: 0 | E60: 25600000
A61: Пројекат 0701-02 | B61: 0 | C61: 30000000 | D61: 0 | E61: 30000000
A62: Пројекат 0701-03 | B62: 0 | C62: 26400000 | D62: 0 | E62: 26400000
A63: Пројекат 0701-04 | B63: 0 | C63: 12000000 | D63: 0 | E63: 12000000
A64: Пројекат 0701-05 | B64: 2500000 | C64: 0 | D64: 0 | E64: 2500000
A65: Пројекат 0701-06 | B65: 3000000 | C65: 0 | D65: 0 | E65: 3000000
A66: Пројекат 0701-07 | B66: 3000000 | C66: 0 | D66: 0 | E66: 3000000
A67: Пројекат 0701-08 | B67: 2500000 | C67: 0 | D67: 0 | E67: 2500000
A68: Пројекат 0701-09 | B68: 2500000 | C68: 0 | D68: 0 | E68: 2500000
A69: Пројекат 0701-10 | B69: 6000000 | C69: 0 | D69: 0 | E69: 6000000
A70: Пројекат 0701-11 | B70: 2930000 | C70: 0 | D70: 0 | E70: 2930000
A71: Пројекат 0701-12 | B71: 1500000 | C71: 0 | D71: 0 | E71: 1500000
A72: Пројекат 0701-13 | B72: 2400000 | C72: 0 | D72: 0 | E72: 2400000
A73: Пројекат 0701-14: | B73: 1551000 | C73: 0 | D73: 0 | E73: 1551000
A74: Пројекат 0701-15 | B74: 7100000 | C74: 0 | D74: 0 | E74: 7100000
A75: Пројекат 0701-16 | B75: 200000 | C75: 0 | D75: 0 | E75: 200000
A76: Пројекат 0701-17 | B76: 3396960 | C76: 0 | D76: 0 | E76: 3396960
A77: Пројекат 0701-18 | B77: 1150000 | C77: 0 | D77: 0 | E77: 1150000
A78: Пројекат 0701-19 | B78: 906000 | C78: 0 | D78: 0 | E78: 906000
A79: Пројекат 0701-20 | B79: 812000 | C79: 0 | D79: 0 | E79: 812000
A80: Пројекат 0701-21 | B80: 550000 | C80: 0 | D80: 0 | E80: 550000
A81: Пројекат 0701-22 | B81: 300000 | C81: 0 | D81: 0 | E81: 300000
A82: Пројекат 0701-23 | B82: 1500000 | C82: 0 | D82: 0 | E82: 1500000
A83: Пројекат 0701-24 | B83: 2000000 | C83: 0 | D83: 0 | E83: 2000000
A84: Пројекат 0701-25 | B84: 495000 | C84: 0 | D84: 0 | E84: 495000
A85: Пројекат 0701-26 | B85: 1188713 | C85: 0 | D85: 0 | E85: 1188713
A86: Пројекат 0701-27 | B86: 1360327 | C86: 0 | D86: 0 | E86: 1360327
A87: Пројекат 0701-28 | B87: 2880000 | C87: 0 | D87: 0 | E87: 2880000
A88: Пројекат 0701-29 | B88: 1900000 | C88: 0 | D88: 0 | E88: 1900000
A89: Пројекат 0701-30 | B89: 410000 | C89: 0 | D89: 0 | E89: 410000
A90: Пројекат 0701-31 | B90: 1350000 | C90: 0 | D90: 0 | E90: 1350000
A91: Пројекат 0701-32 | B91: 1200000 | C91: 0 | D91: 0 | E91: 1200000
A92: Пројекат 0701-33 | B92: 1150000 | C92: 0 | D92: 0 | E92: 1150000
A93: Пројекат 0701-34 | B93: 3450000 | C93: 0 | D93: 0 | E93: 3450000
A94: Пројекат 0701-35 | B94: 1050000 | C94: 0 | D94: 0 | E94: 1050000
A95: Пројекат 0701-36 | B95: 800000 | C95: 0 | D95: 0 | E95: 800000
A96: Пројекат 0701-37 | B96: 1150000 | C96: 0 | D96: 0 | E96: 1150000
A97: Пројекат 0701-38 | B97: 4450000 | C97: 0 | D97: 0 | E97: 4450000
A98: Пројекат 0701-39 | B98: 500000 | C98: 0 | D98: 0 | E98: 500000
A99: Пројекат 0701-40 | B99: 1450000 | C99: 0 | D99: 0 | E99: 1450000
A100: Пројекат 0701-41 | B100: 850000 | C100: 0 | D100: 0 | E100: 850000
A101: Пројекат 0701-42 | B101: 1950000 | C101: 0 | D101: 0 | E101: 1950000
A102: Пројекат 0701-43 | B102: 2450000 | C102: 0 | D102: 0 | E102: 2450000
A103: Пројекат 0701-44 | B103: 1450000 | C103: 0 | D103: 0 | E103: 1450000
A104: Пројекат 0701-45 | B104: 1550000 | C104: 0 | D104: 0 | E104: 1550000
A105: Пројекат 0701-46 | B105: 1250000 | C105: 0 | D105: 0 | E105: 1250000
A106: Пројекат 0701-47 | B106: 4450000 | C106: 0 | D106: 0 | E106: 4450000
A107: Пројекат 0701-48 | B107: 1250000 | C107: 0 | D107: 0 | E107: 1250000
A108: Пројекат 0701-49 | B108: 1450000 | C108: 0 | D108: 0 | E108: 1450000
A109: Пројекат 0701-50 | B109: 950000 | C109: 0 | D109: 0 | E109: 950000
A110: Пројекат 0701-51 | B110: 1850000 | C110: 0 | D110: 0 | E110: 1850000
A111: Пројекат 0701-52 | B111: 850000 | C111: 0 | D111: 0 | E111: 850000
A112: Пројекат 0701-53 | B112: 1650000 | C112: 0 | D112: 0 | E112: 1650000
A113: Пројекат 0701-54 | B113: 3350000 | C113: 0 | D113: 0 | E113: 3350000
A114: Пројекат 0701-55 | B114: 1950000 | C114: 0 | D114: 0 | E114: 1950000
A115: Пројекат 0701-56 | B115: 700000 | C115: 0 | D115: 0 | E115: 700000
A116: Пројекат 0701-57 | B116: 600000 | C116: 0 | D116: 0 | E116: 600000
A117: Пројекат 0701-58 | B117: 700000 | C117: 0 | D117: 0 | E117: 700000
A118: Пројекат 0701-59 | B118: 1100000 | C118: 0 | D118: 0 | E118: 1100000
A119: Пројекат 1102-01: | B119: 4000000 | C119: 0 | D119: 0 | E119: 4000000
A120: Пројекат 1102-02: | B120: 4150000 | C120: 0 | D120: 0 | E120: 4150000
A121: Пројекат 1201-01 | B121: 150000 | C121: 0 | D121: 0 | E121: 150000
A122: Пројекат 1201-02 | B122: 150000 | C122: 0 | D122: 0 | E122: 150000
A123: Пројекат 1201-03 | B123: 500000 | C123: 0 | D123: 0 | E123: 500000
A124: Пројекат 1201-04: | B124: 250000 | C124: 0 | D124: 0 | E124: 250000
A125: Пројекат 1301-01: | B125: 500000 | C125: 0 | D125: 0 | E125: 500000
A126: Промоција туристичке понуде | E126: 0
A127: Просторно и урбанистичко планирање | E127: 0
A128: Проширење пута Несалце - Летовица
A129: Програмска активност 1301-0005: | B129: 1000000 | C129: 0 | D129: 0 | E129: 1000000
A130: Програмска активност 1301-0004: | B130: 14737200 | C130: 0 | D130: 6573000 | E130: 21310200
A131: Укупни збир | B131: 780147800 | C131: 127249200 | D131: 33319000 | E131: 940716000

Sheet Troškovi 2017 (hidden)
A1: Раздео | B1: Глава | C1: Програмска активност | D1: Функција | E1: Позиција | F1: Економска класификација | G1: ОПИС | H1: Средства из буџета | I1: Средства из буџета републике | J1: Средства из сопствених извора | K1: Укупно
A2: 1 | B2: 2 | C2: 3 | D2: 4 | E2: 5 | F2: 6 | G2: 7 | H2: 8 | I2: 9 | J2: 10 | K2: 11
A3: 1 | B3: 1.01 | G3: СКУПШТИНА ОПШТИНЕ
C4: 2101 | G4: ПРОГРАМ 16: ПОЛИТИЧКИ СИСТЕМ ЛОКАЛНЕ САМОУПРАВЕ
C5: 2101-0001 | G5: Функционисање скупштине
D6: 111 | G6: Извршни и законодавни органи ,финансијски и фискални послови
E7: 1 | F7: 411 | G7: Плате, додаци и накнаде запосленима | H7: 2400000 | K7: =H7+I7+J7 -> 2400000 | L7: =H7+I7+J7 -> 2400000 | M7: =K7-L7 -> 0
E8: 2 | F8: 412 | G8: Социјални доприноси на терет послодавца | H8: 429600 | K8: 429600 | L8: 429600 | M8: =K8-L8 -> 0
E9: 3 | F9: 414 | G9: Социјална давања запосленима | H9: 56800 | K9: 56800 | L9: 56800 | M9: 0
E10: 4 | F10: 416 | G10: Награде, бонуси и остали пословни расхода | H10: 5000 | K10: 5000 | L10: 5000 | M10: 0
E11: 5 | F11: 422 | G11: Трошкови путовања | H11: 100000 | K11: 100000 | L11: 100000 | M11: 0
E12: 6 | F12: 423 | G12: Услуге по уговору | H12: =17000000-1692000+300000 -> 15608000 | K12: 15608000 | L12: 15608000 | M12: 0
E13: 7 | F13: 426 | G13: Материјал | H13: 5000 | K13: 5000 | L13: 5000 | M13: 0
E14: 8 | F14: 465 | G14: Остале текуће донације по закону | H14: 470000 | K14: 470000 | L14: 470000 | M14: 0
E15: 9 | F15: 481 | G15: Дотација - редован рад политичких странака (порески приходи*0,105%) | H15: 343000 | K15: 343000 | L15: 343000 | M15: 0
E16: 10 | F16: 512 | G16: Maшине и опрема | H16: 2000000 | K16: 2000000 | L16: 2000000 | M16: 0
G17: Функција 111: | H17: =SUBTOTAL(9,H7:H16) -> 21417400 | I17: =SUBTOTAL(9,I7:I16) -> 0 | J17: 0 | K17: 21417400 | L17: 21417400 | M17: 0
G18: Програмска активност 2101-0001: | H18: =SUBTOTAL(9,H7:H16) -> 21417400 | I18: =SUBTOTAL(9,I7:I16) -> 0 | J18: 0 | K18: 21417400 | L18: 21417400 | M18: 0
L19: 0 | M19: 0
B20: 2 | C20: 2101-0003 | G20: Подршка раду извршних органа власти и скупштине | K20: =H20+I20+J20 -> 0 | L20: 0 | M20: 0
D21: 111 | G21: Извршни и законодавни органи | K21: 0 | L21: 0 | M21: 0
E22: 11 | F22: 423 | G22: Услуге по уговору | H22: =1692000+308000+100000 -> 2100000 | K22: 2100000 | L22: 2100000 | M22: 0
E23: 12 | F23: 481 | G23: Дотације - Савет за безбедност општине Бујановац | H23: 900000 | K23: 900000 | L23: 900000 | M23: 0
E24: 13 | F24: 481 | G24: Дотације - Савет за међунационалне односе | H24: 200000 | K24: 200000 | L24: 200000 | M24: 0
E25: 14 | F25: 481 | G25: Дотације - Савет за родну равноправност | H25: 200000 | K25: 200000 | L25: 200000 | M25: 0
G26: Функција 111: | H26: =SUBTOTAL(9,H22:H25) -> 3400000 | I26: =SUBTOTAL(9,I22:I25) -> 0 | J26: 0 | K26: 3400000 | L26: 3400000 | M26: 0
G27: Програмска активност 2101-0003: | H27: =SUBTOTAL(9,H22:H25) -> 3400000 | I27: =SUBTOTAL(9,I22:I25) -> 0 | J27: 0 | K27: 3400000 | L27: 3400000 | M27: 0
G28: УКУПНО ЗА ГЛАВУ 1.01: | H28: =SUBTOTAL(9,H7:H27) -> 24817400 | I28: =SUBTOTAL(9,I7:I27) -> 0 | J28: 0 | K28: 24817400 | L28: 24817400 | M28: 0
G29: УКУПНО ЗА РАЗДЕО 1: | H29: =SUBTOTAL(9,H7:H28) -> 24817400 | I29: =SUBTOTAL(9,I7:I28) -> 0 | J29: 0 | K29: 24817400 | L29: 24817400 | M29: 0
K30: =H30+I30+J30 -> 0 | L30: 0 | M30: 0
A31: 2 | B31: 2.01 | G31: ПРЕДСЕДНИК ОПШТИНЕ | K31: 0 | L31: 0 | M31: 0
C32: 2101 | G32: ПРОГРАМ 16: ПОЛИТИЧКИ СИСТЕМ ЛОКАЛНЕ САМОУПРАВЕ | K32: 0 | L32: 0 | M32: 0
C33: 2101-0002 | G33: Функционисање извршних органа | K33: 0 | L33: 0 | M33: 0
D34: 111 | G34: Извршни и законодавни органи | K34: 0 | L34: 0 | M34: 0
E35: 15 | F35: 411 | G35: Плате, додаци и накнаде запосленима | H35: 2500000 | K35: 2500000 | L35: 2500000 | M35: 0
E36: 16 | F36: 412 | G36: Социјални доприноси на терет послодавца | H36: 447000 | K36: 447000 | L36: 447000 | M36: 0
E37: 17 | F37: 414 | G37: Социјална давања запосленима | H37: 138500 | K37: 138500 | L37: 138500 | M37: 0
E38: 18 | F38: 416 | G38: Награде, бонуси и остали пословни расхода | H38: 5000 | K38: 5000 | L38: 5000 | M38: 0
E39: 19 | F39: 422 | G39: Трошкови путовања | H39: 350000 | K39: 350000 | L39: 350000 | M39: 0
E40: 20 | F40: 423 | G40: Услуге по уговору | H40: =1350000+350000 -> 1700000 | K40: 1700000 | L40: 1700000 | M40: 0
E41: 21 | F41: 426 | G41: Материјал | H41: 50000 | K41: 50000 | L41: 50000 | M41: 0
E42: 22 | F42: 465 | G42: Остале текуће донације по закону | H42: 330000 | K42: 330000 | L42: 330000 | M42: 0
E43: 23 | F43: 512 | G43: Машине и опрема | H43: 100000 | K43: 100000 | L43: 100000 | M43: 0
G44: Функција 111: | H44: =SUBTOTAL(9,H35:H43) -> 5620500 | I44: =SUBTOTAL(9,I35:I43) -> 0 | J44: 0 | K44: 5620500 | L44: 5620500 | M44: 0
G45: Програмска активност 2101-0002: | H45: =SUBTOTAL(9,H35:H43) -> 5620500 | I45: =SUBTOTAL(9,I35:I43) -> 0 | J45: 0 | K45: 5620500 | L45: 5620500 | M45: 0
G46: УКУПНО ЗА ГЛАВУ 2.01: | H46: =SUBTOTAL(9,H35:H43) -> 5620500 | I46: =SUBTOTAL(9,I35:I43) -> 0 | J46: 0 | K46: 5620500 | L46: 5620500 | M46: 0
G47: УКУПНО ЗА РАЗДЕО 2: | H47: =SUBTOTAL(9,H35:H46) -> 5620500 | I47: =SUBTOTAL(9,I35:I46) -> 0 | J47: 0 | K47: 5620500 | L47: 5620500 | M47: 0
L48: 0 | M48: 0
A49: 3 | B49: 3.01 | G49: ОПШТИНСКО ВЕЋЕ | K49: =H49+I49+J49 -> 0 | L49: 0 | M49: 0
C50: 2101 | G50: ПРОГРАМ 16: ПОЛИТИЧКИ СИСТЕМ ЛОКАЛНЕ САМОУПРАВЕ | K50: 0 | L50: 0 | M50: 0
C51: 2101-0002 | G51: Функционисање извршних органа | K51: 0 | L51: 0 | M51: 0
D52: 111 | G52: Извршни и законодавни органи | K52: 0 | L52: 0 | M52: 0
E53: 24 | F53: 423 | G53: Услуге по уговору | H53: =4100000 -> 4100000 | K53: 4100000 | L53: 4100000 | M53: 0
E54: 25 | F54: 426 | G54: Материјал | H54: 50000 | K54: 50000 | L54: 50000 | M54: 0
G55: Функција 111: | H55: =SUBTOTAL(9,H53:H54) -> 4150000 | I55: =SUBTOTAL(9,I53:I54) -> 0 | J55: 0 | K55: 4150000 | L55: 4150000 | M55: 0
G56: Програмска активност 2101-0002: | H56: =SUBTOTAL(9,H53:H54) -> 4150000 | I56: =SUBTOTAL(9,I53:I54) -> 0 | J56: 0 | K56: 4150000 | L56: 4150000 | M56: 0
L57: 0 | M57: 0
C58: 2101-0003 | G58: Подршка раду извршних органа власти и скупштине | K58: =H58+I58+J58 -> 0 | L58: 0 | M58: 0
D59: 111 | G59: Извршни и законодавни органи - рад комисија | K59: =H59+I59+J59 -> 0 | L59: 0 | M59: 0
E60: 26 | F60: 423 | G60: Услуге по уговору | H60: =2000000+500000+500000 -> 3000000 | K60: =H60+I60+J60 -> 3000000 | L60: 3000000 | M60: 0
G61: Функција 111: | H61: =SUBTOTAL(9,H60) -> 3000000 | I61: =SUBTOTAL(9,I60) -> 0 | J61: 0 | K61: 3000000 | L61: 3000000 | M61: 0
G62: Програмска активност 2101-0003: | H62: =SUBTOTAL(9,H60) -> 3000000 | I62: =SUBTOTAL(9,I60) -> 0 | J62: 0 | K62: 3000000 | L62: 3000000 | M62: 0
G63: УКУПНО ЗА ГЛАВУ 3.01: | H63: =SUBTOTAL(9,H60) -> 3000000 | I63: =SUBTOTAL(9,I60) -> 0 | J63: 0 | K63: 3000000 | L63: 3000000 | M63: 0
G64: УКУПНО ЗА РАЗДЕО 3: | H64: =SUBTOTAL(9,H53:H63) -> 7150000 | I64: =SUBTOTAL(9,I53:I63) -> 0 | J64: 0 | K64: 7150000 | L64: 7150000 | M64: 0
L65: 0 | M65: 0
A66: 4 | B66: 4.01 | G66: ПРАВОБРАНИЛАШТВО ОПШТИНЕ БУЈАНОВАЦ | K66: =H66+I66+J66 -> 0 | L66: =H66+I66+J66 -> 0 | M66: 0
C67: О602 | G67: ПРОГРАМ 15: ЛОКАЛНА САМОУПРАВА | K67: 0 | L67: 0 | M67: =K67-L67 -> 0
C68: О602-0004 | G68: Правобранилаштво општине Бујановац | K68: 0 | L68: 0 | M68: 0
D69: 330 | G69: Судови | K69: 0 | L69: 0 | M69: 0
E70: 27 | F70: 411 | G70: Плате, додаци и накнаде запосленима | H70: 1800000 | K70: 1800000 | L70: 1800000 | M70: 0
E71: 28 | F71: 412 | G71: Социјални доприноси на терет послодавца | H71: 322200 | K71: 322200 | L71: 322200 | M71: 0
E72: 29 | F72: 422 | G72: Трошкови путовања | H72: 10000 | K72: 10000 | L72: 10000 | M72: 0
E73: 30 | F73: 423 | G73: Услуге по уговору | H73: 50000 | K73: 50000 | L73: 50000 | M73: 0
E74: 31 | F74: 426 | G74: Материјал | H74: 10000 | K74: 10000 | L74: 10000 | M74: 0
E75: 32 | F75: 465 | G75: Остале текуће донације по закону | H75: 185000 | K75: 185000 | L75: 185000 | M75: 0
E76: 33 | F76: 483 | G76: Новчане казне и пенали по решењу судова | H76: 3000000 | K76: 3000000 | L76: 3000000 | M76: 0
G77: Функција 330: | H77: =SUBTOTAL(9,H70:H76) -> 5377200 | I77: =SUBTOTAL(9,I70:I76) -> 0 | J77: 0 | K77: 5377200 | L77: 5377200 | M77: 0
G78: Програмска активност 0602-0004: | H78: =SUBTOTAL(9,H70:H76) -> 5377200 | I78: =SUBTOTAL(9,I70:I76) -> 0 | J78: 0 | K78: 5377200 | L78: 5377200 | M78: 0
G79: УКУПНО ЗА ГЛАВУ 4.01: | H79: =SUBTOTAL(9,H70:H76) -> 5377200 | I79: =SUBTOTAL(9,I70:I76) -> 0 | J79: 0 | K79: 5377200 | L79: 5377200 | M79: 0
G80: УКУПНО ЗА РАЗДЕО 4: | H80: =SUBTOTAL(9,H70:H79) -> 5377200 | I80: =SUBTOTAL(9,I70:I79) -> 0 | J80: 0 | K80: 5377200 | L80: 5377200 | M80: 0
K81: =H81+I81+J81 -> 0 | L81: 0 | M81: 0
A82: 5 | B82: 5.01 | G82: ОПШТИНСКА УПРАВА | K82: 0 | L82: 0 | M82: 0
C83: 0602 | G83: ПРОГРАМ 15: ЛОКАЛНА САМОУПРАВА | K83: 0 | L83: 0 | M83: 0
C84: 0602-0001 | G84: Функционисање локалне самоуправе и градских општина | K84: 0 | L84: 0 | M84: 0
D85: 130 | G85: Опште јавне услуге | K85: 0 | L85: 0 | M85: 0
E86: 34 | F86: 411 | G86: Плате, додаци и накнаде запосленима | H86: =92692500+18150000+3350000-2728600 -> 111463900 | K86: 111463900 | L86: 111463900 | M86: 0
E87: 35 | F87: 412 | G87: Социјални доприноси на терет послодавца | H87: 19952000 | K87: 19952000 | L87: 19952000 | M87: 0
E88: 36 | F88: 413 | G88: Накнаде у натури | H88: 50000 | K88: 50000 | L88: 50000 | M88: 0
E89: 37 | F89: 414 | G89: Социјална давања запосленима | H89: 3350000 | K89: 3350000 | L89: 3350000 | M89: 0
E90: 38 | F90: 415 | G90: Накнаде трошкова за запослене | H90: 4100000 | K90: 4100000 | L90: 4100000 | M90: 0
E91: 39 | F91: 416 | G91: Награде, бонуси и остали пословни расхода | H91: 1400000 | K91: 1400000 | L91: 1400000 | M91: 0
E92: 40 | F92: 421 | G92: Стални трошкови | H92: 11000000 | K92: 11000000 | L92: 11000000 | M92: 0
E93: 41 | F93: 422 | G93: Трошкови путовања | H93: 1550000 | K93: 1550000 | L93: 1550000 | M93: 0
E94: 42 | F94: 423 | G94: Услуге по уговору | H94: 8500000 | K94: 8500000 | L94: 8500000 | M94: 0
E95: 43 | F95: 424 | G95: Специјализоване услуге | H95: 500000 | K95: 500000 | L95: 500000 | M95: 0
E96: 44 | F96: 425 | G96: Текуће поправке и одржавање | H96: 2500000 | K96: 2500000 | L96: 2500000 | M96: 0
E97: 45 | F97: 426 | G97: Материјал | H97: 8000000 | K97: 8000000 | L97: 8000000 | M97: 0
E98: 46 | F98: 465 | G98: Остале текуће донације по закону | H98: 10500000 | K98: 10500000 | L98: 10500000 | M98: 0
E99: 47 | F99: 482 | G99: Порези , обавезне таксе и казне | H99: 700000 | K99: 700000 | L99: 700000 | M99: 0
E100: 48 | F100: 483 | G100: Новчане казне и пенали по решењу судова | H100: 50000 | K100: 50000 | L100: 50000 | M100: 0
E101: 49 | F101: 511 | G101: Зграде и грађевински објекти | H101: 10000 | K101: 10000 | L101: 10000 | M101: 0
E102: 50 | F102: 512 | G102: Машине и опрема | H102: =3000000+500000+500000 -> 4000000 | K102: 4000000 | L102: 4000000 | M102: 0
E103: 51 | F103: 515 | G103: Нематеријална имовина | H103: 700000 | K103: 700000 | L103: 700000 | M103: 0
G104: Функција 130: | H104: =SUBTOTAL(9,H86:H103) -> 188325900 | I104: =SUBTOTAL(9,I86:I103) -> 0 | J104: 0 | K104: 188325900 | L104: 188325900 | M104: 0
G105: Програмска активност 0602-0001: | H105: =SUBTOTAL(9,H86:H103) -> 188325900 | I105: =SUBTOTAL(9,I86:I103) -> 0 | J105: 0 | K105: 188325900 | L105: 188325900 | M105: 0
L106: 0 | M106: 0
C107: 0602-0001 | G107: Подршка раду извршних органа власти и скупштине | K107: =H107+I107+J107 -> 0 | L107: 0 | M107: 0
D108: 160 | G108: Опште јавне услуге које нису класификоване на другом месту | K108: 0 | L108: 0 | M108: 0
E109: 52 | F109: 481 | G109: Дотације - Агенција за развој Бујановца и Прешева | H109: 500000 | K109: 500000 | L109: 500000 | M109: 0
E110: 53 | F110: 481 | G110: Дотација - Центар за развој Пчињског и Јабланичког округа | H110: 200000 | K110: 200000 | L110: 200000 | M110: 0
E111: 54 | F111: 481 | G111: Дотације - Привредна комора | H111: 400000 | K111: 400000 | L111: 400000 | M111: 0
E112: 55 | F112: 481 | G112: Дотација - Стална конференција градова и општина (чланарина) | H112: 470000 | K112: 470000 | L112: 470000 | M112: 0
E113: 56 | F113: 481 | G113: Дотација са страним донаторима - фондови ЕУ | H113: 4000000 | K113: 4000000 | L113: 4000000 | M113: 0
E114: 57 | F114: 481 | G114: Дотација - Налед | H114: 100000 | K114: 100000 | L114: 100000 | M114: 0
E115: 58 | F115: 481 | G115: Дотације - Историјски архив Врање | H115: 460000 | K115: 460000 | L115: 460000 | M115: 0
G116: Функција 160: | H116: =SUBTOTAL(9,H109:H115) -> 6130000 | I116: =SUBTOTAL(9,I109:I115) -> 0 | J116: 0 | K116: 6130000 | L116: 6130000 | M116: 0
G117: Програмска активност 0602-0001: | H117: =SUBTOTAL(9,H109:H115) -> 6130000 | I117: =SUBTOTAL(9,I109:I115) -> 0 | J117: 0 | K117: 6130000 | L117: 6130000 | M117: 0
K118: =H118+I118+J118 -> 0 | L118: 0 | M118: 0
C119: 0602-0007 | G119: Функционисање националних савета националних мањина | K119: =H119+I119+J119 -> 0 | L119: 0 | M119: 0
D120: 090 | G120: Социјална заштита некласификована на другом месту | K120: =H120+I120+J120 -> 0 | L120: 0 | M120: 0
E121: 59 | F121: 481 | G121: Дотације невладиним организацијама - Декада Рома | H121: 700000 | K121: =H121+I121+J121 -> 700000 | L121: 700000 | M121: 0
E122: 60 | F122: 481 | G122: Дотације невладиним организацијама - Национални савет Албанаца | H122: 3000000 | K122: =H122+I122+J122 -> 3000000 | L122: =H122+I122+J122 -> 3000000 | M122: 0
G123: Функција 090: | H123: =SUBTOTAL(9,H121:H122) -> 3700000 | I123: =SUBTOTAL(9,I121:I122) -> 0 | J123: =SUBTOTAL(9,J121:J122) -> 0 | K123: =SUBTOTAL(9,K121:K122) -> 3700000 | L123: 3700000 | M123: =K123-L123 -> 0
G124: Програмска активност 0602-0007: | H124: =SUBTOTAL(9,H121:H122) -> 3700000 | I124: =SUBTOTAL(9,I121:I122) -> 0 | J124: =SUBTOTAL(9,J121:J122) -> 0 | K124: =SUBTOTAL(9,K121:K122) -> 3700000 | L124: 3700000 | M124: 0
L125: 0 | M125: 0
C126: 0602-0009 | G126: Текућа буџетска резерва | K126: =H126+I126+J126 -> 0 | L126: 0 | M126: 0
D127: 130 | G127: Опште јавне услуге | K127: =H127+I127+J127 -> 0 | L127: 0 | M127: 0
E128: 61 | F128: 49912 | G128: Текућа резерва | H128: 8000000 | K128: =H128+I128+J128 -> 8000000 | L128: 8000000 | M128: 0
G129: Функција 130: | H129: =SUBTOTAL(9,H128) -> 8000000 | I129: =SUBTOTAL(9,I128) -> 0 | J129: 0 | K129: 8000000 | L129: 8000000 | M129: 0
G130: Програмска активност 0602-0009: | H130: =SUBTOTAL(9,H128) -> 8000000 | I130: =SUBTOTAL(9,I128) -> 0 | J130: 0 | K130: 8000000 | L130: 8000000 | M130: 0
L131: 0 | M131: 0
C132: 0602-0010 | G132: Стална буџетска резерва | K132: =H132+I132+J132 -> 0 | L132: 0 | M132: 0
D133: 130 | G133: Опште јавне услуге | K133: =H133+I133+J133 -> 0 | L133: 0 | M133: 0
E134: 62 | F134: 49911 | G134: Стална резерва | H134: 500000 | K134: =H134+I134+J134 -> 500000 | L134: 500000 | M134: 0
G135: Функција 130: | H135: =SUBTOTAL(9,H134) -> 500000 | I135: =SUBTOTAL(9,I134) -> 0 | J135: 0 | K135: 500000 | L135: 500000 | M135: 0
G136: Програмска активност 0602-0010: | H136: =SUBTOTAL(9,H134) -> 500000 | I136: =SUBTOTAL(9,I134) -> 0 | J136: 0 | K136: 500000 | L136: 500000 | M136: 0
K137: =H137+I137+J137 -> 0 | L137: 0 | M137: 0
C138: 0602-0014 | G138: Ванредне ситуације | K138: =H138+I138+J138 -> 0 | L138: 0 | M138: 0
D139: 160 | G139: Опште јавне услуге које нису класификоване на другом месту | K139: =H139+I139+J139 -> 0 | L139: 0 | M139: 0
E140: 63 | F140: 423 | G140: Услуге по уговору | H140: 300000 | K140: =H140+I140+J140 -> 300000 | L140: 300000 | M140: 0
E141: 64 | F141: 425 | G141: Текуће поправке и одржавање | H141: 700000 | K141: =H141+I141+J141 -> 700000 | L141: 700000 | M141: 0
G142: Функција 160: | H142: =SUBTOTAL(9,H140:H141) -> 1000000 | I142: =SUBTOTAL(9,I140:I141) -> 0 | J142: 0 | K142: 1000000 | L142: 1000000 | M142: 0
G143: Програмска активност 0602-0014: | H143: =SUBTOTAL(9,H140:H141) -> 1000000 | I143: =SUBTOTAL(9,I140:I141) -> 0 | J143: 0 | K143: 1000000 | L143: 1000000 | M143: 0
L144: 0 | M144: 0
G145: ПРОГРАМ 1: ЛОКАЛНИ РАЗВОЈ И ПРОСТОРНО ПЛАНИРАЊЕ | K145: =H145+I145+J145 -> 0 | L145: =H145+I145+J145 -> 0 | M145: =K145-L145 -> 0
C146: 1101-0001 | G146: Просторно и урбанистичко планирање | K146: 0 | L146: 0 | M146: 0
D147: 160 | G147: Опште јавне услуге које нису класификоване на другом месту | K147: 0 | L147: 0 | M147: 0
E148: 65 | F148: 511 | G148: Зграде и грађевински објекти - Израда пројектне документације | H148: 3000000 | I148: 7495200 | K148: 10495200 | L148: 10495200 | M148: 0
G149: Функција 160: | H149: =SUBTOTAL(9,H148) -> 3000000 | I149: =SUBTOTAL(9,I148) -> 7495200 | J149: 0 | K149: 10495200 | L149: 10495200 | M149: 0
G150: Програмска активност 1101-0001: | H150: =SUBTOTAL(9,H148) -> 3000000 | I150: =SUBTOTAL(9,I148) -> 7495200 | J150: 0 | K150: 10495200 | L150: 10495200 | M150: 0
C152: 1102 | G152: ПРОГРАМ 2: КОМУНАЛНА ДЕЛАТНОСТ | K152: =H152+I152+J152 -> 0 | L152: 0 | M152: 0
C153: 1102-0001 | G153: Јавна расвета | K153: =H153+I153+J153 -> 0 | L153: 0 | M153: 0
D154: 640 | G154: Улична расвета | K154: =H154+I154+J154 -> 0 | L154: 0 | M154: 0
E155: 66 | F155: 421 | G155: Стални трошкови | H155: 17000000 | K155: =H155+I155+J155 -> 17000000 | L155: 17000000 | M155: 0
E156: 67 | F156: 425 | G156: Текуће поправке и одржавање | H156: 3300000 | K156: =H156+I156+J156 -> 3300000 | L156: 3300000 | M156: 0
G157: Функција 640: | H157: =SUBTOTAL(9,H155:H156) -> 20300000 | I157: =SUBTOTAL(9,I155:I156) -> 0 | J157: 0 | K157: 20300000 | L157: 20300000 | M157: 0
G158: Програмска активност 1102-0001: | H158: =SUBTOTAL(9,H155:H156) -> 20300000 | I158: =SUBTOTAL(9,I155:I156) -> 0 | J158: 0 | K158: 20300000 | L158: 20300000 | M158: 0
L159: 0 | M159: 0
C160: 1102-0002 | G160: Уређење и одржавање зеленила | K160: =H160+I160+J160 -> 0 | L160: 0 | M160: 0
D161: 660 | G161: Послови становања и заједнице некласификоване на другом месту | K161: =H161+I161+J161 -> 0 | L161: 0 | M161: 0
E162: 68 | F162: 424 | G162: Специјализоване услуге - одржавање зеленила | H162: 1000000 | K162: =H162+I162+J162 -> 1000000 | L162: 1000000 | M162: 0
G163: Функција 660: | H163: =SUBTOTAL(9,H162) -> 1000000 | I163: =SUBTOTAL(9,I162) -> 0 | J163: 0 | K163: 1000000 | L163: 1000000 | M163: 0
G164: Програмска активност 1102-0002: | H164: =SUBTOTAL(9,H162) -> 1000000 | I164: =SUBTOTAL(9,I162) -> 0 | J164: 0 | K164: 1000000 | L164: 1000000 | M164: 0
L165: 0 | M165: 0
C166: 1102-0003 | G166: Јавна хигијена | K166: =H166+I166+J166 -> 0 | L166: 0 | M166: 0
D167: 660 | G167: Послови становања и заједнице некласификоване на другом месту | K167: 0 | L167: 0 | M167: 0
E168: 69 | F168: 424 | G168: Специјализоване услуге - метење улица | H168: 9000000 | K168: 9000000 | L168: 9000000 | M168: 0
G169: Функција 660: | H169: =SUBTOTAL(9,H168) -> 9000000 | I169: =SUBTOTAL(9,I168) -> 0 | J169: 0 | K169: 9000000 | L169: 9000000 | M169: 0
G170: Програмска активност 1102-0003: | H170: =SUBTOTAL(9,H168) -> 9000000 | I170: =SUBTOTAL(9,I168) -> 0 | J170: 0 | K170: 9000000 | L170: 9000000 | M170: 0
L171: 0 | M171: 0
C172: 1102-0004 | G172: Зоохигијена | K172: =H172+I172+J172 -> 0 | L172: 0 | M172: 0
D173: 160 | G173: Опште јавне услуге некласификоване на другом месту | K173: =H173+I173+J173 -> 0 | L173: 0 | M173: 0
E174: 70 | F174: 483 | G174: Новчане казне и пенали по решењу судова | H174: 200000 | K174: =H174+I174+J174 -> 200000
E175: 71 | F175: 485 | G175: Накнаде штете за повреде или штете нанете од стране државних органа | H175: 1300000 | K175: =H175+I175+J175 -> 1300000 | L175: 1300000 | M175: 0
G176: Функција 630: | H176: =SUBTOTAL(9,H174:H175) -> 1500000 | I176: =SUBTOTAL(9,I174:I175) -> 0 | J176: 0 | K176: 1500000 | L176: 1500000 | M176: 0
G177: Програмска активност 1102-0004: | H177: =SUBTOTAL(9,H174:H175) -> 1500000 | I177: =SUBTOTAL(9,I174:I175) -> 0 | J177: 0 | K177: 1500000 | L177: 1500000 | M177: 0
C178: 1102-0008 | G178: Водоснабдевање | K178: =H178+I178+J178 -> 0 | L178: 0 | M178: 0
D179: 630 | G179: Водоснабдевање | K179: =H179+I179+J179 -> 0 | L179: 0 | M179: 0
E180: 72 | F180: 423 | G180: Услуге по уговору - снабдевање пијаћом водом | H180: 250000 | K180: =H180+I180+J180 -> 250000 | L180: 250000 | M180: 0
E181: 73 | F181: 451 | G181: Реализација посебног програма ЈП "Комуналац" Бујановац | H181: 25000000 | K181: =H181+I181+J181 -> 25000000 | L181: 25000000 | M181: 0
G182: Функција 630: | H182: =SUBTOTAL(9,H180:H181) -> 25250000 | I182: =SUBTOTAL(9,I180:I181) -> 0 | J182: 0 | K182: 25250000 | L182: 25250000 | M182: 0
G183: Програмска активност 1102-0008: | H183: =SUBTOTAL(9,H180:H181) -> 25250000 | I183: =SUBTOTAL(9,I180:I181) -> 0 | J183: 0 | K183: 25250000 | L183: 25250000 | M183: 0
L184: 0 | M184: 0
D185: 640 | G185: Улична расвета | K185: =H185+I185+J185 -> 0 | L185: =H185+I185+J185 -> 0 | M185: =K185-L185 -> 0
C186: 1102-01 | E186: 74 | F186: 511 | G186: Изградња трафо станице у селу Билинце | H186: =4000000-1000000 -> 3000000 | K186: =H186+I186+J186 -> 3000000 | L186: 3000000 | M186: 0
G187: Функција 640: | H187: =SUBTOTAL(9,H186) -> 3000000 | I187: =SUBTOTAL(9,I186) -> 0 | J187: 0 | K187: 3000000 | L187: 3000000 | M187: 0
G188: Пројекат 1102-01: | H188: =SUBTOTAL(9,H186) -> 3000000 | I188: =SUBTOTAL(9,I186) -> 0 | J188: 0 | K188: 3000000 | L188: 3000000 | M188: 0
D189: 640 | G189: Улична расвета | K189: =H189+I189+J189 -> 0 | L189: 0 | M189: 0
C190: 1102-02 | E190: 75 | F190: 511 | G190: Изградња трафо-станице у индустријској зони у Бујановцу | H190: 4150000 | K190: =H190+I190+J190 -> 4150000 | L190: 4150000 | M190: 0
G191: Функција 640: | H191: =SUBTOTAL(9,H190:H190) -> 4150000 | I191: =SUBTOTAL(9,I190:I190) -> 0 | J191: 0 | K191: 4150000 | L191: 4150000 | M191: 0
G192: Пројекат 1102-02: | H192: =SUBTOTAL(9,H190:H190) -> 4150000 | I192: =SUBTOTAL(9,I190:I190) -> 0 | J192: 0 | K192: 4150000 | L192: 4150000 | M192: 0
C194: 1501 | G194: ПРОГРАМ 3: ЛОКАЛНИ ЕКОНОМСКИ РАЗВОЈ | K194: =H194+I194+J194 -> 0 | L194: 0 | M194: 0
C195: 1501-0002 | G195: Стручна пракса 2017 | K195: =H195+I195+J195 -> 0 | L195: 0 | M195: 0
D196: 411 | G196: Општи економски и комерцијални послови | K196: =H196+I196+J196 -> 0 | L196: 0 | M196: 0
E197: 76 | F197: 4631 | G197: Текући трансфери осталим нивоима власти | H197: 25500000 | K197: =H197+I197+J197 -> 25500000 | L197: 25500000 | M197: 0
G198: Функција 411: | H198: =SUBTOTAL(9,H197) -> 25500000 | I198: =SUBTOTAL(9,I197) -> 0 | J198: 0 | K198: 25500000 | L198: 25500000 | M198: 0
G199: Програмска активност 1501-0002: | H199: =SUBTOTAL(9,H197) -> 25500000 | I199: =SUBTOTAL(9,I197) -> 0 | J199: 0 | K199: 25500000 | L199: 25500000 | M199: 0
L200: =H200+I200+J200 -> 0 | M200: =K200-L200 -> 0
C201: 1501-0003 | G201: Подстицај за развој предузетништва | K201: =H201+I201+J201 -> 0 | L201: 0 | M201: 0
G202: Текуће субвенције предузетницима | K202: =H202+I202+J202 -> 0 | L202: 0 | M202: 0
... 660 more rows

Sheet ekonomska
B3: Values
A4: Row Labels | B4: Sum of Средства из буџета | C4: Sum of Средства из буџета републике | D4: Sum of Укупно
A5: 411 | B5: 212210000 | C5: 0 | D5: 212210000
A6: 412 | B6: 37916900 | C6: 0 | D6: 37916900
A7: 413 | B7: 10000 | D7: 10000
A8: 414 | B8: 10084000 | D8: 10084000
A9: 415 | B9: 8083000 | D9: 8083000
A10: 416 | B10: 2388000 | D10: 2388000
A11: 421 | B11: 44712000 | D11: 44712000
A12: 422 | B12: 2812000 | D12: 2812000
A13: 423 | B13: 49480500 | C13: 3000000 | D13: 52480500
A14: 424 | B14: 11310000 | D14: 11310000
A15: 425 | B15: 13130000 | C15: 25120000 | D15: 38250000
A16: 426 | B16: 19623000 | D16: 19623000
A17: 451 | B17: 25000000 | D17: 25000000
A18: 463 | B18: 95968400 | C18: 0 | D18: 95968400
A19: 464 | B19: 18700000 | D19: 18700000
A20: 465 | B20: 23317200 | D20: 23317200
A21: 472 | B21: 13200000 | C21: 6696000 | D21: 19896000
A22: 481 | B22: 24330000 | D22: 24330000
A23: 482 | B23: 685000 | D23: 685000
A24: 483 | B24: 3320000 | D24: 3320000
A25: 511 | B25: 480000 | D25: 480000
A26: 512 | B26: 7320000 | D26: 7320000
A27: 515 | B27: 700000 | D27: 700000
A28: 49911 | B28: 500000 | D28: 500000
A29: 49912 | B29: 11500000 | D29: 11500000
A30: 423 | B30: 9362000 | C30: 6520000 | D30: 15882000
A31: 425 | B31: 21205000 | C31: 4000000 | D31: 25205000
A32: 451 | B32: 25000000 | D32: 25000000
A33: 454 | B33: 15000000 | D33: 15000000
A34: 463 | B34: 23585000 | D34: 23585000
A35: 472 | B35: 3548000 | C35: 480000 | D35: 4028000
A36: 481 | B36: 3530000 | D36: 3530000
A37: 483 | B37: 10200000 | D37: 10200000
A38: 485 | B38: 1000000 | D38: 1000000
A39: 511 | B39: 78594000 | C39: 275480000 | D39: 354074000
A40: 512 | B40: 1000000 | C40: 13400000 | D40: 14400000
A41: 541 | B41: 1000000 | D41: 1000000
A42: Grand Total | B42: 829804000 | C42: 334696000 | D42: 1164500000

Sheet funkcionalna
B3: Values
A4: Row Labels | B4: Sum of Средства из буџета | C4: Sum of Средства из буџета републике | D4: Sum of Укупно
A5: Функција 070: | B5: 7100000 | C5: 6000000 | D5: 13100000
A6: Функција 090: | B6: 7800000 | C6: 4000000 | D6: 11800000
A7: Функција 111: | B7: 38163600 | C7: 0 | D7: 38163600
A8: Функција 130: | B8: 202815000 | C8: 0 | D8: 202815000
A9: Функција 160: | B9: 15363000 | C9: 0 | D9: 15363000
A10: Функција 330: | B10: 5472200 | C10: 0 | D10: 5472200
A11: Функција 411: | B11: 35000000 | C11: 0 | D11: 35000000
A12: Функција 421: | B12: 22400000 | C12: 0 | D12: 22400000
A13: Функција 451: | B13: 95189000 | C13: 81920000 | D13: 177109000
A14: Функција 473: | B14: 8000000 | C14: 0 | D14: 8000000
A15: Функција 550: | B15: 4550000 | C15: 17680000 | D15: 22230000
A16: Функција 560: | B16: 2250000 | C16: 18400000 | D16: 20650000
A17: Функција 620: | B17: 10960000 | C17: 0 | D17: 10960000
A18: Функција 630: | B18: 25250000 | C18: 0 | D18: 25250000
A19: Функција 640: | B19: 20500000 | C19: 0 | D19: 20500000
A20: Функција 660: | B20: 10000000 | C20: 0 | D20: 10000000
A21: Функција 721: | B21: 400000 | C21: 0 | D21: 400000
A22: Функција 740: | B22: 18850000 | C22: 0 | D22: 18850000
A23: Функција 810: | B23: 31696700 | C23: 0 | D23: 31696700
A24: Функција 820: | B24: 39915100 | C24: 0 | D24: 39915100
A25: Функција 830: | B25: 5000000 | C25: 0 | D25: 5000000
A26: Функција 840: | B26: 2900000 | C26: 0 | D26: 2900000
A27: Функција 860: | B27: 4930000 | C27: 0 | D27: 4930000
A28: Функција 911: | B28: 108246000 | C28: 0 | D28: 108246000
A29: Функција 912: | B29: 61831700 | C29: 200000000 | D29: 261831700
A30: Функција 920: | B30: 23693700 | C30: 0 | D30: 23693700
A31: Функција 960: | B31: 21528000 | C31: 6696000 | D31: 28224000
A32: Grand Total | B32: 829804000 | C32: 334696000 | D32: 1164500000

Sheet projekti
B3: Values
A4: Row Labels | B4: Sum of Средства из буџета | C4: Sum of Средства из буџета републике | D4: Sum of Укупно
A5: Програмска активност 0101-0002: | B5: 22400000 | C5: 0 | D5: 22400000
A6: Програмска активност 0401-0001: | B6: 4550000 | C6: 17680000 | D6: 22230000
A7: Програмска активност 0401-0004: | B7: 250000 | C7: 0 | D7: 250000
A8: Програмска активност 0401-0005: | B8: 0 | C8: 18400000 | D8: 18400000
A9: Програмска активност 0602-0001: | B9: 194578000 | C9: 0 | D9: 194578000
A10: Програмска активност 0602-0002: | B10: 3900000 | C10: 0 | D10: 3900000
A11: Програмска активност 0602-0004: | B11: 5472200 | C11: 0 | D11: 5472200
A12: Програмска активност 0602-0007: | B12: 4000000 | C12: 0 | D12: 4000000
A13: Програмска активност 0602-0009: | B13: 11500000 | C13: 0 | D13: 11500000
A14: Програмска активност 0602-0010: | B14: 500000 | C14: 0 | D14: 500000
A15: Програмска активност 0602-0014: | B15: 1500000 | C15: 0 | D15: 1500000
A16: Програмска активност 0901-0001: | B16: 6000000 | C16: 0 | D16: 6000000
A17: Програмска активност 0901-0002: | B17: 3200000 | C17: 0 | D17: 3200000
A18: Програмска активност 0901-0005: | B18: 500000 | C18: 0 | D18: 500000
A19: Програмска активност 0901-0006: | B19: 600000 | C19: 4000000 | D19: 4600000
A20: Програмска активност 0901-0007: | B20: 600000 | C20: 6000000 | D20: 6600000
A21: Програмска активност 1101-0001: | B21: 15960000 | C21: 0 | D21: 15960000
A22: Програмска активност 1102-0001: | B22: 20500000 | C22: 0 | D22: 20500000
A23: Програмска активност 1102-0002: | B23: 1000000 | C23: 0 | D23: 1000000
A24: Програмска активност 1102-0003: | B24: 9000000 | C24: 0 | D24: 9000000
A25: Програмска активност 1102-0004: | B25: 1200000 | C25: 0 | D25: 1200000
A26: Програмска активност 1102-0008: | B26: 25250000 | C26: 0 | D26: 25250000
A27: Програмска активност 1201-0001 | B27: 23139000 | C27: 0 | D27: 23139000
A28: Програмска активност 1201-0001: | B28: 15826100 | C28: 0 | D28: 15826100
A29: Програмска активност 1201-0002: | B29: 4930000 | C29: 0 | D29: 4930000
A30: Програмска активност 1201-0003: | B30: 2900000 | C30: 0 | D30: 2900000
A31: Програмска активност 1201-0004: | B31: 5000000 | C31: 0 | D31: 5000000
A32: Програмска активност 1301-0001: | B32: 9000000 | C32: 0 | D32: 9000000
A33: Програмска активност 1301-0004: | B33: 21186700 | C33: 0 | D33: 21186700
A34: Програмска активност 1301-0005: | B34: 800000 | C34: 0 | D34: 800000
A35: Програмска активност 1501-0002: | B35: 20000000 | C35: 0 | D35: 20000000
A36: Програмска активност 1501-0003: | B36: 15000000 | C36: 0 | D36: 15000000
A37: Програмска активност 1502-0001: | B37: 7760000 | C37: 0 | D37: 7760000
A38: Програмска активност 1502-0002: | B38: 240000 | C38: 0 | D38: 240000
A39: Програмска активност 1801-0001: | B39: 18850000 | C39: 0 | D39: 18850000
A40: Програмска активност 1801-0002: | B40: 400000 | C40: 0 | D40: 400000
A41: Програмска активност 2001-0001: | B41: 108246000 | C41: 0 | D41: 108246000
A42: Програмска активност 2002-0001: | B42: 70881700 | C42: 200000000 | D42: 270881700
A43: Програмска активност 2003-0001: | B43: 36171700 | C43: 6696000 | D43: 42867700
A44: Програмска активност 2101-0001: | B44: 19543100 | C44: 0 | D44: 19543100
A45: Програмска активност 2101-0002: | B45: 11170500 | C45: 0 | D45: 11170500
A46: Програмска активност 2101-0003: | B46: 7450000 | C46: 0 | D46: 7450000
A47: Пројекат 0701-01 | B47: 0 | C47: 25120000 | D47: 25120000
A48: Пројекат 0701-02 | B48: 0 | C48: 3800000 | D48: 3800000
A49: Пројекат 0701-03 | B49: 0 | C49: 20000000 | D49: 20000000
A50: Пројекат 0701-04 | B50: 1760000 | C50: 25000000 | D50: 26760000
A51: Пројекат 0701-05 | B51: 0 | C51: 8000000 | D51: 8000000
A52: Пројекат 0701-06 | B52: 1000000 | C52: 0 | D52: 1000000
A53: Пројекат 0701-07 | B53: 3000000 | C53: 0 | D53: 3000000
A54: Пројекат 0701-08 | B54: 3000000 | C54: 0 | D54: 3000000
A55: Пројекат 0701-09 | B55: 2500000 | C55: 0 | D55: 2500000
A56: Пројекат 0701-10 | B56: 3000000 | C56: 0 | D56: 3000000
A57: Пројекат 0701-11 | B57: 1725000 | C57: 0 | D57: 1725000
A58: Пројекат 0701-12 | B58: 500000 | C58: 0 | D58: 500000
A59: Пројекат 0701-13 | B59: 600000 | C59: 0 | D59: 600000
A60: Пројекат 0701-15 | B60: 650000 | C60: 0 | D60: 650000
A61: Пројекат 0701-16 | B61: 400000 | C61: 0 | D61: 400000
A62: Пројекат 0701-17 | B62: 650000 | C62: 0 | D62: 650000
A63: Пројекат 0701-18 | B63: 650000 | C63: 0 | D63: 650000
A64: Пројекат 0701-19 | B64: 300000 | C64: 0 | D64: 300000
A65: Пројекат 0701-20 | B65: 650000 | C65: 0 | D65: 650000
A66: Пројекат 0701-21 | B66: 650000 | C66: 0 | D66: 650000
A67: Пројекат 0701-22 | B67: 650000 | C67: 0 | D67: 650000
A68: Пројекат 0701-23 | B68: 650000 | C68: 0 | D68: 650000
A69: Пројекат 0701-24 | B69: 650000 | C69: 0 | D69: 650000
A70: Пројекат 0701-25 | B70: 2480000 | C70: 0 | D70: 2480000
A71: Пројекат 0701-26 | B71: 495000 | C71: 0 | D71: 495000
A72: Пројекат 0701-27 | B72: 2500000 | C72: 0 | D72: 2500000
A73: Пројекат 0701-28 | B73: 700000 | C73: 0 | D73: 700000
A74: Пројекат 0701-29 | B74: 4050000 | C74: 0 | D74: 4050000
A75: Пројекат 0701-30 | B75: 400000 | C75: 0 | D75: 400000
A76: Пројекат 0701-31 | B76: 3000000 | C76: 0 | D76: 3000000
A77: Пројекат 0701-32 | B77: 2200000 | C77: 0 | D77: 2200000
A78: Пројекат 0701-33 | B78: 470000 | C78: 0 | D78: 470000
A79: Пројекат 0701-34 | B79: 1150000 | C79: 0 | D79: 1150000
A80: Пројекат 0701-35 | B80: 2000000 | C80: 0 | D80: 2000000
A81: Пројекат 0701-36 | B81: 1100000 | C81: 0 | D81: 1100000
A82: Пројекат 0701-37 | B82: 800000 | C82: 0 | D82: 800000
A83: Пројекат 0701-38 | B83: 1230000 | C83: 0 | D83: 1230000
A84: Пројекат 0701-39 | B84: 1200000 | C84: 0 | D84: 1200000
A85: Пројекат 0701-40 | B85: 320000 | C85: 0 | D85: 320000
A86: Пројекат 0701-41 | B86: 2300000 | C86: 0 | D86: 2300000
A87: Пројекат 0701-42 | B87: 1289000 | C87: 0 | D87: 1289000
A88: Пројекат 0701-43 | B88: 2800000 | C88: 0 | D88: 2800000
A89: Пројекат 0701-44 | B89: 660000 | C89: 0 | D89: 660000
A90: Пројекат 0701-45 | B90: 830000 | C90: 0 | D90: 830000
A91: Пројекат 0701-46 | B91: 1100000 | C91: 0 | D91: 1100000
A92: Пројекат 0701-47 | B92: 580000 | C92: 0 | D92: 580000
A93: Пројекат 0701-48 | B93: 300000 | C93: 0 | D93: 300000
A94: Пројекат 0701-49 | B94: 400000 | C94: 0 | D94: 400000
A95: Пројекат 0701-50 | B95: 450000 | C95: 0 | D95: 450000
A96: Пројекат 0701-51 | B96: 400000 | C96: 0 | D96: 400000
A97: Пројекат 0701-52 | B97: 520000 | C97: 0 | D97: 520000
A98: Пројекат 0701-53 | B98: 250000 | C98: 0 | D98: 250000
A99: Пројекат 0701-54 | B99: 830000 | C99: 0 | D99: 830000
A100: Пројекат 0701-55 | B100: 870000 | C100: 0 | D100: 870000
A101: Пројекат 0701-56 | B101: 550000 | C101: 0 | D101: 550000
A102: Пројекат 0701-57 | B102: 530000 | C102: 0 | D102: 530000
A103: Пројекат 0701-58 | B103: 1300000 | C103: 0 | D103: 1300000
A104: Пројекат 0701-59 | B104: 1600000 | C104: 0 | D104: 1600000
A105: Пројекат 0701-60 | B105: 530000 | C105: 0 | D105: 530000
A106: Пројекат 1201-01 | B106: 150000 | C106: 0 | D106: 150000
A107: Пројекат 1201-02 | B107: 150000 | C107: 0 | D107: 150000
A108: Пројекат 1201-03 | B108: 400000 | C108: 0 | D108: 400000
A109: Пројекат 1201-04: | B109: 250000 | C109: 0 | D109: 250000
A110: Пројекат 1301-01: | B110: 710000 | C110: 0 | D110: 710000
A111: Програмска активност 0401-0006: | B111: 2000000 | C111: 0 | D111: 2000000
A112: Пројекат 0701-14 | B112: 600000 | C112: 0 | D112: 600000
A113: Пројекат 0701-61 | B113: 4300000 | C113: 0 | D113: 4300000
A114: Пројекат 0701-62 | B114: 700000 | C114: 0 | D114: 700000
A115: Пројекат 0701-63 | B115: 520000 | C115: 0 | D115: 520000
A116: Пројекат 0701-64 | B116: 700000 | C116: 0 | D116: 700000
A117: Пројекат 0701-65 | B117: 680000 | C117: 0 | D117: 680000
A118: Пројекат 0701-66 | B118: 700000 | C118: 0 | D118: 700000
A119: Пројекат 0701-67 | B119: 2300000 | C119: 0 | D119: 2300000
A120: Пројекат 0701-68 | B120: 450000 | C120: 0 | D120: 450000
A121: Пројекат 0701-69 | B121: 430000 | C121: 0 | D121: 430000
A122: Пројекат 0701-70 | B122: 450000 | C122: 0 | D122: 450000
A123: Пројекат 0701-71 | B123: 400000 | C123: 0 | D123: 400000
A124: Пројекат 0701-72 | B124: 400000 | C124: 0 | D124: 400000
A125: Пројекат 0701-73 | B125: 500000 | C125: 0 | D125: 500000
A126: Пројекат 0701-74 | B126: 500000 | C126: 0 | D126: 500000
A127: Пројекат 0701-75 | B127: 735000 | C127: 0 | D127: 735000
A128: Пројекат 0701-76 | B128: 620000 | C128: 0 | D128: 620000
A129: Пројекат 0701-77 | B129: 480000 | C129: 0 | D129: 480000
A130: Пројекат 0701-78 | B130: 475000 | C130: 0 | D130: 475000
A131: Пројекат 0701-79 | B131: 450000 | C131: 0 | D131: 450000
A132: Пројекат 0701-80 | B132: 400000 | C132: 0 | D132: 400000
A133: Пројекат 0701-81 | B133: 680000 | C133: 0 | D133: 680000
A134: Пројекат 0701-82 | B134: 520000 | C134: 0 | D134: 520000
A135: Пројекат 0701-83 | B135: 600000 | C135: 0 | D135: 600000
A136: Пројекат 0701-84 | B136: 540000 | C136: 0 | D136: 540000
A137: Пројекат 0701-85 | B137: 1040000 | C137: 0 | D137: 1040000
A138: Пројекат 0701-86 | B138: 600000 | C138: 0 | D138: 600000
A139: Пројекат 0701-87 | B139: 2000000 | C139: 0 | D139: 2000000
A140: Пројекат 0701-88 | B140: 2000000 | C140: 0 | D140: 2000000
A141: Пројекат 0701-89 | B141: 450000 | C141: 0 | D141: 450000
A142: Пројекат 0701-90 | B142: 400000 | C142: 0 | D142: 400000
A143: Пројекат 0701-91 | B143: 400000 | C143: 0 | D143: 400000
A144: Пројекат 0701-92 | B144: 2000000 | C144: 0 | D144: 2000000
A145: Пројекат 0701-93 | B145: 400000 | C145: 0 | D145: 400000
A146: Пројекат 0701-94 | B146: 1200000 | C146: 0 | D146: 1200000
A147: Пројекат 0701-95 | B147: 400000 | C147: 0 | D147: 400000
A148: Grand Total | B148: 829804000 | C148: 334696000 | D148: 1164500000

Sheet Troškovi 2018
A1: Раздео | B1: Глава | C1: Програмска активност | D1: Функција | E1: Позиција | F1: Економска класификација | G1: ОПИС | H1: Средства из буџета | I1: Средства из буџета републике | J1: Средства из сопствених извора | K1: Укупно
A2: 1 | B2: 2 | C2: 3 | D2: 4 | E2: 5 | F2: 6 | G2: 7 | H2: 8 | I2: 9 | J2: 10 | K2: 10
A3: 1 | B3: 1.01 | G3: СКУПШТИНА ОПШТИНЕ
C4: 2101 | G4: ПРОГРАМ 16: ПОЛИТИЧКИ СИСТЕМ ЛОКАЛНЕ САМОУПРАВЕ | L4: =H4+I4+J4 -> 0 | M4: =K4-L4 -> 0
C5: 2101-0001 | G5: Функционисање скупштине | L5: 0 | M5: 0
D6: 111 | G6: Извршни и законодавни органи, финансијски и фискални послови | L6: 0 | M6: 0
E7: 1 | F7: 411 | G7: Плате, додаци и накнаде запосленима | H7: =2400000*1.05 -> 2520000 | K7: =H7+I7+J7 -> 2520000 | L7: =H7+I7+J7 -> 2520000 | M7: =K7-L7 -> 0 | Q7: =IF(E7>0,H7,0) -> 2520000 | R7: =IF(E7=0,H7,"") -> 
E8: 2 | F8: 412 | G8: Социјални доприноси на терет послодавца | H8: 451100 | K8: 451100 | L8: =H8+I8+J8 -> 451100 | M8: =K8-L8 -> 0 | Q8: =IF(E8>0,H8,0) -> 451100 | R8: =IF(E8=0,H8,"") -> 
E9: 3 | F9: 414 | G9: Социјална давања запосленима | H9: 100000 | K9: 100000 | L9: 100000 | M9: 0 | Q9: 100000
E10: 4 | F10: 416 | G10: Награде, бонуси и остали пословни расхода | H10: 5000 | K10: 5000 | L10: 5000 | M10: 0 | Q10: 5000
E11: 5 | F11: 422 | G11: Трошкови путовања | H11: 100000 | K11: 100000 | L11: 100000 | M11: 0 | Q11: 100000
E12: 6 | F12: 423 | G12: Услуге по уговору | H12: 15600000 | K12: 15600000 | L12: 15600000 | M12: 0 | Q12: 15600000
E13: 7 | F13: 426 | G13: Материјал | H13: 50000 | K13: 50000 | L13: 50000 | M13: 0 | Q13: 50000
E14: 8 | F14: 465 | G14: Остале текуће донације по закону | H14: 350000 | K14: 350000 | L14: 350000 | M14: 0 | Q14: 350000
E15: 9 | F15: 481 | G15: Дотација - редован рад политичких странака (порески приходи*0,105%) | H15: 367000 | K15: 367000 | L15: 367000 | M15: 0 | Q15: 367000
G16: Функција 111: | H16: =SUBTOTAL(9,H7:H15) -> 19543100 | I16: =SUBTOTAL(9,I7:I15) -> 0 | J16: =SUBTOTAL(9,J7:J15) -> 0 | K16: =SUBTOTAL(9,K7:K15) -> 19543100 | L16: 19543100 | M16: 0 | Q16: 0 | R16: 19543100
G17: Програмска активност 2101-0001: | H17: =SUBTOTAL(9,H7:H15) -> 19543100 | I17: =SUBTOTAL(9,I7:I15) -> 0 | J17: =SUBTOTAL(9,J7:J15) -> 0 | K17: =SUBTOTAL(9,K7:K15) -> 19543100 | L17: 19543100 | M17: 0 | Q17: 0 | R17: 19543100
L18: 0 | M18: 0 | Q18: 0 | R18: 0
B19: 2 | C19: 2101-0003 | G19: Подршка раду извршних органа власти и скупштине | K19: =H19+I19+J19 -> 0 | L19: 0 | M19: 0 | Q19: 0 | R19: 0
D20: 111 | G20: Извршни и законодавни органи | K20: 0 | L20: 0 | M20: 0 | Q20: 0 | R20: 0
E21: 10 | F21: 423 | G21: Услуге по уговору | H21: 2750000 | K21: 2750000 | L21: 2750000 | M21: 0 | Q21: 2750000
E22: 11 | F22: 481 | G22: Дотације - Савет за безбедност општине Бујановац | H22: 800000 | K22: 800000 | L22: 800000 | M22: 0 | Q22: 800000
E23: 12 | F23: 481 | G23: Дотације - Савет за међунационалне односе | H23: 200000 | K23: 200000 | L23: 200000 | M23: 0 | Q23: 200000
E24: 13 | F24: 481 | G24: Дотације - Савет за родну равноправност | H24: 200000 | K24: 200000 | L24: 200000 | M24: 0 | Q24: 200000
G25: Функција 111: | H25: =SUBTOTAL(9,H21:H24) -> 3950000 | I25: =SUBTOTAL(9,I21:I24) -> 0 | J25: 0 | K25: 3950000 | L25: 3950000 | M25: 0 | Q25: 0 | R25: 3950000
G26: Програмска активност 2101-0003: | H26: =SUBTOTAL(9,H21:H24) -> 3950000 | I26: =SUBTOTAL(9,I21:I24) -> 0 | J26: 0 | K26: 3950000 | L26: 3950000 | M26: 0 | Q26: 0 | R26: 3950000
G27: УКУПНО ЗА ГЛАВУ 1.01: | H27: =SUBTOTAL(9,H7:H26) -> 23493100 | I27: =SUBTOTAL(9,I7:I26) -> 0 | J27: 0 | K27: 23493100 | L27: 23493100 | M27: 0 | Q27: 0 | R27: 23493100
G28: УКУПНО ЗА РАЗДЕО 1: | H28: =SUBTOTAL(9,H7:H27) -> 23493100 | I28: =SUBTOTAL(9,I7:I27) -> 0 | J28: 0 | K28: 23493100 | L28: 23493100 | M28: 0 | Q28: 0 | R28: 23493100
K29: =H29+I29+J29 -> 0 | L29: 0 | M29: 0 | Q29: 0 | R29: 0
A30: 2 | B30: 2.01 | G30: ПРЕДСЕДНИК ОПШТИНЕ | K30: 0 | L30: 0 | M30: 0 | Q30: 0 | R30: 0
C31: 2101 | G31: ПРОГРАМ 16: ПОЛИТИЧКИ СИСТЕМ ЛОКАЛНЕ САМОУПРАВЕ | K31: 0 | L31: 0 | M31: 0 | Q31: 0 | R31: 0
C32: 2101-0002 | G32: Функционисање извршних органа | K32: 0 | L32: 0 | M32: 0 | Q32: 0 | R32: 0
D33: 111 | G33: Извршни и законодавни органи | K33: 0 | L33: 0 | M33: 0 | Q33: 0 | R33: 0
E34: 14 | F34: 411 | G34: Плате, додаци и накнаде запосленима | H34: 2635000 | K34: 2635000 | L34: 2635000 | M34: 0 | Q34: 2635000
E35: 15 | F35: 412 | G35: Социјални доприноси на терет послодавца | H35: 400000 | K35: 400000 | L35: 400000 | M35: 0 | Q35: 400000
E36: 16 | F36: 414 | G36: Социјална давања запосленима | H36: 50000 | K36: 50000 | L36: 50000 | M36: 0 | Q36: 50000
E37: 17 | F37: 416 | G37: Награде, бонуси и остали пословни расхода | H37: 100000 | K37: 100000 | L37: 100000 | M37: 0 | Q37: 100000
E38: 18 | F38: 422 | G38: Трошкови путовања | H38: 500000 | K38: 500000 | L38: 500000 | M38: 0 | Q38: 500000
E39: 19 | F39: 423 | G39: Услуге по уговору | H39: 2370000 | K39: 2370000 | L39: 2370000 | M39: 0 | Q39: 2370000
E40: 20 | F40: 426 | G40: Материјал | H40: 50000 | K40: 50000 | L40: 50000 | M40: 0 | Q40: 50000
E41: 21 | F41: 465 | G41: Остале текуће донације по закону | H41: 350000 | K41: 350000 | L41: 350000 | M41: 0 | Q41: 350000
G42: Функција 111: | H42: =SUBTOTAL(9,H34:H41) -> 6455000 | I42: =SUBTOTAL(9,I34:I41) -> 0 | J42: =SUBTOTAL(9,J34:J41) -> 0 | K42: =SUBTOTAL(9,K34:K41) -> 6455000 | L42: 6455000 | M42: 0 | Q42: 0 | R42: 6455000
G43: Програмска активност 2101-0002: | H43: =SUBTOTAL(9,H34:H41) -> 6455000 | I43: =SUBTOTAL(9,I34:I41) -> 0 | J43: =SUBTOTAL(9,J34:J41) -> 0 | K43: =SUBTOTAL(9,K34:K41) -> 6455000 | L43: 6455000 | M43: 0 | Q43: 0 | R43: 6455000
C44: 2101-0002 | G44: Функционисање извршних органа | K44: =H44+I44+J44 -> 0 | L44: 0 | M44: 0 | Q44: 0 | R44: 0
D45: 111 | G45: Извршни и законодавни органи | K45: 0 | L45: 0 | M45: 0 | Q45: 0 | R45: 0
E46: 22 | F46: 423 | G46: Обележавање дана Општине Бујановац | H46: 200000 | K46: 200000 | L46: 200000 | M46: 0 | Q46: 200000
E47: 23 | F47: 423 | G47: Обележавање дана дијаспоре | H47: 150000 | K47: 150000 | L47: 150000 | M47: 0 | Q47: 150000
G48: Функција 111: | H48: =SUBTOTAL(9,H46:H47) -> 350000 | I48: =SUBTOTAL(9,I46:I47) -> 0 | J48: 0 | K48: 350000 | L48: 350000 | M48: 0 | Q48: 0 | R48: 350000
G49: Програмска активност 2101-0002: | H49: =SUBTOTAL(9,H46:H47) -> 350000 | I49: =SUBTOTAL(9,I46:I47) -> 0 | J49: 0 | K49: 350000 | L49: 350000 | M49: 0 | Q49: 0 | R49: 350000
G50: УКУПНО ЗА ГЛАВУ 2.01: | H50: =SUBTOTAL(9,H34:H49) -> 6805000 | I50: =SUBTOTAL(9,I34:I49) -> 0 | J50: 0 | K50: 6805000 | L50: 6805000 | M50: 0 | Q50: 0 | R50: 6805000
G51: УКУПНО ЗА РАЗДЕО 2: | H51: =SUBTOTAL(9,H34:H50) -> 6805000 | I51: =SUBTOTAL(9,I34:I50) -> 0 | J51: 0 | K51: 6805000 | L51: 6805000 | M51: 0 | Q51: 0 | R51: 6805000
L52: 0 | M52: 0 | Q52: 0 | R52: 0
A53: 3 | B53: 3.01 | G53: ОПШТИНСКО ВЕЋЕ | K53: =H53+I53+J53 -> 0 | L53: 0 | M53: 0 | Q53: 0 | R53: 0
C54: 2101 | G54: ПРОГРАМ 16: ПОЛИТИЧКИ СИСТЕМ ЛОКАЛНЕ САМОУПРАВЕ | K54: 0 | L54: 0 | M54: 0 | Q54: 0 | R54: 0
C55: 2101-0002 | G55: Функционисање извршних органа | K55: 0 | L55: 0 | M55: 0 | Q55: 0 | R55: 0
D56: 111 | G56: Извршни и законодавни органи | K56: 0 | L56: 0 | M56: 0 | Q56: 0 | R56: 0
E57: 24 | F57: 423 | G57: Услуге по уговору | H57: 4315500 | K57: 4315500 | L57: 4315500 | M57: 0 | Q57: 4315500
E58: 25 | F58: 426 | G58: Материјал | H58: 50000 | K58: 50000 | L58: 50000 | M58: 0 | Q58: 50000
G59: Функција 111: | H59: =SUBTOTAL(9,H57:H58) -> 4365500 | I59: =SUBTOTAL(9,I57:I58) -> 0 | J59: 0 | K59: 4365500 | L59: 4365500 | M59: 0 | Q59: 0 | R59: 4365500
G60: Програмска активност 2101-0002: | H60: =SUBTOTAL(9,H57:H58) -> 4365500 | I60: =SUBTOTAL(9,I57:I58) -> 0 | J60: 0 | K60: 4365500 | L60: 4365500 | M60: 0 | Q60: 0 | R60: 4365500
L61: 0 | M61: 0 | Q61: 0 | R61: 0
C62: 2101-0003 | G62: Подршка раду извршних органа власти и скупштине | K62: =H62+I62+J62 -> 0 | L62: 0 | M62: 0 | Q62: 0 | R62: 0
D63: 111 | G63: Извршни и законодавни органи - рад комисија | K63: =H63+I63+J63 -> 0 | L63: 0 | M63: 0 | Q63: 0 | R63: 0
E64: 26 | F64: 423 | G64: Услуге по уговору | H64: 3500000 | K64: =H64+I64+J64 -> 3500000 | L64: 3500000 | M64: 0 | Q64: 3500000
G65: Функција 111: | H65: =SUBTOTAL(9,H64) -> 3500000 | I65: =SUBTOTAL(9,I64) -> 0 | J65: 0 | K65: 3500000 | L65: 3500000 | M65: 0 | Q65: 0 | R65: 3500000
G66: Програмска активност 2101-0003: | H66: =SUBTOTAL(9,H64) -> 3500000 | I66: =SUBTOTAL(9,I64) -> 0 | J66: 0 | K66: 3500000 | L66: 3500000 | M66: 0 | Q66: 0 | R66: 3500000
G67: УКУПНО ЗА ГЛАВУ 3.01: | H67: =SUBTOTAL(9,H57:H66) -> 7865500 | I67: =SUBTOTAL(9,I57:I66) -> 0 | J67: 0 | K67: 7865500 | L67: 7865500 | M67: 0 | Q67: 0 | R67: 7865500
G68: УКУПНО ЗА РАЗДЕО 3: | H68: =SUBTOTAL(9,H57:H67) -> 7865500 | I68: =SUBTOTAL(9,I57:I67) -> 0 | J68: 0 | K68: 7865500 | L68: 7865500 | M68: 0 | Q68: 0 | R68: 7865500
L69: 0 | M69: 0 | Q69: 0 | R69: 0
A70: 4 | B70: 4.01 | G70: ПРАВОБРАНИЛАШТВО ОПШТИНЕ БУЈАНОВАЦ | K70: =H70+I70+J70 -> 0 | L70: 0 | M70: 0 | Q70: 0 | R70: 0
C71: 0602 | G71: ПРОГРАМ 15: ЛОКАЛНА САМОУПРАВА | K71: 0 | L71: 0 | M71: 0 | Q71: 0 | R71: 0
C72: 0602-0004 | G72: Правобранилаштво општине Бујановац | K72: 0 | L72: =H72+I72+J72 -> 0 | M72: =K72-L72 -> 0 | Q72: =IF(E72>0,H72,0) -> 0 | R72: =IF(E72=0,H72,"") -> 0
D73: 330 | G73: Судови | K73: 0 | L73: 0 | M73: 0 | Q73: 0 | R73: 0
E74: 27 | F74: 411 | G74: Плате, додаци и накнаде запосленима | H74: 1800000 | K74: 1800000 | L74: 1800000 | M74: 0 | Q74: 1800000
E75: 28 | F75: 412 | G75: Социјални доприноси на терет послодавца | H75: 322200 | K75: 322200 | L75: 322200 | M75: 0 | Q75: 322200
E76: 29 | F76: 422 | G76: Трошкови путовања | H76: 20000 | K76: 20000 | L76: 20000 | M76: 0 | Q76: 20000
E77: 30 | F77: 423 | G77: Услуге по уговору | H77: 100000 | K77: 100000 | L77: 100000 | M77: 0 | Q77: 100000
E78: 31 | F78: 426 | G78: Материјал | H78: 10000 | K78: 10000 | L78: 10000 | M78: 0 | Q78: 10000
E79: 32 | F79: 465 | G79: Остале текуће донације по закону | H79: 220000 | K79: 220000 | L79: 220000 | M79: 0 | Q79: 220000
E80: 33 | F80: 483 | G80: Новчане казне и пенали по решењу судова | H80: 3000000 | K80: 3000000 | L80: 3000000 | M80: 0 | Q80: 3000000
G81: Функција 330: | H81: =SUBTOTAL(9,H74:H80) -> 5472200 | I81: =SUBTOTAL(9,I74:I80) -> 0 | J81: 0 | K81: 5472200 | L81: 5472200 | M81: 0 | Q81: 0 | R81: 5472200
G82: Програмска активност 0602-0004: | H82: =SUBTOTAL(9,H74:H80) -> 5472200 | I82: =SUBTOTAL(9,I74:I80) -> 0 | J82: 0 | K82: 5472200 | L82: 5472200 | M82: 0 | Q82: 0 | R82: 5472200
G83: УКУПНО ЗА ГЛАВУ 4.01: | H83: =SUBTOTAL(9,H74:H80) -> 5472200 | I83: =SUBTOTAL(9,I74:I80) -> 0 | J83: 0 | K83: 5472200 | L83: 5472200 | M83: 0 | Q83: 0 | R83: 5472200
G84: УКУПНО ЗА РАЗДЕО 4: | H84: =SUBTOTAL(9,H74:H83) -> 5472200 | I84: =SUBTOTAL(9,I74:I83) -> 0 | J84: 0 | K84: 5472200 | L84: 5472200 | M84: 0 | Q84: 0 | R84: 5472200
K85: =H85+I85+J85 -> 0 | L85: 0 | M85: 0 | Q85: 0 | R85: 0
A86: 5 | B86: 5.01 | G86: ОПШТИНСКА УПРАВА | K86: 0 | L86: 0 | M86: 0 | Q86: 0 | R86: 0
C87: 0602 | G87: ПРОГРАМ 15: ЛОКАЛНА САМОУПРАВА | K87: 0 | L87: 0 | M87: 0 | Q87: 0 | R87: 0
C88: 0602-0001 | G88: Функционисање локалне самоуправе и градских општина | K88: 0 | L88: 0 | M88: 0 | Q88: 0 | R88: 0
D89: 130 | G89: Опште јавне услуге | K89: 0 | L89: 0 | M89: 0 | Q89: 0 | R89: 0
E90: 34 | F90: 411 | G90: Плате, додаци и накнаде запосленима | H90: 107500000 | K90: 107500000 | L90: 107500000 | M90: 0 | Q90: 107500000
E91: 35 | F91: 412 | G91: Социјални доприноси на терет послодавца | H91: 19245000 | K91: 19245000 | L91: 19245000 | M91: 0 | Q91: 19245000
E92: 36 | F92: 413 | G92: Накнаде у натури | H92: 10000 | K92: 10000 | L92: 10000 | M92: 0 | Q92: 10000
E93: 37 | F93: 414 | G93: Социјална давања запосленима | H93: =4607900+392100 -> 5000000 | K93: 5000000 | L93: 5000000 | M93: 0 | Q93: 5000000
E94: 38 | F94: 415 | G94: Накнаде трошкова за запослене | H94: 5000000 | K94: 5000000 | L94: 5000000 | M94: 0 | Q94: 5000000
E95: 39 | F95: 416 | G95: Награде, бонуси и остали пословни расхода | H95: 1500000 | K95: 1500000 | L95: 1500000 | M95: 0 | Q95: 1500000
E96: 40 | F96: 421 | G96: Стални трошкови | H96: =12000000-500000-200000 -> 11300000 | K96: 11300000 | L96: 11300000 | M96: 0 | Q96: 11300000
E97: 41 | F97: 422 | G97: Трошкови путовања | H97: =2000000-300000 -> 1700000 | K97: 1700000 | L97: 1700000 | M97: 0 | Q97: 1700000
E98: 42 | F98: 423 | G98: Услуге по уговору | H98: 10000000 | K98: 10000000 | L98: 10000000 | M98: 0 | Q98: 10000000
E99: 43 | F99: 424 | G99: Специјализоване услуге | H99: 500000 | K99: 500000 | L99: 500000 | M99: 0 | Q99: 500000
E100: 44 | F100: 425 | G100: Текуће поправке и одржавање | H100: =2500000-200000 -> 2300000 | K100: 2300000 | L100: 2300000 | M100: 0 | Q100: 2300000
E101: 45 | F101: 426 | G101: Материјал | H101: =11500000-1500000-300000+100000-800000 -> 9000000 | K101: 9000000 | L101: 9000000 | M101: 0 | Q101: 9000000
E102: 46 | F102: 465 | G102: Остале текуће донације по закону | H102: 11500000 | K102: 11500000 | L102: 11500000 | M102: 0 | Q102: 11500000
E103: 47 | F103: 482 | G103: Порези , обавезне таксе и казне | H103: =700000-200000 -> 500000 | K103: 500000 | L103: 500000 | M103: 0 | Q103: 500000
E104: 48 | F104: 483 | G104: Новчане казне и пенали по решењу судова | H104: 50000 | K104: 50000 | L104: 50000 | M104: 0 | Q104: 50000
E105: 49 | F105: 511 | G105: Зграде и грађевински објекти | H105: 10000 | K105: 10000 | L105: 10000 | M105: 0 | Q105: 10000
E106: 50 | F106: 512 | G106: Машине и опрема | H106: =5000000-500000 -> 4500000 | K106: 4500000 | L106: 4500000 | M106: 0 | Q106: 4500000
E107: 51 | F107: 515 | G107: Нематеријална имовина | H107: 200000 | K107: 200000 | L107: 200000 | M107: 0 | Q107: 200000
E108: 52 | F108: 541 | G108: Набавка земљишта | H108: 1000000 | K108: 1000000 | L108: 1000000 | M108: 0 | Q108: 1000000
G109: Функција 130: | H109: =SUBTOTAL(9,H90:H108) -> 190815000 | I109: =SUBTOTAL(9,I90:I107) -> 0 | J109: 0 | K109: =SUBTOTAL(9,K90:K108) -> 190815000 | L109: 190815000 | M109: 0 | Q109: 0 | R109: 190815000
G110: Програмска активност 0602-0001: | H110: =SUBTOTAL(9,H90:H108) -> 190815000 | I110: =SUBTOTAL(9,I90:I107) -> 0 | J110: 0 | K110: =SUBTOTAL(9,K90:K108) -> 190815000 | L110: 190815000 | M110: 0 | Q110: 0 | R110: 190815000
L111: 0 | M111: 0 | Q111: 0 | R111: 0
C112: 0602-0001 | G112: Подршка раду извршних органа власти и скупштине | K112: =H112+I112+J112 -> 0 | L112: 0 | M112: 0 | Q112: 0 | R112: 0
D113: 160 | G113: Опште јавне услуге које нису класификоване на другом месту | K113: 0 | L113: 0 | M113: 0 | Q113: 0 | R113: 0
E114: 53 | F114: 481 | G114: Дотације - Агенција за развој Бујановца и Прешева | H114: 400000 | K114: 400000 | L114: 400000 | M114: 0 | Q114: 400000
E115: 54 | F115: 481 | G115: Дотација - Центар за развој Пчињског и Јабланичког округа | H115: 200000 | K115: 200000 | L115: 200000 | M115: 0 | Q115: 200000
E116: 55 | F116: 481 | G116: Дотације - Привредна комора | H116: 400000 | K116: 400000 | L116: 400000 | M116: 0 | Q116: 400000
E117: 56 | F117: 481 | G117: Дотација - Стална конференција градова и општина (чланарина) | H117: 500000 | K117: 500000 | L117: 500000 | M117: 0 | Q117: 500000
E118: 57 | F118: 481 | G118: Дотација са страним донаторима - фондови ЕУ | H118: =4000000-2000000-300000 -> 1700000 | K118: 1700000 | L118: 1700000 | M118: 0 | Q118: 1700000
E119: 58 | F119: 481 | G119: Дотација - Налед | H119: 100000 | K119: 100000 | L119: 100000 | M119: 0 | Q119: 100000
E120: 59 | F120: 481 | G120: Дотације - Историјски архив Врање | H120: 463000 | K120: 463000 | L120: 463000 | M120: 0 | Q120: 463000
G121: Функција 160: | H121: =SUBTOTAL(9,H114:H120) -> 3763000 | I121: =SUBTOTAL(9,I114:I120) -> 0 | J121: 0 | K121: 3763000 | L121: 3763000 | M121: 0 | Q121: 0 | R121: 3763000
G122: Програмска активност 0602-0001: | H122: =SUBTOTAL(9,H114:H120) -> 3763000 | I122: =SUBTOTAL(9,I114:I120) -> 0 | J122: 0 | K122: 3763000 | L122: 3763000 | M122: 0 | Q122: 0 | R122: 3763000
K123: =H123+I123+J123 -> 0 | L123: 0 | M123: 0 | Q123: 0 | R123: 0
C124: 0602-0007 | G124: Функционисање националних савета националних мањина | K124: =H124+I124+J124 -> 0 | L124: 0 | M124: 0 | Q124: 0 | R124: 0
D125: 090 | G125: Социјална заштита некласификована на другом месту | K125: =H125+I125+J125 -> 0 | L125: 0 | M125: 0 | Q125: 0 | R125: 0
E126: 60 | F126: 481 | G126: Дотације невладиним организацијама - Декада Рома | H126: 1000000 | K126: =H126+I126+J126 -> 1000000 | L126: 1000000 | M126: 0 | Q126: 1000000
E127: 61 | F127: 481 | G127: Дотације невладиним организацијама - Национални савет Албанаца | H127: 3000000 | K127: =H127+I127+J127 -> 3000000 | L127: 3000000 | M127: 0 | Q127: 3000000
G128: Функција 090: | H128: =SUBTOTAL(9,H126:H127) -> 4000000 | I128: =SUBTOTAL(9,I126:I127) -> 0 | J128: =SUBTOTAL(9,J126:J127) -> 0 | K128: =SUBTOTAL(9,K126:K127) -> 4000000 | L128: 4000000 | M128: 0 | Q128: 0 | R128: 4000000
G129: Програмска активност 0602-0007: | H129: =SUBTOTAL(9,H126:H127) -> 4000000 | I129: =SUBTOTAL(9,I126:I127) -> 0 | J129: =SUBTOTAL(9,J126:J127) -> 0 | K129: =SUBTOTAL(9,K126:K127) -> 4000000 | L129: 4000000 | M129: 0 | Q129: 0 | R129: 4000000
L130: 0 | M130: 0 | Q130: 0 | R130: 0
C131: 0602-0009 | G131: Текућа буџетска резерва | K131: =H131+I131+J131 -> 0 | L131: 0 | M131: 0 | Q131: 0 | R131: 0
D132: 130 | G132: Опште јавне услуге | K132: =H132+I132+J132 -> 0 | L132: 0 | M132: 0 | Q132: 0 | R132: 0
E133: 62 | F133: 49912 | G133: Текућа резерва | H133: =20000000-5000000-5000000+1500000 -> 11500000 | K133: =H133+I133+J133 -> 11500000 | L133: 11500000 | M133: 0 | Q133: 11500000
G134: Функција 130: | H134: =SUBTOTAL(9,H133) -> 11500000 | I134: =SUBTOTAL(9,I133) -> 0 | J134: 0 | K134: 11500000 | L134: 11500000 | M134: 0 | Q134: 0 | R134: 11500000
G135: Програмска активност 0602-0009: | H135: =SUBTOTAL(9,H133) -> 11500000 | I135: =SUBTOTAL(9,I133) -> 0 | J135: 0 | K135: 11500000 | L135: 11500000 | M135: 0 | Q135: 0 | R135: 11500000
L136: =H136+I136+J136 -> 0 | M136: =K136-L136 -> 0 | Q136: =IF(E136>0,H136,0) -> 0 | R136: =IF(E136=0,H136,"") -> 0
C137: 0602-0010 | G137: Стална буџетска резерва | K137: =H137+I137+J137 -> 0 | L137: 0 | M137: 0 | Q137: 0 | R137: 0
D138: 130 | G138: Опште јавне услуге | K138: =H138+I138+J138 -> 0 | L138: 0 | M138: 0 | Q138: 0 | R138: 0
E139: 63 | F139: 49911 | G139: Стална резерва | H139: 500000 | K139: =H139+I139+J139 -> 500000 | L139: 500000 | M139: 0 | Q139: 500000
G140: Функција 130: | H140: =SUBTOTAL(9,H139) -> 500000 | I140: =SUBTOTAL(9,I139) -> 0 | J140: 0 | K140: 500000 | L140: 500000 | M140: 0 | Q140: 0 | R140: 500000
G141: Програмска активност 0602-0010: | H141: =SUBTOTAL(9,H139) -> 500000 | I141: =SUBTOTAL(9,I139) -> 0 | J141: 0 | K141: 500000 | L141: 500000 | M141: 0 | Q141: 0 | R141: 500000
K142: =H142+I142+J142 -> 0 | L142: 0 | M142: 0 | Q142: 0 | R142: 0
C143: 0602-0014 | G143: Ванредне ситуације | K143: =H143+I143+J143 -> 0 | L143: 0 | M143: 0 | Q143: 0 | R143: 0
D144: 160 | G144: Опште јавне услуге које нису класификоване на другом месту | K144: =H144+I144+J144 -> 0 | L144: 0 | M144: 0 | Q144: 0 | R144: 0
E145: 64 | F145: 423 | G145: Услуге по уговору | H145: 400000 | K145: =H145+I145+J145 -> 400000 | L145: 400000 | M145: 0 | Q145: 400000
E146: 65 | F146: 425 | G146: Текуће поправке и одржавање | H146: 1100000 | K146: =H146+I146+J146 -> 1100000 | L146: 1100000 | M146: 0 | Q146: 1100000
G147: Функција 160: | H147: =SUBTOTAL(9,H145:H146) -> 1500000 | I147: =SUBTOTAL(9,I145:I146) -> 0 | J147: 0 | K147: 1500000 | L147: 1500000 | M147: 0 | Q147: 0 | R147: 1500000
G148: Програмска активност 0602-0014: | H148: =SUBTOTAL(9,H145:H146) -> 1500000 | I148: =SUBTOTAL(9,I145:I146) -> 0 | J148: 0 | K148: 1500000 | L148: 1500000 | M148: 0 | Q148: 0 | R148: 1500000
L149: 0 | M149: 0 | Q149: 0 | R149: 0
G150: ПРОГРАМ 1: ЛОКАЛНИ РАЗВОЈ И ПРОСТОРНО ПЛАНИРАЊЕ | K150: =H150+I150+J150 -> 0 | L150: 0 | M150: 0 | Q150: 0 | R150: 0
C151: 1101-0001 | G151: Просторно и урбанистичко планирање | K151: 0 | L151: 0 | M151: 0 | Q151: 0 | R151: 0
D152: 160 | G152: Опште јавне услуге које нису класификоване на другом месту | K152: 0 | L152: 0 | M152: 0 | Q152: 0 | R152: 0
E153: 66 | F153: 511 | G153: Зграде и грађевински објекти - Израда пројектне документације | H153: 5000000 | K153: 5000000 | L153: 5000000 | M153: 0 | Q153: 5000000
G154: Функција 160: | H154: =SUBTOTAL(9,H153) -> 5000000 | I154: =SUBTOTAL(9,I153) -> 0 | J154: 0 | K154: 5000000 | L154: 5000000 | M154: 0 | Q154: 0 | R154: 5000000
L155: 0 | M155: 0 | Q155: 0 | R155: 0
D156: 620 | G156: ЈП "ДИРЕКЦИЈА ЗА ГРАЂЕВИНСКО ЗЕМЉИШТЕ, УРБАНИЗАМ, ПУТЕВЕ И СТАМБЕНЕ ПОСЛОВЕ ОПШТИНЕ БУЈАНОВАЦ" - у Ликвидацији По Закључку о давању сагласности СО Бујановац број 04-73/2017 од 05.10.2017. године на Почетни ликвидациони извештај - број решења АПР: БД 39792/2017 - део обавеза | L156: 0 | M156: 0 | Q156: 0 | R156: 0
E157: 67 | F157: 423 | G157: Услуге по уговору - надокнада ликвидационом управнику | H157: =12*80000 -> 960000 | K157: =H157+I157+J157 -> 960000 | L157: 960000 | M157: 0 | Q157: 960000
E158: 68 | F158: 483 | G158: Новчане казне и пенали по решењу судова | H158: 10000000 | K158: =H158+I158+J158 -> 10000000 | L158: 10000000 | M158: 0 | Q158: 10000000
G159: Функција 620: | H159: =SUBTOTAL(9,H157:H158) -> 10960000 | I159: =SUBTOTAL(9,I157:I158) -> 0 | J159: 0 | K159: 10960000 | L159: 10960000 | M159: 0 | Q159: 0 | R159: 10960000
G160: Програмска активност 1101-0001: | H160: =SUBTOTAL(9,H153:H159) -> 15960000 | I160: =SUBTOTAL(9,I153:I159) -> 0 | J160: 0 | K160: 15960000 | L160: 15960000 | M160: 0 | Q160: 0 | R160: 15960000
L161: 0 | M161: 0 | Q161: 0 | R161: 0
C162: 1102 | G162: ПРОГРАМ 2: КОМУНАЛНА ДЕЛАТНОСТ | K162: =H162+I162+J162 -> 0 | L162: 0 | M162: 0 | Q162: 0 | R162: 0
C163: 1102-0001 | G163: Јавна расвета | K163: 0 | L163: 0 | M163: 0 | Q163: 0 | R163: 0
D164: 640 | G164: Улична расвета | K164: 0 | L164: 0 | M164: 0 | Q164: 0 | R164: 0
E165: 69 | F165: 421 | G165: Стални трошкови | H165: 17000000 | K165: 17000000 | L165: 17000000 | M165: 0 | Q165: 17000000
E166: 70 | F166: 425 | G166: Текуће поправке и одржавање | H166: 3500000 | K166: 3500000 | L166: 3500000 | M166: 0 | Q166: 3500000
G167: Функција 640: | H167: =SUBTOTAL(9,H165:H166) -> 20500000 | I167: =SUBTOTAL(9,I165:I166) -> 0 | J167: =SUBTOTAL(9,J165:J166) -> 0 | K167: =SUBTOTAL(9,K165:K166) -> 20500000 | L167: 20500000 | M167: 0 | Q167: 0 | R167: 20500000
G168: Програмска активност 1102-0001: | H168: =SUBTOTAL(9,H165:H166) -> 20500000 | I168: =SUBTOTAL(9,I165:I166) -> 0 | J168: =SUBTOTAL(9,J165:J166) -> 0 | K168: =SUBTOTAL(9,K165:K166) -> 20500000 | L168: 20500000 | M168: 0 | Q168: 0 | R168: 20500000
L169: 0 | M169: 0 | Q169: 0 | R169: 0
C170: 1102-0002 | G170: Уређење и одржавање зеленила | K170: =H170+I170+J170 -> 0 | L170: 0 | M170: 0 | Q170: 0 | R170: 0
D171: 660 | G171: Послови становања и заједнице некласификоване на другом месту | K171: =H171+I171+J171 -> 0 | L171: 0 | M171: 0 | Q171: 0 | R171: 0
E172: 71 | F172: 424 | G172: Специјализоване услуге - одржавање зеленила | H172: 1000000 | K172: =H172+I172+J172 -> 1000000 | L172: 1000000 | M172: 0 | Q172: 1000000
G173: Функција 660: | H173: =SUBTOTAL(9,H172) -> 1000000 | I173: =SUBTOTAL(9,I172) -> 0 | J173: 0 | K173: 1000000 | L173: 1000000 | M173: 0 | Q173: 0 | R173: 1000000
G174: Програмска активност 1102-0002: | H174: =SUBTOTAL(9,H172) -> 1000000 | I174: =SUBTOTAL(9,I172) -> 0 | J174: 0 | K174: 1000000 | L174: 1000000 | M174: 0 | Q174: 0 | R174: 1000000
L175: 0 | M175: 0 | Q175: 0 | R175: 0
C176: 1102-0003 | G176: Јавна хигијена | K176: =H176+I176+J176 -> 0 | L176: 0 | M176: 0 | Q176: 0 | R176: 0
D177: 660 | G177: Послови становања и заједнице некласификоване на другом месту | K177: 0 | L177: 0 | M177: 0 | Q177: 0 | R177: 0
E178: 72 | F178: 424 | G178: Специјализоване услуге - метење улица | H178: 9000000 | K178: 9000000 | L178: 9000000 | M178: 0 | Q178: 9000000
G179: Функција 660: | H179: =SUBTOTAL(9,H178) -> 9000000 | I179: =SUBTOTAL(9,I178) -> 0 | J179: 0 | K179: 9000000 | L179: 9000000 | M179: 0 | Q179: 0 | R179: 9000000
G180: Програмска активност 1102-0003: | H180: =SUBTOTAL(9,H178) -> 9000000 | I180: =SUBTOTAL(9,I178) -> 0 | J180: 0 | K180: 9000000 | L180: 9000000 | M180: 0 | Q180: 0 | R180: 9000000
L181: 0 | M181: 0 | Q181: 0 | R181: 0
C182: 1102-0004 | G182: Зоохигијена | K182: =H182+I182+J182 -> 0 | L182: 0 | M182: 0 | Q182: 0 | R182: 0
D183: 160 | G183: Опште јавне услуге некласификоване на другом месту | K183: =H183+I183+J183 -> 0 | L183: 0 | M183: 0 | Q183: 0 | R183: 0
E184: 73 | F184: 483 | G184: Новчане казне и пенали по решењу судова | H184: 200000 | K184: =H184+I184+J184 -> 200000 | L184: 200000 | M184: 0 | Q184: 200000
E185: 74 | F185: 485 | G185: Накнаде штете за повреде или штете нанете од стране државних органа | H185: 1000000 | K185: =H185+I185+J185 -> 1000000 | L185: 1000000 | M185: 0 | Q185: 1000000
G186: Функција 160: | H186: =SUBTOTAL(9,H184:H185) -> 1200000 | I186: =SUBTOTAL(9,I184:I185) -> 0 | J186: 0 | K186: 1200000 | L186: 1200000 | M186: 0 | Q186: 0 | R186: 1200000
G187: Програмска активност 1102-0004: | H187: =SUBTOTAL(9,H184:H185) -> 1200000 | I187: =SUBTOTAL(9,I184:I185) -> 0 | J187: 0 | K187: 1200000 | L187: 1200000 | M187: 0 | Q187: 0 | R187: 1200000
L188: 0 | M188: 0
C189: 1102-0008 | G189: Водоснабдевање | K189: =H189+I189+J189 -> 0 | L189: 0 | M189: 0 | Q189: 0 | R189: 0
D190: 630 | G190: Водоснабдевање | K190: =H190+I190+J190 -> 0 | L190: 0 | M190: 0 | Q190: 0 | R190: 0
E191: 75 | F191: 423 | G191: Услуге по уговору - снабдевање пијаћом водом | H191: 250000 | K191: =H191+I191+J191 -> 250000 | L191: 250000 | M191: 0 | Q191: 250000
E192: 76 | F192: 451 | G192: Реализација посебног програма ЈП "Комуналац" Бујановац | H192: 25000000 | K192: =H192+I192+J192 -> 25000000 | L192: 25000000 | M192: 0 | Q192: 25000000
G193: Функција 630: | H193: =SUBTOTAL(9,H191:H192) -> 25250000 | I193: =SUBTOTAL(9,I191:I192) -> 0 | J193: 0 | K193: 25250000 | L193: 25250000 | M193: 0 | Q193: 0 | R193: 25250000
G194: Програмска активност 1102-0008: | H194: =SUBTOTAL(9,H191:H192) -> 25250000 | I194: =SUBTOTAL(9,I191:I192) -> 0 | J194: 0 | K194: 25250000 | L194: 25250000 | M194: 0 | Q194: 0 | R194: 25250000
L195: 0 | M195: 0 | Q195: 0 | R195: 0
C196: 1501 | G196: ПРОГРАМ 3: ЛОКАЛНИ ЕКОНОМСКИ РАЗВОЈ | K196: =H196+I196+J196 -> 0 | L196: 0 | M196: 0 | Q196: 0 | R196: 0
C197: 1501-0002 | G197: Стручна пракса 2018 | K197: =H197+I197+J197 -> 0 | L197: 0 | M197: 0 | Q197: 0 | R197: 0
D198: 411 | G198: Општи економски и комерцијални послови | K198: =H198+I198+J198 -> 0 | L198: 0 | M198: 0 | Q198: 0 | R198: 0
E199: 77 | F199: 463 | G199: Текући трансфери осталим нивоима власти | H199: 20000000 | K199: =H199+I199+J199 -> 20000000 | L199: 20000000 | M199: 0 | Q199: 20000000
G200: Функција 411: | H200: =SUBTOTAL(9,H199) -> 20000000 | I200: =SUBTOTAL(9,I199) -> 0 | J200: 0 | K200: 20000000 | L200: =H200+I200+J200 -> 20000000 | M200: =K200-L200 -> 0 | Q200: 0 | R200: 20000000
... 936 more rows

Sheet Прог.актив.
A1: ^lan 7.
A2: Sredstva buxeta u iznosu od 829.804.000,00 dinara, sredstva iz buxeta Republike u iznosu od 334.696.000,00 dinara, utvr|eni su i raspore|eni po programskoj klasifikaciji u 2018. godinи:
A4: Шифра | C4: Назив | D4: Средства из буџета | E4: Средства из буџета републике | F4: Укупна средства | G4: Надлежни орган
A5: Програм | B5: Програмска активност/ Пројекат
A6: 1 | B6: 2 | C6: 3 | D6: 4 | E6: 5 | F6: 6 | G6: 7
A7: 1101 | C7: Програм 1. Локални развој и просторно планирање | D7: =SUBTOTAL(9,D8:D8) -> 15960000 | E7: =SUBTOTAL(9,E8:E8) -> 0 | F7: =SUBTOTAL(9,F8:F8) -> 15960000
B8: 1101-0001 | C8: Стратешко, просторно и урбанистичко планирање | D8: 15960000 | F8: =D8+E8 -> 15960000 | G8: Општинска управа
A9: 1102 | C9: Програм 2. Комунална делатност | D9: =SUBTOTAL(9,D10:D14) -> 56950000 | E9: =SUBTOTAL(9,E10:E14) -> 0 | F9: =SUBTOTAL(9,F10:F14) -> 56950000
B10: 1102-0001 | C10: Јавна расвета | D10: 20500000 | F10: =D10+E10 -> 20500000 | G10: Општинска управа
B11: 1102-0002 | C11: Уређење и одржавање зеленила | D11: 1000000 | F11: =D11+E11 -> 1000000 | G11: Општинска управа
B12: 1102-0003 | C12: Јавна хигијена | D12: 9000000 | F12: =D12+E12 -> 9000000 | G12: Општинска управа
B13: 1102-0004 | C13: Зоохигијена | D13: 1200000 | F13: =D13+E13 -> 1200000 | G13: Општинска управа
B14: 1102-0008 | C14: Водоснабдевање | D14: 25250000 | F14: =D14+E14 -> 25250000 | G14: Општинска управа
A15: 1501 | C15: Програм 3. Локални економски развој | D15: =SUBTOTAL(9,D16:D17) -> 35000000 | E15: =SUBTOTAL(9,E16:E17) -> 0 | F15: 35000000
B16: 1501-0002 | C16: Стручна пракса 2017 | D16: 20000000 | F16: =D16+E16 -> 20000000 | G16: Општинска управа
B17: 1501-0003 | C17: Подстицај за развој предузетништва | D17: 15000000 | F17: =D17+E17 -> 15000000 | G17: Општинска управа/KLER
A18: 1502 | C18: Програм 4. Развој туризма | D18: =SUBTOTAL(9,D19:D20) -> 8000000 | E18: =SUBTOTAL(9,E19:E20) -> 0 | F18: 8000000
B19: 1502-0001 | C19: Управљањем развојем туризма | D19: 7760000 | F19: =D19+E19 -> 7760000 | G19: Туристичка организација
B20: 1502-0002 | C20: Промоција туристичке понуде | D20: 240000 | F20: =D20+E20 -> 240000 | G20: Туристичка организација
A21: 0101 | C21: Програм 5. Развој пољопривреде | D21: =SUBTOTAL(9,D22:D22) -> 22400000 | E21: =SUBTOTAL(9,E22:E22) -> 0 | F21: =SUBTOTAL(9,F22:F22) -> 22400000
B22: 0101-0002 | C22: Мере подршке руралном развоју | D22: 22400000 | F22: =D22+E22 -> 22400000 | G22: ОU/Odeqewe za privredu
A23: 0401 | C23: Програм 6. Заштита животне средине | D23: =SUBTOTAL(9,D24:D27) -> 9100000 | E23: =SUBTOTAL(9,E24:E27) -> 36080000 | F23: =SUBTOTAL(9,F24:F27) -> 45180000
B24: 0401-0001 | C24: Управљање заштитом животне средине | D24: =2550000+2000000 -> 4550000 | E24: 17680000 | F24: =D24+E24 -> 22230000 | G24: Општинска управа
B25: 0401-0004 | C25: Управљање отпадним водама | D25: =250000+2300000 -> 2550000 | F25: =D25+E25 -> 2550000 | G25: Општинска управа
B26: 0401-0005 | C26: Управљање комуналним отпадом | E26: 18400000 | F26: =D26+E26 -> 18400000 | G26: Општинска управа
B27: 0401-0006 | C27: Одрживо управљање осталим врстама отпада | D27: 2000000 | F27: =D27+E27 -> 2000000
A28: 0701 | C28: Програм 7. Путна инфраструктура | D28: =SUBTOTAL(9,D29:D122) -> 92889000 | E28: =SUBTOTAL(9,E29:E122) -> 81920000 | F28: =SUBTOTAL(9,F29:F122) -> 174809000
B29: 0701-01 | C29: =VLOOKUP(B29,'Troškovi 2018'!C249:G810,5,FALSE) -> Текуће поправке и одржавање - Пут од Југокопа до Кршевице | E29: 25120000 | F29: =D29+E29 -> 25120000 | G29: Општинска управа
B30: 0701-02 | C30: =VLOOKUP(B30,'Troškovi 2018'!C250:G811,5,FALSE) -> Уређење петље на улазу у Бујановац | E30: 3800000 | F30: 3800000 | G30: Општинска управа
B31: 0701-03 | C31: =VLOOKUP(B31,'Troškovi 2018'!C251:G812,5,FALSE) -> Суфинансирање регионалног пута Р125-Б Муховац - Зарбинце | E31: 20000000 | F31: 20000000 | G31: Општинска управа
B32: 0701-04 | C32: Афалтирање локалних путева на територији општине Бујановац | D32: =1260000+500000 -> 1760000 | E32: 25000000 | F32: 26760000 | G32: Општинска управа
B33: 0701-05 | C33: =VLOOKUP(B33,'Troškovi 2018'!C253:G814,5,FALSE) -> Реконструкција ул. К. Петровић у функцији оснивања пешачке зоне | E33: 8000000 | F33: 8000000 | G33: Општинска управа
B34: 0701-06 | C34: =VLOOKUP(B34,'Troškovi 2018'!C254:G815,5,FALSE) -> Асфалтирање улице Мирослав Нојковић Цале, Л=318м, ширина асфалта Б=3м | D34: =600000+400000 -> 1000000 | F34: 1000000 | G34: Општинска управа
B35: 0701-07 | C35: =VLOOKUP(B35,'Troškovi 2018'!C255:G816,5,FALSE) -> Крпљење ударних рупа на територији општине Бујановац | D35: 3000000 | F35: =D35+E35 -> 3000000 | G35: Општинска управа
B36: 0701-08 | C36: =VLOOKUP(B36,'Troškovi 2018'!C256:G817,5,FALSE) -> Зимско одржавање путева | D36: 3000000 | F36: 3000000 | G36: Општинска управа
B37: 0701-09 | C37: =VLOOKUP(B37,'Troškovi 2018'!C257:G818,5,FALSE) -> Стручни надзор | D37: 2500000 | F37: 2500000 | G37: Општинска управа
B38: 0701-10 | C38: =VLOOKUP(B38,'Troškovi 2018'!C258:G819,5,FALSE) -> Текуће поправке и одржавање - Одржавање пружних прелаза | D38: 3000000 | F38: 3000000 | G38: Општинска управа
B39: 0701-11 | C39: =VLOOKUP(B39,'Troškovi 2018'!C259:G820,5,FALSE) -> Изградња моста на реци између Света Петке и Трејака са прилазним саобраћајницама | D39: 1725000 | F39: 1725000 | G39: Општинска управа
B40: 0701-12 | C40: =VLOOKUP(B40,'Troškovi 2018'!C260:G821,5,FALSE) -> Асфалтирање улице Шабан Бајрамовић у Бујановцу | D40: 500000 | F40: 500000 | G40: Општинска управа
B41: 0701-13 | C41: =VLOOKUP(B41,'Troškovi 2018'!C261:G822,5,FALSE) -> Асфалтирање улице код Реџепа у Бујановцу, Л=138м, Б=5м | D41: 600000 | F41: 600000 | G41: Општинска управа
B42: 0701-14 | C42: =VLOOKUP(B42,'Troškovi 2018'!C262:G823,5,FALSE) -> Асфалтирање улице у Бујановцу, прилаз 20 - код Рефика, Л=133м, Б=3,2м | D42: 600000 | F42: 600000 | G42: Општинска управа
B43: 0701-15 | C43: =VLOOKUP(B43,'Troškovi 2018'!C263:G824,5,FALSE) -> Асфалтирање улице Беким Фехмију у Бујановцу код Фадила, Л=73м, Б=5м | D43: 650000 | F43: 650000 | G43: Општинска управа
B44: 0701-16 | C44: =VLOOKUP(B44,'Troškovi 2018'!C264:G825,5,FALSE) -> Асфалтирање улице у Несалцу код Мејдије | D44: 400000 | F44: 400000 | G44: Општинска управа
B45: 0701-17 | C45: =VLOOKUP(B45,'Troškovi 2018'!C265:G826,5,FALSE) -> Асфалтирање улице Беким Фехмију у Бујановцу код Сехата, Л=120м, Б=3,8м | D45: 650000 | F45: 650000 | G45: Општинска управа
B46: 0701-18 | C46: =VLOOKUP(B46,'Troškovi 2018'!C266:G827,5,FALSE) -> Асфалтирање улице у Бујановцу, прилаз 25 - код Џабири, Л=105м, Б=3,5м | D46: 650000 | F46: 650000 | G46: Општинска управа
B47: 0701-19 | C47: =VLOOKUP(B47,'Troškovi 2018'!C267:G828,5,FALSE) -> Асфалтирање улице Лам Брезница Бујановац - код Гафура, Л=40м, Б=4м | D47: 300000 | F47: 300000 | G47: Општинска управа
B48: 0701-20 | C48: =VLOOKUP(B48,'Troškovi 2018'!C268:G829,5,FALSE) -> Асфалтирање улице Лопардински пут Бујановац - код Бекима, Л=100м, Б=3,5м | D48: 650000 | F48: 650000 | G48: Општинска управа
B49: 0701-21 | C49: =VLOOKUP(B49,'Troškovi 2018'!C269:G830,5,FALSE) -> Асфалтирање улице у селу Велики Трновац - код Хаџи Ваји, Л=131м, Б=3,8м | D49: 650000 | F49: 650000 | G49: Општинска управа
B50: 0701-22 | C50: =VLOOKUP(B50,'Troškovi 2018'!C270:G831,5,FALSE) -> Асфалтирање улице у селу Велики Трновац - код Хаџи Исуфи, Л=100м, Б=4м | D50: 650000 | F50: 650000 | G50: Општинска управа
B51: 0701-23 | C51: =VLOOKUP(B51,'Troškovi 2018'!C271:G832,5,FALSE) -> Асфалтирање улице у селу Велики Трновац код Мусе, Л=163м, Б=3,5м | D51: 650000 | F51: 650000 | G51: Општинска управа
B52: 0701-24 | C52: =VLOOKUP(B52,'Troškovi 2018'!C272:G833,5,FALSE) -> Асфалтирање улице у селу Велики Трновац код Фатмира, Л=105м, Б=4м | D52: 650000 | F52: 650000 | G52: Општинска управа
B53: 0701-25 | C53: =VLOOKUP(B53,'Troškovi 2018'!C273:G834,5,FALSE) -> Регулација корита реке у зони моста на путу за село Трејак | D53: 2480000 | F53: 2480000 | G53: Општинска управа
B54: 0701-26 | C54: =VLOOKUP(B54,'Troškovi 2018'!C274:G835,5,FALSE) -> Насипање пута у селу Клиновац од асфалтног пута преко реке до Ђоке | D54: 495000 | F54: 495000 | G54: Општинска управа
B55: 0701-27 | C55: =VLOOKUP(B55,'Troškovi 2018'!C275:G836,5,FALSE) -> Асфалтирање улице у селу Српска кућа Л=250м+40м | D55: 2500000 | F55: 2500000 | G55: Општинска управа
B56: 0701-28 | C56: =VLOOKUP(B56,'Troškovi 2018'!C276:G837,5,FALSE) -> Асфалтирање улице у селу Велики Трновац код Мевљуда Пиља, Л=156м, Б=4м | D56: 700000 | F56: 700000 | G56: Општинска управа
B57: 0701-29 | C57: =VLOOKUP(B57,'Troškovi 2018'!C277:G838,5,FALSE) -> Изградња тротоара на деоници пута од села Света Петка до села Кленике Л=500м | D57: 4050000 | F57: 4050000 | G57: Општинска управа
B58: 0701-30 | C58: =VLOOKUP(B58,'Troškovi 2018'!C278:G839,5,FALSE) -> Асфалтирање улице у селу Велики Трновац - Толска махала код Решата | D58: 400000 | F58: 400000 | G58: Општинска управа
B59: 0701-31 | C59: =VLOOKUP(B59,'Troškovi 2018'!C279:G840,5,FALSE) -> Рад механизације (булдожер, грејдер, ваљак и др.) на поправци сеоских путева у српској заједници | D59: 3000000 | F59: 3000000 | G59: Општинска управа
B60: 0701-32 | C60: =VLOOKUP(B60,'Troškovi 2018'!C280:G841,5,FALSE) -> Асфалтирање улице у селу Карадник - Багалејска махала, Л=250м | D60: 2200000 | F60: 2200000 | G60: Општинска управа
B61: 0701-33 | C61: =VLOOKUP(B61,'Troškovi 2018'!C281:G842,5,FALSE) -> Асфалтирање прилазног пута према основној школи у селу Кленике, Л=50м | D61: 470000 | F61: 470000 | G61: Општинска управа
B62: 0701-34 | C62: =VLOOKUP(B62,'Troškovi 2018'!C282:G843,5,FALSE) -> Текућа поправка асфалтног пута за село Куштица (деоница од зелене ливаде према Бојаџијској махали), Л=130м | D62: 1150000 | F62: 1150000 | G62: Општинска управа
B63: 0701-35 | C63: =VLOOKUP(B63,'Troškovi 2018'!C283:G844,5,FALSE) -> Насипање пута у селу Осларе (деоница од излаза из села до гробља у селу Левосоје), Л=900м | D63: 2000000 | F63: 2000000 | G63: Општинска управа
B64: 0701-36 | C64: =VLOOKUP(B64,'Troškovi 2018'!C284:G845,5,FALSE) -> Насипање пута у селу Доњи Старац (деоница од домаћинства попа Драгољуба до домаћинства Тисе), Л=500м | D64: 1100000 | F64: 1100000 | G64: Општинска управа
B65: 0701-37 | C65: =VLOOKUP(B65,'Troškovi 2018'!C285:G846,5,FALSE) -> Насипање пута у селу Света Петка у махали Зељци, Л=350м | D65: 800000 | F65: 800000 | G65: Општинска управа
B66: 0701-38 | C66: =VLOOKUP(B66,'Troškovi 2018'!C286:G847,5,FALSE) -> Изградња цевастог пропуста у селу Клиновац у махали Скримаци, Л=8 м (2 * ФИ1000) | D66: 1230000 | F66: 1230000 | G66: Општинска управа
B67: 0701-39 | C67: =VLOOKUP(B67,'Troškovi 2018'!C287:G848,5,FALSE) -> Изградња потпорног зида на бараљевској реци у селу Кленике, Л=25м, Х=2,5м | D67: 1200000 | F67: 1200000 | G67: Општинска управа
B68: 0701-40 | C68: =VLOOKUP(B68,'Troškovi 2018'!C288:G849,5,FALSE) -> Текућа поправка цевастог пропуста у селу Спанчевац | D68: 320000 | F68: 320000 | G68: Општинска управа
B69: 0701-41 | C69: =VLOOKUP(B69,'Troškovi 2018'!C289:G850,5,FALSE) -> Текућа поправка тротоара у ул. Јована Цвијића у Бујановцу, Л=270м x 2 | D69: 2300000 | F69: 2300000 | G69: Општинска управа
B70: 0701-42 | C70: =VLOOKUP(B70,'Troškovi 2018'!C290:G851,5,FALSE) -> Асфалтирање улице у селу Жбевац (Уча Аврам - Ирдинци), Л=200м | D70: 1289000 | F70: 1289000 | G70: Општинска управа
B71: 0701-43 | C71: =VLOOKUP(B71,'Troškovi 2018'!C291:G852,5,FALSE) -> Асфалтирање улице у селу Жбевац (махала Дебоњци), Л=800м | D71: 2800000 | F71: 2800000 | G71: Општинска управа
B72: 0701-44 | C72: =VLOOKUP(B72,'Troškovi 2018'!C292:G853,5,FALSE) -> Насипање улице у селу Божињевац, Л=300м | D72: 660000 | F72: 660000 | G72: Општинска управа
B73: 0701-45 | C73: =VLOOKUP(B73,'Troškovi 2018'!C293:G854,5,FALSE) -> Текућа поправка улице Браће Југовића у Бујановцу | D73: 830000 | F73: 830000 | G73: Општинска управа
B74: 0701-46 | C74: =VLOOKUP(B74,'Troškovi 2018'!C294:G855,5,FALSE) -> Асфалтирање улице у селу Велики Трновац код Дугана Центар, Л=170м, Б=4,5м | D74: 1100000 | F74: 1100000 | G74: Општинска управа
B75: 0701-47 | C75: =VLOOKUP(B75,'Troškovi 2018'!C295:G856,5,FALSE) -> Асфалтирање улице у селу Велики Трновац код Тељата, Л=110м, Б=4м | D75: 580000 | F75: 580000 | G75: Општинска управа
B76: 0701-48 | C76: =VLOOKUP(B76,'Troškovi 2018'!C296:G857,5,FALSE) -> Асфалтирање улице у селу Велики Трновац код Ђепу, Л=28м, Б=5м | D76: 300000 | F76: 300000 | G76: Општинска управа
B77: 0701-49 | C77: =VLOOKUP(B77,'Troškovi 2018'!C297:G858,5,FALSE) -> Асфалтирање улице у селу Велики Трновац код Нехата, Л=47м, Б=4м | D77: 400000 | F77: 400000 | G77: Општинска управа
B78: 0701-50 | C78: =VLOOKUP(B78,'Troškovi 2018'!C298:G859,5,FALSE) -> Асфалтирање улице у селу Велики Трновац код Лавдима, Л=60м, Б=4,2м | D78: 450000 | F78: 450000 | G78: Општинска управа
B79: 0701-51 | C79: =VLOOKUP(B79,'Troškovi 2018'!C299:G860,5,FALSE) -> Асфалтирање улице у селу Велики Трновац код Далија, Л=61м, Б=3,5м | D79: 400000 | F79: 400000 | G79: Општинска управа
B80: 0701-52 | C80: =VLOOKUP(B80,'Troškovi 2018'!C300:G861,5,FALSE) -> Асфалтирање улице у селу Велики Трновац код Буњамина, Л=82м, Б=4,2м | D80: 520000 | F80: 520000 | G80: Општинска управа
B81: 0701-53 | C81: =VLOOKUP(B81,'Troškovi 2018'!C301:G862,5,FALSE) -> Асфалтирање улице у селу Велики Трновац код Бетима, Л=30м, Б=4м | D81: 250000 | F81: 250000 | G81: Општинска управа
B82: 0701-54 | C82: =VLOOKUP(B82,'Troškovi 2018'!C302:G863,5,FALSE) -> Асфалтирање улице у селу Велики Трновац код Ћанију, Л=130м, Б=4,5м | D82: 830000 | F82: 830000 | G82: Општинска управа
B83: 0701-55 | C83: =VLOOKUP(B83,'Troškovi 2018'!C303:G864,5,FALSE) -> Асфалтирање улице у селу Велики Трновац код Сефера, Л=210, Б=4,3м | D83: 870000 | F83: 870000 | G83: Општинска управа
B84: 0701-56 | C84: =VLOOKUP(B84,'Troškovi 2018'!C304:G865,5,FALSE) -> Асфалтирање улице у селу Велики Трновац код Рахима, Л=90м, Б=4,5 | D84: 550000 | F84: 550000 | G84: Општинска управа
B85: 0701-57 | C85: =VLOOKUP(B85,'Troškovi 2018'!C305:G866,5,FALSE) -> Асфалтирање улице у селу Велики Трновац код Шабана Ризаха, Л=86, Б=4м | D85: 530000 | F85: 530000 | G85: Општинска управа
B86: 0701-58 | C86: =VLOOKUP(B86,'Troškovi 2018'!C306:G867,5,FALSE) -> Уређење парка у селу Велики Трновац код воденице | D86: 1300000 | F86: 1300000 | G86: Општинска управа
B87: 0701-59 | C87: =VLOOKUP(B87,'Troškovi 2018'!C307:G868,5,FALSE) -> Асфалтирање улице у селу Биљача код Авније, Л=390м, Б=3,5м | D87: 1600000 | F87: 1600000 | G87: Општинска управа
B88: 0701-60 | C88: =VLOOKUP(B88,'Troškovi 2018'!C308:G869,5,FALSE) -> Асфалтирање улице у селу Биљача код Сељамије, Л=110м, Б=4м | D88: 530000 | F88: 530000 | G88: Општинска управа
B89: 0701-61 | C89: =VLOOKUP(B89,'Troškovi 2018'!C309:G870,5,FALSE) -> Проширење пута Несалце - Летовица, Л=2,6км, Б=1м | D89: 4300000 | F89: 4300000 | G89: Општинска управа
B90: 0701-62 | C90: =VLOOKUP(B90,'Troškovi 2018'!C310:G871,5,FALSE) -> Асфалтирање улице у селу Летовица код Вељије, Л=200м, Б=3м | D90: 700000 | F90: 700000 | G90: Општинска управа
B91: 0701-63 | C91: =VLOOKUP(B91,'Troškovi 2018'!C311:G872,5,FALSE) -> Асфалтирање улице у селу Летовица код Африма, Л=85м, Б=3м | D91: 520000 | F91: 520000 | G91: Општинска управа
B92: 0701-64 | C92: =VLOOKUP(B92,'Troškovi 2018'!C312:G873,5,FALSE) -> Асфалтирање улице у селу Летовица код Исуфа, Л=162м, Б=3м | D92: 700000 | F92: 700000 | G92: Општинска управа
B93: 0701-65 | C93: =VLOOKUP(B93,'Troškovi 2018'!C313:G874,5,FALSE) -> Асфалтирање улице у селу Летовица код Дине, Л=80м, Б=3м | D93: 680000 | F93: 680000 | G93: Општинска управа
B94: 0701-66 | C94: =VLOOKUP(B94,'Troškovi 2018'!C314:G875,5,FALSE) -> Асфалтирање улице у селу Несалце код џамије, Л=180м, Б=3м | D94: 700000 | F94: 700000 | G94: Општинска управа
B95: 0701-67 | C95: =VLOOKUP(B95,'Troškovi 2018'!C315:G876,5,FALSE) -> Асфалтирање улице у селу Несалце код Барије, Л=100м, Б=3м | D95: 450000 | F95: 450000 | G95: Општинска управа
B96: 0701-68 | C96: =VLOOKUP(B96,'Troškovi 2018'!C316:G877,5,FALSE) -> Асфалтирање улице у селу Несалце код Хајриза, Л=100м, Б=2,5м | D96: 430000 | F96: 430000 | G96: Општинска управа
B97: 0701-69 | C97: =VLOOKUP(B97,'Troškovi 2018'!C317:G878,5,FALSE) -> Асфалтирање улице у селу Несалце код Мендуха, Л=70м, Б=3м | D97: 450000 | F97: 450000 | G97: Општинска управа
B98: 0701-70 | C98: =VLOOKUP(B98,'Troškovi 2018'!C318:G879,5,FALSE) -> Асфалтирање улице у селу Несалце код Пуст, Л=67м, Б=3м | D98: 400000 | F98: 400000 | G98: Општинска управа
B99: 0701-71 | C99: =VLOOKUP(B99,'Troškovi 2018'!C319:G880,5,FALSE) -> Асфалтирање улице у селу Несалце код Рафе, Л=68м, Б=3,2м | D99: 400000 | F99: 400000 | G99: Општинска управа
B100: 0701-72 | C100: =VLOOKUP(B100,'Troškovi 2018'!C320:G881,5,FALSE) -> Асфалтирање улице у селу Несалце код Садрије, Л=74м, Б=3м | D100: 500000 | F100: 500000 | G100: Општинска управа
B101: 0701-73 | C101: =VLOOKUP(B101,'Troškovi 2018'!C321:G882,5,FALSE) -> Асфалтирање улице у селу Несалце код Тефика, Л=130, Б=3м | D101: 500000 | F101: 500000 | G101: Општинска управа
B102: 0701-74 | C102: =VLOOKUP(B102,'Troškovi 2018'!C322:G883,5,FALSE) -> Асфалтирање улице у селу Самољица - Корб махала, Л=200м, Б=3,5м | D102: 735000 | F102: 735000 | G102: Општинска управа
B103: 0701-75 | C103: =VLOOKUP(B103,'Troškovi 2018'!C323:G884,5,FALSE) -> Асфалтирање улице у селу Самољица код Екрема, Л=153м, Б=3,5м | D103: 620000 | F103: 620000 | G103: Општинска управа
B104: 0701-76 | C104: =VLOOKUP(B104,'Troškovi 2018'!C324:G885,5,FALSE) -> Асфалтирање улице у селу Самољица код Недима, Л=90м, Б=3м | D104: 480000 | F104: 480000 | G104: Општинска управа
B105: 0701-77 | C105: =VLOOKUP(B105,'Troškovi 2018'!C325:G886,5,FALSE) -> Асфалтирање улице у селу Лучане код Фисника, Л=60м, Б=3,5м | D105: 475000 | F105: 475000 | G105: Општинска управа
B106: 0701-78 | C106: =VLOOKUP(B106,'Troškovi 2018'!C326:G887,5,FALSE) -> Асфалтирање улице у селу Лучане код Хамдије, Л=61м, Б=3,5м | D106: 450000 | F106: 450000 | G106: Општинска управа
B107: 0701-79 | C107: =VLOOKUP(B107,'Troškovi 2018'!C327:G888,5,FALSE) -> Асфалтирање улице у селу Лучане код Куртеша, Л=68м, Б=3м | D107: 400000 | F107: 400000 | G107: Општинска управа
B108: 0701-80 | C108: =VLOOKUP(B108,'Troškovi 2018'!C328:G889,5,FALSE) -> Асфалтирање улице у селу Лучане код Бејту, Л=195, Б=3м | D108: 680000 | F108: 680000 | G108: Општинска управа
B109: 0701-81 | C109: =VLOOKUP(B109,'Troškovi 2018'!C329:G890,5,FALSE) -> Асфалтирање улице у селу Кончуљ код Азизи, Л=100м, Б=3м | D109: 520000 | F109: 520000 | G109: Општинска управа
B110: 0701-82 | C110: =VLOOKUP(B110,'Troškovi 2018'!C330:G891,5,FALSE) -> Асфалтирање улице у селу Кончуљ код Браховита, Л=103м, Б=3м | D110: 600000 | F110: 600000 | G110: Општинска управа
B111: 0701-83 | C111: =VLOOKUP(B111,'Troškovi 2018'!C331:G892,5,FALSE) -> Асфалтирање улице у селу Кончуљ код моста, Л=87м, Б=3м | D111: 540000 | F111: 540000 | G111: Општинска управа
B112: 0701-84 | C112: =VLOOKUP(B112,'Troškovi 2018'!C332:G893,5,FALSE) -> Асфалтирање улице у селу Добросин код Исљама, Л=300м, Б=4м | D112: 1040000 | F112: 1040000 | G112: Општинска управа
B113: 0701-85 | C113: =VLOOKUP(B113,'Troškovi 2018'!C333:G894,5,FALSE) -> Асфалтирање улице у селу Добросин код Азиза, Л=231м, Б=3м | D113: 600000 | F113: 600000 | G113: Општинска управа
B114: 0701-86 | C114: =VLOOKUP(B114,'Troškovi 2018'!C334:G895,5,FALSE) -> Асфалтирање улице у селу Брезница код млина, Л=1.300, Б=4м | D114: 2000000 | F114: =D114+E114 -> 2000000 | G114: Општинска управа
B115: 0701-87 | C115: =VLOOKUP(B115,'Troškovi 2018'!C335:G896,5,FALSE) -> Асфалтирање улице у селу Брезница - Муховац - Зарбинце, Л=600м, Б=4м | D115: 2000000 | F115: 2000000 | G115: Општинска управа
B116: 0701-88 | C116: =VLOOKUP(B116,'Troškovi 2018'!C336:G897,5,FALSE) -> Асфалтирање улице у селу Турија код Лукмана, Л=260м, Б=3м | D116: 450000 | F116: 450000 | G116: Општинска управа
B117: 0701-89 | C117: =VLOOKUP(B117,'Troškovi 2018'!C337:G898,5,FALSE) -> Насипање улице у селу Велики Трновац код Колоније | D117: 400000 | F117: 400000 | G117: Општинска управа
B118: 0701-90 | C118: =VLOOKUP(B118,'Troškovi 2018'!C338:G899,5,FALSE) -> Насипање улице у селу В. Бресић | D118: 400000 | F118: 400000 | G118: Општинска управа
B119: 0701-91 | C119: =VLOOKUP(B119,'Troškovi 2018'!C339:G900,5,FALSE) -> Реконструкција асфалтирања улице у селу Велики Трновац (од главне трафо-станице до пута у нову махалу) | D119: 2000000 | F119: 2000000 | G119: Општинска управа
B120: 0701-92 | C120: =VLOOKUP(B120,'Troškovi 2018'!C340:G901,5,FALSE) -> Насипање улице у селу Лучане код Рамиза | D120: 400000 | F120: 400000 | G120: Општинска управа
B121: 0701-93 | C121: =VLOOKUP(B121,'Troškovi 2018'!C341:G902,5,FALSE) -> Асфалтирање улице у селу Турија од центра до Гњиланског пута, Л=723м | D121: 1200000 | F121: 1200000 | G121: Општинска управа
B122: 0701-94 | C122: =VLOOKUP(B122,'Troškovi 2018'!C342:G903,5,FALSE) -> Асфалтирање улице у селу Осларе код Бајрама | D122: 400000 | F122: 400000 | G122: Општинска управа
A123: 2001 | C123: Програм 8. Предшколско васпитање | D123: =SUBTOTAL(9,D124) -> 108246000 | E123: =SUBTOTAL(9,E124) -> 0 | F123: 108246000
B124: 2001-0001 | C124: Функционисање предшколских установа | D124: 108246000 | F124: =D124+E124 -> 108246000 | G124: ПУ "Наша радост"
A125: 2002 | C125: Програм 9. Основно образовање | D125: =SUBTOTAL(9,D126) -> 70881700 | E125: =SUBTOTAL(9,E126) -> 200000000 | F125: 270881700
B126: 2002-0001 | C126: Функционисање основних школа | D126: 70881700 | E126: 200000000 | F126: =D126+E126 -> 270881700 | G126: Општинска управа
A127: 2003 | C127: Програм 10. Средње образовање | D127: =SUBTOTAL(9,D128) -> 36171700 | E127: =SUBTOTAL(9,E128) -> 6696000 | F127: 42867700
B128: 2003-0001 | C128: Функционисање средњих школа | D128: =37671700-1500000 -> 36171700 | E128: 6696000 | F128: =D128+E128 -> 42867700 | G128: Општинска управа
A129: 0901 | C129: Програм 11. Социјална и дечија заштита | D129: =SUBTOTAL(9,D130:D134) -> 10900000 | E129: =SUBTOTAL(9,E130:E134) -> 10000000 | F129: 20900000
B130: 0901-0001 | C130: Социјалне помоћи | D130: 6000000 | F130: =D130+E130 -> 6000000 | G130: ОU/Centar za soc.rad
B131: 0901-0002 | C131: Прихватилишта, прихватне станице и друге врсте смештаја | D131: 3200000 | F131: =D131+E131 -> 3200000 | G131: Општинска управа
B132: 0901-0005 | C132: Активности ОО Црвеног крста Бујановац | D132: 500000 | F132: =D132+E132 -> 500000 | G132: ОО Црвени крст
B133: 0901-0006 | C133: Подршка деци и породицама са децом | D133: 600000 | E133: 4000000 | F133: =D133+E133 -> 4600000 | G133: ОU/Centar za soc.rad
B134: 0901-0007 | C134: Подршка старијим лицима и/или особама са инвалидитетом | D134: 600000 | E134: 6000000 | F134: =D134+E134 -> 6600000 | G134: Општинска управа
A135: 1801 | C135: Програм 12. Примарна здравствена заштита | D135: =SUBTOTAL(9,D136:D137) -> 19250000 | E135: =SUBTOTAL(9,E136:E137) -> 0 | F135: 19250000
B136: 1801-0001 | C136: Функционисање установа примарне здравствене заштите | D136: 18850000 | F136: =D136+E136 -> 18850000 | G136: OU/DZ/Apoteka
B137: 1801-0002 | C137: Мртвозорство | D137: 400000 | F137: =D137+E137 -> 400000 | G137: ОУ/ДЗ
A138: 1201 | C138: Програм 13. Развој културе | D138: =SUBTOTAL(9,D139:D146) -> 52745100 | E138: =SUBTOTAL(9,E139:E146) -> 0 | F138: 52745100
B139: 1201-0001 | C139: Функционисање локалних установа културе | D139: =23139000+15826100 -> 38965100 | F139: =D139+E139 -> 38965100 | G139: ДУ "Вук Караџић" и Библиотека
B140: 1201-0002 | C140: Јачање културне продукције и уметничког стваралаштва | D140: 4930000 | F140: =D140+E140 -> 4930000 | G140: Општинска управа
B141: 1201-0003 | C141: Унапређење система очувања и представљања културно-историјског наслеђа | D141: 2900000 | F141: =D141+E141 -> 2900000 | G141: Општинска управа
B142: 1201-0004 | C142: Остваривање и унапређивање јавног интереса у области јавног информисања | D142: 5000000 | F142: 5000000 | G142: Општинска управа
B143: 1201-01 | C143: Манифестација вредне руке | D143: 150000 | F143: 150000 | G143: ДУ "Вук Караџић"
B144: 1201-02 | C144: Манифестација најлепше ускршње јаје | D144: 150000 | F144: 150000 | G144: ДУ "Вук Караџић"
B145: 1201-03 | C145: Манифестација културно лето | D145: 400000 | F145: 400000 | G145: ДУ "Вук Караџић"
B146: 1201-04 | C146: Мајске манифестације | D146: 250000 | F146: 250000 | G146: ДУ "Вук Караџић"
A147: 1301 | C147: Програм 14. Развој спорта и омладине | D147: =SUBTOTAL(9,D148:D151) -> 31696700 | E147: =SUBTOTAL(9,E148:E151) -> 0 | F147: =SUBTOTAL(9,F148:F151) -> 31696700
B148: 1301-0001 | C148: Подршка локалним спорским организацијама, удружењима и савезима | D148: 9000000 | F148: =D148+E148 -> 9000000 | G148: Општинска управа
B149: 1301-0004 | C149: Функционисање локалних спортских установа | D149: 21186700 | F149: =D149+E149 -> 21186700 | G149: СЦ "Младост"
B150: 1301-0005 | C150: Спровођење омалдинске политике | D150: 800000 | F150: =D150+E150 -> 800000 | G150: Општинска управа
B151: 1301-01 | C151: Асфалтирање спортског терена у селу Бараљевац, дужина 25 * 15м | D151: 710000 | F151: =D151+E151 -> 710000 | G151: Општинска управа
A152: 0602 | C152: Програм 15. Локална самоуправа | D152: =SUBTOTAL(9,D153:D159) -> 221450200 | E152: =SUBTOTAL(9,E153:E159) -> 0 | F152: 221450200
B153: 0602-0001 | C153: Подршка раду извршних органа власти и скупштине | D153: =195778000-200000-200000-800000 -> 194578000 | F153: =D153+E153 -> 194578000 | G153: Општинска управа
B154: 0602-0002 | C154: Функционисање месних заједница | D154: 3900000 | F154: =D154+E154 -> 3900000 | G154: Општинска управа/Месне заједнице
B155: 0602-0004 | C155: Правобранилаштво општине Бујановац | D155: 5472200 | F155: =D155+E155 -> 5472200 | G155: OJP
B156: 0602-0007 | C156: Функционисање националних савета националних мањина | D156: 4000000 | F156: 4000000 | G156: Општинска управа
B157: 0602-0009 | C157: Текућа буџетска резерва | D157: =10000000+1500000 -> 11500000 | F157: 11500000 | G157: Општинска управа
B158: 0602-0010 | C158: Стална буџетска резерва | D158: 500000 | F158: 500000 | G158: Општинска управа
B159: 0602-0014 | C159: Ванредне ситуације | D159: 1500000 | F159: 1500000 | G159: Општинска управа
A160: 2101 | C160: Програм 16: Политички систем локалне самоуправе | D160: =SUBTOTAL(9,D161:D163) -> 38163600 | E160: =SUBTOTAL(9,E161:E163) -> 0 | F160: 38163600
B161: 2101-0001 | C161: Функционисање скупштине | D161: 19543100 | F161: =D161+E161 -> 19543100 | G161: Скупштина
B162: 2101-0002 | C162: Функционисање извршних органа | D162: 11170500 | F162: =D162+E162 -> 11170500 | G162: Председник/Општинско веће
B163: 2101-0003 | C163: Подршка раду извршних органа власти и скупштине | D163: 7450000 | F163: =D163+E163 -> 7450000 | G163: Скупштина
C164: UKUPNO | D164: =SUBTOTAL(9,D7:D163) -> 829804000 | E164: =SUBTOTAL(9,E7:E163) -> 334696000 | F164: 1164500000

Sheet Odluka Budžet 2018
A2: Na osnovu ~lana 43. Zakona o buxetskom sistemu ("Slu`beni glasnik RS", br. 54/2009, 73/2010, 101/2010, 101/2011, 93/2012, 62/2013 i 63/2013 -ispravka, 108/2013, 142/2014, 68/2015 - dr. zakon, 103/2015 i 99/2016), ~lana 32, Zakona o lokalnoj samoupravi ("Slu`beni glasnik RS", broj 129/2007 i 83/2014 - dr. zakon) i ~lana 35. Statuta op{tine Bujanovac ("Slu`beni glasnik P~iwskog okruga", broj 24/2008) Skup{tina op{tine Bujanovac na sednici odr`anoj dana 21.12.2017. godine, donela je
A7: O D L U K U
A8: O БУЏЕТУ OP[TINE BUJANOVAC ZA 2018. GODINU
A10: I OP[TI DEO
A12: ^lan 1.
A14: Prihodi i primawa, rashodi i izdaci buxeta op{tine Bujanovac za 2018. (u daqem tekstu: buxet), sastoje se od :
A16: А. РАЧУН ПРИХОДА И ПРИМАЊА, РАСХОДА И ИЗДАТАКА
A17: 1. Укупани приходи и примања од продаје нефинансијске имовине | K17: =K18+K22 -> 1160500000
A18: 1.1. TEKUЋI PRIHODI u ~emu | K18: =K19+K20+K21 -> 1160200000
A19: - буџетска средства | K19: 1160200000
A20: - сопствени приходи
A21: - донације
A22: 1.2. ПРИМАЊА ОД ПРОДАЈЕ НЕФИНАНСИЈСКЕ ИМОВИНЕ | K22: 300000
A23: 2. Укупни расходи и иzдаци zа набавку нефинансијске имовине | K23: =K24 -> 1164500000
A24: 2.1. ТЕКУЋИ РАСХОДИ у чему: | K24: =K25+K26+K27 -> 1164500000
A25: - текући буџетски расходи | K25: =H202 -> 829804000
A26: - расходи из сопствених прихода | K26: =J202 -> 334696000
A27: - доnacije, dotacije i transferi
A28: БУЏЕТСКИ СУФИЦИТ/ДЕФИЦИТ | K28: =K17-K23 -> -4000000
A29: Издаци за набавку финансијске имовине (у циљу спровођења јавних политика)
A30: УКУПАН ФИСКАЛНИ СУФИЦИТ/ДЕФИЦИТ | K30: =K28 -> -4000000
A31: БУЏЕТСКИ СУФИЦИТ/ДЕФИЦИТ | K31: =K30 -> -4000000
A32: Б. РАЧУН ФИНАНСИРАЊА
A33: Примања од продаје финансијске имовине
A34: Примања од заду`ивања
A35: Неутрошена средства из предходних година | K35: 4000000
A36: Издаци за отплату главнице дуга
A37: НЕТО ФИНАНСИРАЊЕ
A39: Приходи и примања, расходи и издаци буџета утврђени су у следећим износима
A41: ОПИС | H41: Економска класификација | K41: Износ у динарима
A43: 1 | H43: 2 | K43: 3
A44: УКУПНИ ПРИХОДИ И ПРИМАЊА ОД ПРОДАЈЕ НЕФИНАНСИЈСКЕ ИМОВИНЕ | K44: =K46+K58+K62+K63+K61 -> 1160500000
A46: 1. Порески приходи | H46: 71 | K46: 349450000
A47: 1.1. Порез на доходак, добит и капиталне добиткa (осим самодоприноса) | H47: 711 | K47: 231650000
A48: 1.2. Самодопринос | H48: 711180
A49: 1.3. Порез на имовину | H49: 713 | K49: 65650000
A50: 1.4. Остали порески приходи | K50: 52150000
A55: ОПИС | H55: Економска класификација | K55: Износ у динарима
A57: 1 | H57: 2 | K57: 3
A58: 2. Непорески приходи, у чему: | H58: 74 | K58: 65550000
A59: поједине врсте накнада са одређеном наменом (наменски приходи)
A60: приходи од продаје добара и услуга
A61: 3. Донације | H61: 731 + 732
A62: 4. Трансфери | H62: 733 | K62: 745200000
A63: 5. Примања од продаје нефинансијске имовине | H63: 8 | K63: 300000
A64: УКУПНИ РАСХОДИ И ИЗДАЦИ ЗА НАБАВКУ НЕФИНАНСИЈСКЕ И ФИНАНСИЈСКЕ ИМОВИНЕ | K64: =K65+K73 -> 1164500000
A65: 1. Текући расходи | H65: 4 | K65: =K66+K67+K68+K69+K70+K71+K72 -> 786526000
A66: 1.1. Расходи за запослене | H66: 41 | K66: =L171 -> 270691900
A67: 1.2. Коришћење роба и услуга | H67: 42 | K67: =L178 -> 210074500
A68: 1.3. Отплата камата | H68: 44
A69: 1.4. Субвенције | H69: 45 | K69: =L181 -> 65000000
A70: 1.5. Социјална заштита из буџета | H70: 47 | K70: =L187 -> 23924000
A71: 1.6. Остали расходи, у чему: средства резерви | H71: 48 + 49 | K71: =L192+L194 -> 55265000
A72: 2. Трасфери | H72: 46 | K72: =L185 -> 161570600
A73: 3. Издаци за набавку нефинансијске имовине | H73: 5 | K73: =L201 -> 377974000
A74: 4. Издаци за набавку финансијске имовине (осим 6211) | H74: 62
A75: ПРИМАЊА ОД ПРОДАЈЕ ФИНАНСИЈСКЕ ИМОВИНЕ И ЗАДУЖИВАЊА | K75: 0
A76: 1. Примања по основу отплате кредита и продаје финансијске имовине | H76: 92
A77: 2. Заду`ивање | H77: 91 | K77: 0
A78: 2.1. Заду`ивање код домаћих кредитора | H78: 911
A79: 2.2. Заду`ивање код страних кредитора | H79: 912
A80: ОТПЛАТА ДУГА И НАБАВКА ФИНАНСИЈСКЕ ИМОВИНЕ
A81: 3. Отплата дуга | H81: 61 | K81: 0
A82: 3.1. Отплата дуга домаћим кредиторима | H82: 611
A83: 3.2. Отплата дуга страним кредиторима | H83: 612
A84: 3.3. Отплата дуга по гаранцијама | H84: 613
A85: 4. Набавка финансијске имовине | H85: 6211
A87: НЕРАСПОРЕЂЕНИ ВИШАК ПРИХОДА ИЗ РАНИЈИХ ГОДИНА (класа 3, извор финансирања 13)
A89: НЕУТРОШЕНА СРЕДСТАВА ОД ПРИВАТИЗАЦИЈЕ ИЗ ПРЕТХОДНИХ ГОДИНА (класа 3, извор финансирања 14)
A91: Члан 2.
A93: Teku}i prihodi i primawa од продаје нефинансијске имовине са пренетим средствима из претходне године buxeta op{tine Bujanovac utvr|eni su u iznosu od 1.164.500.000,00 dinara (tabela po vrstama prihoda i primawa nalazi se u prilogu Odluke o buxetu za 2018. godinu (1-3)):
A158: Члан 3.
A160: Издаци буџета по osnovnim наменама утврђени су i raspore|eni u 2018. godini u следећим износима:
A162: еко.клас. | D162: ОПИС | H162: Средства из буџета | J162: Sredstva iz Republike | L162: Укупно
A163: 1 | D163: 2 | H163: 3 | J163: 4 | L163: 5
A164: 400 | D164: TEKU]I RASHODI | H164: =H171+H178+H181+H185+H187+H192+H194 -> 740710000 | J164: =J171+J178+J181+J185+J187+J192+J194 -> 45816000 | L164: =L171+L178+L181+L185+L187+L192+L194 -> 786526000
A165: 411 | D165: Плате, додаци и накнаде запосленима | H165: 212210000 | L165: =H165+J165 -> 212210000 | N165: =H165+#REF! -> 
A166: 412 | D166: Социјални доприноси на терет послодавца | H166: 37916900 | L166: =H166+J166 -> 37916900 | N166: =H166+#REF! -> 
A167: 413 | D167: Накнаде у натури | H167: 10000 | L167: 10000 | N167: =H167+J167 -> 10000
A168: 414 | D168: Социјана давања запосленима | H168: 10084000 | L168: 10084000 | N168: =H168+#REF! -> 
A169: 415 | D169: Накнаде трошкова за запослене | H169: 8083000 | L169: 8083000 | N169: =H169+#REF! -> 
A170: 416 | D170: Награде, бонуси и остали пословни расхода | H170: 2388000 | L170: 2388000 | N170: =H170+#REF! -> 
A171: 410 | D171: РАСХОДИ ЗА ЗАПОСЛЕНЕ | H171: =H165+H166+H167+H168+H169+H170 -> 270691900 | J171: =J165+J166+K167+J168+J169+J170 -> 0 | L171: =L165+L166+L167+L168+L169+L170 -> 270691900 | N171: =N165+N166+N167+N168+N169+N170+#REF! -> 
A172: 421 | D172: Стални трошкови | H172: =44912000-200000 -> 44712000 | L172: 44712000 | N172: =H172+#REF!+J172 -> 
A173: 422 | D173: Трошкови путовања | H173: 2812000 | L173: 2812000 | N173: =H173+#REF!+J173 -> 
A174: 423 | D174: Услуге по уговору | H174: =49480500+9362000 -> 58842500 | J174: =3000000+6520000 -> 9520000 | L174: 68362500 | N174: =H174+#REF!+J174 -> 
A175: 424 | D175: Специјализоване услуге | H175: 11310000 | L175: 11310000 | N175: =H175+#REF!+J175 -> 
A176: 425 | D176: Текуће поправке и одржавање | H176: =13130000+21205000-200000 -> 34135000 | J176: =25120000+4000000 -> 29120000 | L176: 63255000 | N176: =H176+#REF!+J176 -> 
A177: 426 | D177: Материјал | H177: =20423000-800000 -> 19623000 | L177: 19623000 | N177: =H177+#REF!+J177 -> 
A178: 420 | D178: КОРИШЋЕЊЕ УСЛУГА И РОБА | H178: =H172+H173+H174+H175+H176+H177 -> 171434500 | J178: =J172+J173+J174+J175+J176+J177 -> 38640000 | L178: =L172+L173+L174+L175+L176+L177 -> 210074500 | N178: =N172+N173+N174+N175+N176+N177 -> 
A179: 451 | D179: Subvencije | H179: =25000000+25000000 -> 50000000 | L179: 50000000 | N179: =L179 -> 50000000
A180: 454 | D180: Subvencije privatnim preduze|ima | H180: 15000000 | L180: 15000000
A181: 450 | D181: SUBVENCIJE | H181: =H179+H180 -> 65000000 | J181: =K179 -> 0 | L181: =L179+L180 -> 65000000
A182: 463 | D182: Transferi osltalim nivoima vlasti | H182: =95968400+25085000-1500000 -> 119553400 | L182: 119553400 | N182: =H182+J182+K182 -> 119553400
A183: 464 | D183: Dotacije organizacijama obaveznog soc.osigurawa | H183: 18700000 | L183: 18700000 | N183: =H183+J183+K183 -> 18700000
A184: 465 | D184: Ostale teku}e doacije po zakonu | H184: 23317200 | L184: 23317200 | N184: =H184+#REF!+J184 -> 
A185: 460 | D185: DONACIJE, DOTACIJE I TRANSFERI | H185: =H182+H184+H183 -> 161570600 | J185: =K182+J184 -> 0 | L185: =L182+L184+L183 -> 161570600 | N185: =N182+N183+N184 -> 
A186: 472 | D186: Naknade za socijalnu za{titu iz buxeta | H186: =13200000+3548000 -> 16748000 | J186: =6696000+480000 -> 7176000 | L186: =K186+J186+H186 -> 23924000 | N186: =H186+K186 -> 16748000
A187: 470 | D187: СОЦИЈАЛНО ОСИГУРАЊЕ И СОЦИЈАЛНА ЗАШ. | H187: =H186 -> 16748000 | J187: =J186 -> 7176000 | L187: =L186 -> 23924000
A188: 481 | D188: Дотације невладиним организацијама | H188: =24330000+3530000 -> 27860000 | L188: =K188+J188+H188 -> 27860000 | N188: =H188 -> 27860000
A189: 482 | D189: Порези , обавезне таксе и казне | H189: 885000 | L189: 885000 | N189: =H189+#REF! -> 
A190: 483 | D190: Нов~ане казне и пенали по решењу судова | H190: =3320000+10200000 -> 13520000 | L190: 13520000 | N190: =H190 -> 13520000
A191: 485 | D191: Накнада штете за неискоришћен годишњи одмор | H191: =1000000 -> 1000000 | L191: 1000000
A192: 480 | D192: ОСТАЛИ РАСХОДИ | H192: =H188+H189+H190+H191 -> 43265000 | J192: =K188+J189+J190+K191 -> 0 | L192: =L188+L189+L190+L191 -> 43265000 | N192: =N188+N189+N190 -> 
A193: 499 | D193: Sredstva rezerve | H193: =10000000+500000+1500000 -> 12000000 | L193: 12000000
A194: 490 | D194: СРЕДСТВА РЕЗЕРВИ | H194: =H193 -> 12000000 | J194: =K193 -> 0 | L194: =L193 -> 12000000 | N194: =L192+L194 -> 55265000
L195: 0
A196: 500 | D196: KAPITALNI IZDACI | H196: =H201 -> 89094000 | J196: =J201 -> 288880000 | L196: =L201 -> 377974000
A197: 511 | D197: Зграде и грађевински објекти | H197: =480000+77394000+400000+800000 -> 79074000 | J197: 275480000 | L197: 354554000 | N197: =H197+#REF!+J197 -> 
A198: 512 | D198: Машине и опрема | H198: =7320000+1000000 -> 8320000 | J198: 13400000 | L198: 21720000 | N198: =H198+#REF!+J198 -> 
A199: 515 | D199: Нематеријална имовина | H199: 700000 | L199: 700000 | N199: =H199 -> 700000
A200: 541 | D200: Набавка земљишта | H200: 1000000 | L200: 1000000
A201: 510 | D201: ОСНОВНА СРЕДСТВА | H201: =H197+H198+H199+H200 -> 89094000 | J201: =J197+J198+J199+J200 -> 288880000 | L201: =L197+L198+L199+L200 -> 377974000 | N201: =N197+N198+N199 -> 
D202: У К У П Н I JAVNI RASHODI | H202: =H164+H201 -> 829804000 | J202: =J164+J201 -> 334696000 | L202: =L164+L201 -> 1164500000 | M202: =M201+M194+M192+M187+M185+M181+M178+M171 -> 0
A209: Члан 4.
A210: Rashodi i izdaci iz ~lana 1 ove odluke koriste se za slede}e programe:
B212: NAZIV PROGRAMA | I212: IZNOS | L212: Struktura %
B213: Program 1: Урбанизам i prostorno planirawe | I213: =Програми!B7 -> 15960000 | L213: =I213/I229*100 -> 1.370545298
B214: Program 2: Komunalnе delatnostи | I214: =Програми!B8 -> 56950000 | L214: =I214/I229*100 -> 4.890510949
B215: Program 3: Lokalni економски razvoj | I215: =Програми!B9 -> 35000000 | L215: =I215/I229*100 -> 3.005581795
B216: Program 4: Razvoj turizma | I216: =Програми!B10 -> 8000000 | L216: =I216/I229*100 -> 0.6869901245
B217: Program 5: Razvoj poqoprivrede | I217: =Програми!B11 -> 22400000 | L217: =I217/I229*100 -> 1.923572349
B218: Program 6: Za{tita `ivotne sredine | I218: =Програми!B12 -> 45180000 | L218: =I218/I229*100 -> 3.879776728
B219: Program 7: Организација саобраћаја и саобраћајна инфраструктура | I219: =Програми!B13 -> 174809000 | L219: =I219/I229*100 -> 15.01150708
B220: Program 8: Pred{kolsko vaspitawe | I220: =Програми!B14 -> 108246000 | L220: =I220/I229*100 -> 9.295491627
B221: Program 9: Osnovno obrazovawe | I221: =Програми!B15 -> 270881700 | L221: =I221/I229*100 -> 23.2616316
B222: Program 10: Sredwe obrazovawe | I222: =Програми!B16 -> 42867700 | L222: =I222/I229*100 -> 3.68121082
B223: Program 11: Socijalna i de~ja za{tita | I223: =Програми!B17 -> 20900000 | L223: =I223/I229*100 -> 1.7947617
B224: Program 12: Зdravstvena za{tita | I224: =Програми!B18 -> 19250000 | L224: =I224/I229*100 -> 1.653069987
B225: Program 13: Razvoj kulture | I225: =Програми!B19 -> 52745100 | L225: =I225/I229*100 -> 4.529420352
B226: Program 14: Razvoj sporta i omladine | I226: =Програми!B20 -> 31696700 | L226: =I226/I229*100 -> 2.721914985
B227: Program 15: Lokalna samouprava | I227: =Програми!B21 -> 221450200 | L227: =I227/I229*100 -> 19.01676256
B228: Програм 16: Политички систем локалне самоуправе | I228: =Програми!B22 -> 38163600 | L228: =I228/I229*100 -> 3.27725204
B229: UKUPNO ZA PROGRAM OD 1-16 | I229: =SUM(I213:K228) -> 1164500000
A264: III ИЗВРШЕЊЕ БУЏЕТА
A266: Члан 8.
A267: У складу са Законом о начину одређивања максималног броја запослених у јавном сектору ("Службени гласник РС", број 68/2015 i 81/2016 - odluka US), i Odluke SO Bujanovac o odreђивању максималног броја запослених на неодређено време за сваки организациони облик у систему локалне самоуправе општине Бујановац за 2017. годину број 02-96/17 од 30.11.2017. године, број запослених код корисника буџета не може прећи максималан број запослених на неодређено и одређено време, и то:
M270: ??????
C271: 165 | E271: zaposleni u lokalnoj општинској управи na neodre|eno vreme;
C272: 17 | E272: zaposleni u lokalnoj општинској управи na odre|eno vreme;
C273: 82 | E273: zaposleni u pred{kolskој ustanovи "Наша Радост" na neodre|eno vreme;
E274: zaposleni u pred{kolskој ustanovи "Наша Радост" na odre|eno vreme;
C275: 16 | E275: запослени у Дому културе "Вук Караџић" Бујановац на неодређено време;
C276: 2 | E276: запослени у Дому културе "Вук Караџић" Бујановац на одређено време;
C277: 14 | E277: запослени у Библиотеци "14. новембар"Бујановац на неодређено време;
C278: 1 | E278: запослени у Библиотеци "14. новембар"Бујановац на одређено време;
C279: 18 | E279: запослени у СЦ "Младост" Бујановац на неодређено време;
C280: 1 | E280: запослени у СЦ "Младост" Бујановац на одређено време;
C281: 6 | E281: запослени у Туристичкој организацији Бујановац на неодређено време;
E282: запослени у Туристичкој организацији Бујановац на одређено време;
A284: U ovoj odluci o buxetu sredstva za plate se obezbe|uju za broj zaposlenih iz stava 1. ovog ~lana.
A286: Члан 9.
A287: За извршавање ове Одлуке одговоран је председник општине.
A288: Наредбодавац за извршење буџета је председник општине.
A290: Члан 10.
A291: Наредбодавац диретних и индиректних коriсника буџетских средстава је функционер (руководилац), односно лице које је одговорно за управљање средствима, преузимање обавеза, издавање налога за пла}ање који се извршавају из средстава органа као и издавање налога за уплату средстава која припадају буџету.
A294: Члан 11.
A295: За законито и наменско коришћење средстава распоређених овом Одлуком, поред функционера односно руководиоца директних и индиректних корисника буџетских средстава, одговоран је начелник општинске управе.
A298: Члан 12.
A299: Орган управе надлежан за финансије обавезан је да редовно прати извршење буџета и најмање два пута годишње информише председника општине (општинско веће), а обавезно у року од петнаест дана по истеку шестомесечног, односно деветомесечног периода.
A300: У року од петнаест дана по подношењу извештаја из става 1. овог члана општинско веће усваја и доставља извештај Скупштини општине.
A301: Извештај садржи и одступања између усвојеног буџета и извршења и образложење великих одступања.
A303: Члан 13.
A304: Одлуку о промени апропијације из општих прихода буџета и преносу апропијације у текућу буџетску резерву, у складу са чланом 61. Закона о буџетском систему доноси општинско веће.
A306: Члан 14.
A307: Решење о употреби текуће буџетске резерве и сталне буџетске резерве на предлог локалног органа управе надлежног за финансије доноси општинско веће.
A309: Члан 15.
A310: Одлуку о отварању буџетског фонда у складу са чланом 64. Закона о буџетском систему доноси општинско веће.
A312: Члан 16.
A313: Општинско веће одговорно је за спровођење фискалне политике и управљање јавном имовином, приходима и примањима и расходима и издацима на начин који је у складу са Законом о буџетском систему.
A315: Члан 17.
A316: Овлаш}ује се председник општине да, у складу са чланом 27ж Закона о буџетском систему, мо`е поднети захтев министраству надлежном за послове финансија за одобрење фискалног дефицита изнад утврђеног дефицита од 10%, уколико је резултат реалiзације јавних инвестиција.
A318: Члан 18.
A319: Новчана средства буџета општине, директних и индиректних корисника средстава тог буџета, као и други корисници јавних средстава који су укључени у консолидовни рачун трезора општине, воде се и депонују на консолидованом рачуну трезора.
A321: Члан 19.
A322: Распоред и коришћење средстава вршиће се у 2018. години по посебном акту (решење) које доноси председник општине, на предлог органа за финансије у оквиру следећих раздела:
A323: - Раздео 1: Скупштина општине
A324: - Раздео 2: Председник општине
A325: - Раздео 3: Општинско веће
A326: - Раздео 4: Правобранилаштво општине Бујановац
A327: - Раздео 5: Општинска управа.
A329: Члан 20.
A330: Обавезе које преузимају директни и индиректни корисници буџетских средстава морају одговарати апропијацији која им је за ту намену овом Одлуком одобрена и пренета.
A331: Изузетно корисници из става 1. овог члана, у складу са чланом 54. Закона о буџетском систему, могу преузети обавезе по уговору који се односи на капиталне издатке и захтева плаћање у више година, на основу предлога органа надлежног за послове финансија, уз сагласност општинског већа, а највише до износа исказаних у плану капиталних издатака из члана 3. ове одлуке. Корисници буџетских средстава су обавезни да пре покретања поступка јавне набавке за преузимање обавеза по уговору за капиталне пројекте прибаве сагласност органа надлежног за финансије.
A332: Корисник буџетских средстава, који одређени расход извршава из средства буџета и из других прихода, обавезан је да измирење тог расхода прво врши из прихода из тих других извора.
A333: Обавезе преузете у 2018. години у складу са одобреним апропијацијама у тој години, а не извршене у току 2018. године, преносе се у 2019. годину и имају статус преузетих обавеза и извршавају се на терет одобрених апропијација овом одлуком.
A335: Члан 21.
A336: Преузете обавезе и све финансијске обавезе морају бити извршене искључиво на принципу готовинске основе са konsolidovanog ra~una trezora , осим ako je zakonom, odnosno aktom Vlade predvi|en druga~iji metod.
A338: Члан 22.
A339: Korisnici buxetskih sredstava preuzimaju obaveze samo на оsnovu pisanog ugovora ili drugog pravnog akta, ukoliko zakonom nije druga}ije propisano.
A340: Плаћање из буџета неће се извршити уколико нису поштоване процедуре утврђене чланом 56. став 3. Закона о буџетском систему.
A342: Члан 23.
A343: Корисници буџетских средстава приликом додељивања уговора о набавци добара, пружању услуга или извођењу грађевинских радова, морају да поступе у складу са Zakonom o javnim nabavkama (''Slu`beni glasnik RS'', broj 124/2012, 14/2015 i 68/2015). Javna nabavka male vreдnosti, u smislu ~lana 39. Zakona o javnim nabavkama smatra se nabavka istovrsnih dobara, usluga ili radova ~ija je ukupna procewena vrednost na godi{wem nivou ni`a od 5.000.000,00 dinara.
A345: Члан 24.
A346: Обавезе према корисницима буџетских средстава извршавају се сразмерно оствареним примањима буџета. Ако се у току годинe primawa смање, издаци буџета извршаваће се по приоритетима, и то: обавезе утврђене законским прописима на постојећем нивоу и минимални стални трошкови неопходни за несметано функционисање корисника буџетских средстава.
A348: Члан 25.
A349: Средства распоређена за финансирање расхода и издатака корисника буџета, преносе се на основу њиховог захтева и у складу са одобреним квотама у тромесечним плановима буџета.
A350: Уз захтев, корисници су дужни да доставе комплетну документацију за плаћање (копије).
A352: Члан 26.
A353: Новчана средства на консолидованом рачуну трезора могу се инвестирати у 2018. години само у складу са чланом 10. Закона о буџетском систему, при чему су, у складу сa истим чланом Закона, председник општине, односно лице које он овласти, одговорни за ефикасност и сигурност тог инвестирања.
... 30 more rows

Sheet Функ.клас
A2: ^lan 5.
A3: Izdaci buxeta, po funkcionalnoj klasifikaciji, utvr|eni su i raspore|eni u slede}im iznosima:
A5: Функције | B5: Функционална класификација | C5: Средства из буџета | D5: Структура % | E5: Средства из осталих извора | F5: Укупна средства
A6: 1 | B6: 2 | C6: 3 | D6: 4 | E6: 5 | F6: 6
A7: 000 | B7: СОЦИЈАЛНА ЗАШТИТА | C7: =SUBTOTAL(9,C8:C9) -> 16400000 | D7: =C7/$C$57*100 -> 1.976370324 | F7: =SUBTOTAL(9,F8:F9) -> 26400000
A8: 070 | B8: Социјална помоћ угроженом становништву, некласификована на другом месту | C8: 7100000 | D8: 0.8556237377 | E8: 6000000 | F8: =C8+E8 -> 13100000
A9: 090 | B9: Социјална заштита некласификована на другом месту | C9: =7800000+1500000 -> 9300000 | D9: 1.120746586 | E9: 4000000 | F9: =C9+E9 -> 13300000
A10: 100 | B10: ОПШТЕ ЈАВНЕ УСЛУГЕ | C10: =SUBTOTAL(9,C11:C14) -> 254841600 | D10: 30.71105948 | F10: =SUBTOTAL(9,F11:F14) -> 254841600
A11: 110 | B11: Извршни законодавни органи, финансијски и фискални послови и спољни послови | C11: =SUBTOTAL(9,C12) -> 38163600 | D11: 4.599110151 | E11: =SUBTOTAL(9,E12) -> 0 | F11: =SUBTOTAL(9,F12) -> 38163600
A12: 111 | B12: Извршни и законодавни органи | C12: 38163600 | D12: 4.599110151 | F12: =C12+E12 -> 38163600
A13: 130 | B13: Опште услуге | C13: =202515000-400000-800000 -> 201315000 | D13: 24.26054827 | F13: =C13+E13 -> 201315000 | J13: 100
A14: 160 | B14: Опште јавне услуге некласификоване на другом месту | C14: 15363000 | D14: 1.851401054 | F14: =C14+E14 -> 15363000
A15: 300 | B15: ЈАВНИ РЕД И БЕЗБЕДНОСТ | C15: =SUBTOTAL(9,C16) -> 5472200 | D15: 0.659456932 | F15: =SUBTOTAL(9,F16) -> 5472200
A16: 330 | B16: Судови | C16: 5472200 | D16: 0.659456932 | F16: =C16+E16 -> 5472200 | L16: 762961000
A17: 400 | B17: ЕКОНОМСКИ ПОСЛОВИ | C17: =SUBTOTAL(9,C18:C25) -> 158289000 | D17: 19.07546842 | F17: =SUBTOTAL(9,F18:F25) -> 240209000
A18: 410 | B18: Општи економски и комерцијални послови и послови по питању рада | C18: =SUBTOTAL(9,C19) -> 35000000 | D18: 4.217863495 | E18: =SUBTOTAL(9,E19) -> 0 | F18: =SUBTOTAL(9,F19) -> 35000000
A19: 411 | B19: Општи економски и комерцијални послови | C19: 35000000 | D19: 4.217863495 | F19: =C19+E19 -> 35000000
A20: 420 | B20: Пољопривреда, шумарство, лов и риболов | C20: =SUBTOTAL(9,C21) -> 22400000 | D20: 2.699432637 | E20: =SUBTOTAL(9,E21) -> 0 | F20: =SUBTOTAL(9,F21) -> 22400000
A21: 421 | B21: Пољопривреда | C21: 22400000 | D21: 2.699432637 | F21: =C21+E21 -> 22400000
A22: 450 | B22: Саобраћај | C22: =SUBTOTAL(9,C23) -> 92889000 | D22: 11.19408921 | E22: =SUBTOTAL(9,E23) -> 81920000 | F22: =SUBTOTAL(9,F23) -> 174809000
A23: 451 | B23: Друмски саобраћај | C23: =95989000+400000-1200000-2300000 -> 92889000 | D23: 11.19408921 | E23: 81920000 | F23: =C23+E23 -> 174809000
A24: 470 | B24: Остале делатности | C24: =SUBTOTAL(9,C25) -> 8000000 | D24: 0.9640830847 | E24: =SUBTOTAL(9,E25) -> 0 | F24: =SUBTOTAL(9,F25) -> 8000000
A25: 473 | B25: Туризам | C25: 8000000 | D25: 0.9640830847 | F25: =C25+E25 -> 8000000
A26: 500 | B26: ЗАШТИТА ЖИВОТНЕ СРЕДИНЕ | C26: =SUBTOTAL(9,C27:C28) -> 9100000 | D26: 1.096644509 | F26: =SUBTOTAL(9,F27:F28) -> 45180000
A27: 550 | B27: Заштита животне средине - истраживање и развој | C27: =2550000+2000000 -> 4550000 | D27: 0.5483222544 | E27: 17680000 | F27: =C27+E27 -> 22230000
A28: 560 | B28: Заштита животне средине некласификована на другом месту | C28: =2250000+2300000 -> 4550000 | D28: 0.5483222544 | E28: 18400000 | F28: =C28+E28 -> 22950000
A29: 600 | B29: ПОСЛОВИ СТАНОВАЊА И ЗАЈЕДНИЦЕ | C29: =SUBTOTAL(9,C30:C33) -> 66710000 | D29: 8.039247822 | F29: =SUBTOTAL(9,F30:F33) -> 66710000
A30: 620 | B30: Развој заједнице | C30: 10960000 | D30: 1.320793826 | F30: =C30+E30 -> 10960000
A31: 630 | B31: Водоснабдевање | C31: 25250000 | D31: 3.042887236 | F31: =C31+E31 -> 25250000
A32: 640 | B32: Улична расвета | C32: 20500000 | D32: 2.470462904 | F32: =C32+E32 -> 20500000
A33: 660 | B33: Послови становања и заједнице некласификоване на другом месту | C33: 10000000 | D33: 1.205103856 | F33: =C33+E33 -> 10000000
A39: Функције | B39: Функционална класификација | C39: Средства из буџета | D39: Структура % | E39: Средства из осталих извора | F39: Укупна средства
A40: 1 | B40: 2 | C40: 3 | D40: 4 | E40: 5 | F40: 6
A42: 700 | B42: ЗДРАВСТВО | C42: =SUBTOTAL(9,C43:C44) -> 19250000 | D42: =C42/$C$57*100 -> 2.319824923 | E42: =SUBTOTAL(9,E43:E44) -> 0 | F42: =SUBTOTAL(9,F43:F44) -> 19250000
A43: 721 | B43: Опште медицинске услуге | C43: 400000 | D43: 0.04820415423 | F43: =C43+E43 -> 400000
A44: 740 | B44: Услуге јавног здравства | C44: 18850000 | D44: 2.271620768 | F44: =C44+E44 -> 18850000
A45: 800 | B45: РЕКРЕАЦИЈА, СПОРТ, КУЛТУРА И ВЕРЕ | C45: =SUBTOTAL(9,C46:C50) -> 84441800 | D45: 10.17611388 | E45: =SUBTOTAL(9,E46:E50) -> 0 | F45: =SUBTOTAL(9,F46:F50) -> 84441800
A46: 810 | B46: Услуге рекреације и спорта | C46: 31696700 | D46: 3.819781539 | F46: =C46+E46 -> 31696700
A47: 820 | B47: Услуге културе | C47: 39915100 | D47: 4.810184092 | F47: =C47+E47 -> 39915100
A48: 830 | B48: Услуге емитовања и штампања | C48: 5000000 | D48: 0.6025519279 | F48: =C48+E48 -> 5000000
A49: 840 | B49: Verske i ostale usluge zajednice | C49: 2900000 | D49: 0.3494801182 | F49: =C49+E49 -> 2900000
A50: 860 | B50: Rekreacija, sport, kultura i vere, neklasifikovano na drugom mestu | C50: 4930000 | D50: 0.5941162009 | F50: =C50+E50 -> 4930000
A51: 900 | B51: ОБРАЗОВАЊЕ | C51: =SUBTOTAL(9,C52:C56) -> 215299400 | D51: 25.94581371 | E51: =SUBTOTAL(9,E52:E56) -> 206696000 | F51: 421995400
A52: 910 | B52: Предшколско и основно образовање | C52: =SUBTOTAL(9,C53:C54) -> 170077700 | D52: 20.49612921 | E52: =SUBTOTAL(9,E53:E54) -> 200000000 | F52: =SUBTOTAL(9,F53:F54) -> 370077700
A53: 911 | B53: Предшколско образовање | C53: 108246000 | D53: 13.0447672 | F53: =C53++E53 -> 108246000
A54: 912 | B54: Основно образовање | C54: 61831700 | D54: 7.451362008 | E54: 200000000 | F54: =C54+E54 -> 261831700
A55: 920 | B55: Средње образовање | C55: 23693700 | D55: 2.855336923 | F55: =C55+E55 -> 23693700
A56: 960 | B56: Помоћне услуге образовању | C56: =23028000-1500000 -> 21528000 | D56: 2.594347581 | E56: 6696000 | F56: =C56+E56 -> 28224000
B57: УКУПНО | C57: =SUBTOTAL(9,C7:C56)-3 -> 829804000 | D57: 100 | E57: =SUBTOTAL(9,E7:E56)-5 -> 334696000 | F57: =SUBTOTAL(9,F7:F56)-6 -> 1164500000
A60: II ПОСЕБАН ДЕО
A62: ^lan 6.
A65: Ukupni rashodi i izdaci, ukqu~uju}i rashode za otplatu glavnice duga, u iznosu od 1.164.500.000,00 динара, финансирани из свих извора финансирања распоређују се по корисницима и врстама издатака.

Sheet Програми
A2: Члан 4.
A4: Расходи и издаци из члана 1. ове одлуке користе се за следеће програме:
A6: НАЗИВ ПРОГРАМА | B6: ИЗНОС | C6: СТРУКТУРА %
A7: Програм 1. Урбанизам и просторно планирање | B7: =Прог.актив.!F7 -> 15960000 | C7: =B7/$B$23 -> 0.01370545298
A8: Програм 2. Комунална делатност | B8: =Прог.актив.!F9 -> 56950000 | C8: 0.04890510949
A9: Програм 3. Локални економски развој | B9: =Прог.актив.!F15 -> 35000000 | C9: 0.03005581795
A10: Програм 4. Развој туризма | B10: =Прог.актив.!F18 -> 8000000 | C10: 0.006869901245
A11: Програм 5. Развој пољопривреде | B11: =Прог.актив.!F21 -> 22400000 | C11: 0.01923572349
A12: Програм 6. Заштита животне средине | B12: =Прог.актив.!F23 -> 45180000 | C12: 0.03879776728
A13: Програм 7. Организација саобраћаја и саобраћајна инфраструктура | B13: =Прог.актив.!F28 -> 174809000 | C13: 0.1501150708
A14: Програм 8. Предшколско васпитање | B14: =Прог.актив.!F123 -> 108246000 | C14: 0.09295491627
A15: Програм 9. Основно образовање | B15: =Прог.актив.!F125 -> 270881700 | C15: 0.232616316
A16: Програм 10. Средње образовање | B16: =Прог.актив.!F127 -> 42867700 | C16: 0.0368121082
A17: Програм 11. Социјална и дечија заштита | B17: =Прог.актив.!F129 -> 20900000 | C17: 0.017947617
A18: Програм 12. Примарна здравствена заштита | B18: =Прог.актив.!F135 -> 19250000 | C18: 0.01653069987
A19: Програм 13. Развој културе | B19: =Прог.актив.!F138 -> 52745100 | C19: 0.04529420352
A20: Програм 14. Развој спорта и омладине | B20: =Прог.актив.!F147 -> 31696700 | C20: 0.02721914985
A21: Програм 15. Локална самоуправа | B21: =Прог.актив.!F152 -> 221450200 | C21: 0.1901676256
A22: Програм 16: Политички систем локалне самоуправе | B22: =Прог.актив.!F160 -> 38163600 | C22: 0.0327725204
A23: UKUPNO ZA PROGRAM OD 1 DO 16: | B23: =SUBTOTAL(9,B7:B22) -> 1164500000

Sheet Osn.skole (hidden)
C1: 2002 | L1: =H1+J1+K1 -> 0
C2: 2002-0001 | G2: Функционисање основних школа | L2: 0
D3: 912 | G3: Основно образовање | I3: rebalans 2017 | J3: 2018 | L3: 2018
G4: Основна школа ''Бранко Радичевић'' Бујановац | L4: 0
F5: 463 | G5: Трансфер 421 Стални трошкови | H5: 8418000 | I5: 8338800 | J5: 8160000 | K5: =H5-J5 -> 258000 | L5: 16836000
F6: 463 | G6: Трансфер 422 Трошкови путовања | H6: 5975000 | I6: 4769500 | J6: 4821500 | K6: =H6-J6 -> 1153500 | L6: 11950000
F7: 463 | G7: Трансфер 423 Услуге по уговору | H7: 56000 | I7: 8000 | J7: 90000 | K7: -34000 | L7: 112000
F8: 463 | G8: Трансфер 424 Специјализоване услуге | H8: 17000 | I8: 10200 | J8: =186000-8000 -> 178000 | K8: -161000 | L8: 34000
F9: 463 | G9: Трансфер 425 Текуће поправке и одржавање | H9: 307000 | I9: 130000 | J9: 240000 | K9: 67000 | L9: 614000
F10: 463 | G10: Трансфер 426 Материјал | H10: 310000 | I10: 300000 | J10: =370000-70000 -> 300000 | K10: 10000 | L10: 620000
G11: УКУПНО ЗА ГЛАВУ 19 | H11: =SUBTOTAL(9,H5:H10) -> 15083000 | I11: =SUBTOTAL(9,I5:I10) -> 13556500 | J11: =SUBTOTAL(9,J5:J10) -> 13789500 | K11: =SUBTOTAL(9,K5:K10) -> 1293500 | L11: 30166000
L12: =H12+J12+K12 -> 0
D13: 912 | G13: Основна школа ''Мухарем Кадриу'' Велики Трновац | L13: 0
F14: 463 | G14: Трансфер 421 Стални трошкови | H14: 4250000 | I14: 4759000 | J14: 4760000 | L14: 9010000 | N14: zahtev za osiguranje 120000+110000
F15: 463 | G15: Трансфер 422 Трошкови путовања | H15: 1073500 | I15: 1173500 | J15: 1390000 | L15: 2463500
F16: 463 | G16: Трансфер 423 Услуге по уговору | H16: 200000 | I16: 189300 | J16: 200000 | L16: 400000
F17: 463 | G17: Трансфер 424 Специјализоване услуге | H17: 124000 | I17: 74000 | J17: 124000 | L17: 248000
F18: 463 | G18: Трансфер 425 Текуће поправке и одржавање | H18: 1780000 | I18: 1391700 | J18: =1650000-100000-158300+300 -> 1392000 | L18: 3172000
F19: 463 | G19: Трансфер 426 Материјал | H19: 960000 | I19: 820000 | J19: 901000 | L19: 1861000
F20: 463 | G20: Трансфер 512 Машине и опрема
G21: УКУПНО ЗА ГЛАВУ 20 | H21: =SUBTOTAL(9,H14:H19) -> 8387500 | I21: =SUBTOTAL(9,I14:I20) -> 8407500 | J21: =SUBTOTAL(9,J14:J20) -> 8767000 | K21: =SUBTOTAL(9,K14:K20) -> 0 | L21: 17154500
L22: =H22+J22+K22 -> 0
D23: 912 | G23: Основна школа ''Бора Станковић'' Кленике | L23: 0
F24: 463 | G24: Трансфер 421 Стални трошкови | H24: 1694000 | I24: 1650000 | J24: 1775700 | K24: =H24-J24 -> -81700 | L24: 3388000 | N24: uslo 104000 za osiguranje
F25: 463 | G25: Трансфер 422 Трошкови путовања | H25: 3550000 | I25: 2300000 | J25: =2430000-30000 -> 2400000 | K25: =H25-J25 -> 1150000 | L25: 7100000
F26: 463 | G26: Трансфер 423 Услуге по уговору | H26: 199000 | I26: 169100 | J26: 185000 | K26: 14000 | L26: 398000
F27: 463 | G27: Трансфер 424 Специјализоване услуге | H27: 90000 | I27: 40000 | J27: 40000 | K27: 50000 | L27: 180000
F28: 463 | G28: Трансфер 425 Текуће поправке и одржавање | H28: 160000 | I28: 241600 | J28: 110000 | K28: 50000 | L28: 320000
F29: 463 | G29: Трансфер 426 Материјал | H29: 290000 | I29: 200000 | J29: 164000 | K29: 126000 | L29: 580000
F30: 463 | G30: Трансфер 512 Машине и опрема
G31: УКУПНО ЗА ГЛАВУ 21 | H31: =SUBTOTAL(9,H24:H29) -> 5983000 | I31: =SUBTOTAL(9,I24:I30) -> 4600700 | J31: =SUBTOTAL(9,J24:J30) -> 4674700 | K31: =SUBTOTAL(9,K24:K29) -> 1308300 | L31: 11966000
L32: =H32+J32+K32 -> 0
D33: 912 | G33: Основна школа ''Вук Стефановић Караџић'' Левосоје | L33: 0
F34: 463 | G34: Трансфер 421 Стални трошкови | H34: 1585000 | I34: 1180000 | J34: 1846000 | L34: 3431000
F35: 463 | G35: Трансфер 422 Трошкови путовања | H35: 1265000 | I35: 1166000 | J35: 1265000 | L35: 2530000
F36: 463 | G36: Трансфер 423 Услуге по уговору | H36: 115000 | I36: 115000 | J36: 115000 | L36: 230000
F37: 463 | G37: Трансфер 424 Специјализоване услуге | H37: 100000 | I37: 24000 | J37: =100000-20000 -> 80000 | L37: 180000
F38: 463 | G38: Трансфер 425 Текуће поправке и одржавање | H38: 300000 | I38: 650000 | J38: =300000-20000 -> 280000 | L38: 580000
F39: 463 | G39: Трансфер 426 Материјал | H39: 350000 | I39: 580000 | J39: 400000 | L39: 750000
G40: УКУПНО ЗА ГЛАВУ 22 | H40: =SUBTOTAL(9,H34:H39) -> 3715000 | I40: =SUBTOTAL(9,I34:I39) -> 3715000 | J40: =SUBTOTAL(9,J34:J39) -> 3986000 | K40: =SUBTOTAL(9,K34:K39) -> 0 | L40: 7701000
L41: =H41+J41+K41 -> 0
D42: 912 | G42: Основна школа ''Десанка Максимовић'' Биљача | L42: 0
F43: 463 | G43: Трансфер 421 Стални трошкови | H43: 1600000 | I43: 1832900 | J43: 1725000 | L43: 3325000 | N43: tražili povećanje 10% i 125000
F44: 463 | G44: Трансфер 422 Трошкови путовања | H44: 1811000 | I44: 1965000 | J44: 2031000 | L44: 3842000
F45: 463 | G45: Трансфер 423 Услуге по уговору | H45: 50000 | I45: 50000 | J45: 78000 | L45: 128000
F46: 463 | G46: Трансфер 424 Специјализоване услуге | H46: 40000 | I46: 10000 | J46: 40000 | L46: 80000
F47: 463 | G47: Трансфер 425 Текуће поправке и одржавање | H47: 930000 | I47: 718100 | J47: =902000-50000 -> 852000 | L47: 1782000
F48: 463 | G48: Трансфер 426 Материјал | H48: 580000 | I48: 521000 | J48: =580000-60000 -> 520000 | L48: 1100000
G49: УКУПНО ЗА ГЛАВУ 23 | H49: =SUBTOTAL(9,H43:H48) -> 5011000 | I49: =SUBTOTAL(9,I43:I48) -> 5097000 | J49: =SUBTOTAL(9,J43:J48) -> 5246000 | K49: =SUBTOTAL(9,K43:K48) -> 0 | L49: 10257000
L50: =H50+J50+K50 -> 0
D51: 912 | G51: Основна школа ''Наим Фрашери'' Бујановац | L51: 0
F52: 463 | G52: Трансфер 421 Стални трошкови | H52: 5929000 | I52: 4770000 | J52: 4870000 | K52: =H52-J52 -> 1059000 | L52: 11858000 | N52: zahtev za ekspanzioni sud 499500
F53: 463 | G53: Трансфер 422 Трошкови путовања | H53: 995000 | I53: 945000 | J53: 945000 | K53: =H53-J53 -> 50000 | L53: 1990000
F54: 463 | G54: Трансфер 423 Услуге по уговору | H54: 100000 | I54: 109000 | J54: 100000 | K54: 0 | L54: 200000
F55: 463 | G55: Трансфер 424 Специјализоване услуге | H55: 60000 | I55: 28800 | J55: 100000 | K55: -40000 | L55: 120000
F56: 463 | G56: Трансфер 425 Текуће поправке и одржавање | H56: 440000 | I56: 431200 | J56: 495000 | K56: -55000 | L56: 880000
F57: 463 | G57: Трансфер 426 Материјал | H57: 476000 | I57: 451000 | J57: 506500 | K57: -30500 | L57: 952000
F58: 463 | G58: Трансфер 512 Машине и опрема | I58: 0
G59: УКУПНО ЗА ГЛАВУ 24 | H59: =SUBTOTAL(9,H52:H57) -> 8000000 | I59: =SUBTOTAL(9,I52:I58) -> 6735000 | J59: =SUBTOTAL(9,J52:J58) -> 7016500 | K59: =SUBTOTAL(9,K52:K57) -> 983500 | L59: 16000000
L60: =H60+J60+K60 -> 0
D61: 912 | G61: Основна школа ''Миђени'' Муховац | L61: 0
F62: 463 | G62: Трансфер 421 Стални трошкови | H62: 800000 | I62: 820000 | J62: 1060000 | L62: 1860000
F63: 463 | G63: Трансфер 422 Трошкови путовања | H63: 1650000 | I63: 1600000 | J63: 1600000 | L63: 3250000
F64: 463 | G64: Трансфер 423 Услуге по уговору | H64: 150000 | I64: 140000 | J64: 150000 | L64: 300000
F65: 463 | G65: Трансфер 424 Специјализоване услуге | L65: 0
F66: 463 | G66: Трансфер 425 Текуће поправке и одржавање | H66: 600000 | I66: 660000 | J66: 680000 | L66: 1280000
F67: 463 | G67: Трансфер 426 Материјал | H67: 330000 | I67: 310000 | J67: 310000 | L67: 640000
G68: УКУПНО ЗА ГЛАВУ 25 | H68: =SUBTOTAL(9,H62:H67) -> 3530000 | I68: =SUBTOTAL(9,I62:I67) -> 3530000 | J68: =SUBTOTAL(9,J62:J67) -> 3800000 | K68: =SUBTOTAL(9,K62:K67) -> 0 | L68: 7330000
L69: =H69+J69+K69 -> 0
D70: 912 | G70: Основна школа ''Драгомир Трајковић'' Жбевац | L70: 0
F71: 463 | G71: Трансфер 421 Стални трошкови | H71: 950000 | I71: 1015000 | J71: 1129000 | L71: 2079000 | N71: zbir nije dobar u finplan
F72: 463 | G72: Трансфер 422 Трошкови путовања | H72: 2150000 | I72: 2390000 | J72: 2150000 | L72: 4300000
F73: 463 | G73: Трансфер 423 Услуге по уговору | H73: 50000 | I73: 40000 | J73: 50000 | L73: 100000
F74: 463 | G74: Трансфер 424 Специјализоване услуге | H74: 10000 | J74: 10000 | L74: 20000
F75: 463 | G75: Трансфер 425 Текуће поправке и одржавање | H75: 320000 | I75: 55000 | J75: =350000-50000-20000 -> 280000 | L75: 600000
F76: 463 | G76: Трансфер 426 Материјал | H76: 115000 | I76: 125000 | J76: 195000 | L76: 310000
G77: УКУПНО ЗА ГЛАВУ 26 | H77: =SUBTOTAL(9,H71:H76) -> 3595000 | I77: =SUBTOTAL(9,I71:I76) -> 3625000 | J77: =SUBTOTAL(9,J71:J76) -> 3814000 | K77: =SUBTOTAL(9,K71:K76) -> 0 | L77: 7409000
D78: 912 | G78: Основна школа ''Сами Фрашери'' Лучане | L78: =H78+J78+K78 -> 0
F79: 463 | G79: Трансфер 421 Стални трошкови | H79: 1530000 | I79: 1530000 | J79: 1670000 | L79: 3200000
F80: 463 | G80: Трансфер 422 Трошкови путовања | H80: 1500000 | I80: 1457000 | J80: 1360000 | L80: 2860000
F81: 463 | G81: Трансфер 423 Услуге по уговору | H81: 140000 | I81: 65000 | J81: 75000 | L81: 215000
F82: 463 | G82: Трансфер 424 Специјализоване услуге | H82: 50000 | I82: 75000 | J82: 40000 | L82: 90000
F83: 463 | G83: Трансфер 425 Текуће поправке и одржавање | H83: 480000 | I83: 713000 | J83: 490000 | L83: 970000
F84: 463 | G84: Трансфер 426 Материјал | H84: 430000 | I84: 440000 | J84: 500000 | L84: 930000
F85: 463 | G85: Трансфер 512 Машине и опрема
G86: УКУПНО ЗА ГЛАВУ 27 | H86: =SUBTOTAL(9,H79:H84) -> 4130000 | I86: =SUBTOTAL(9,I79:I85) -> 4280000 | J86: =SUBTOTAL(9,J79:J85) -> 4135000 | K86: =SUBTOTAL(9,K79:K84) -> 0 | L86: 8265000
L87: =H87+J87+K87 -> 0
D88: 912 | G88: Основна школа ''Али Бекташи'' Несалце | L88: 0
F89: 463 | G89: Трансфер 421 Стални трошкови | H89: 1698000 | I89: 1698000 | J89: 1543000 | L89: 3241000
F90: 463 | G90: Трансфер 422 Трошкови путовања | H90: 1270000 | I90: 1270000 | J90: 1465000 | L90: 2735000
F91: 463 | G91: Трансфер 423 Услуге по уговору | H91: 50000 | I91: 50000 | J91: 60000 | L91: 110000
F92: 463 | G92: Трансфер 424 Специјализоване услуге | H92: 25000 | I92: 25000 | J92: 45000 | L92: 70000
F93: 463 | G93: Трансфер 425 Текуће поправке и одржавање | H93: 262000 | I93: 462000 | J93: 612000 | L93: 874000
F94: 463 | G94: Трансфер 426 Материјал | H94: 361000 | I94: 361000 | J94: =385000-24000 -> 361000 | L94: 722000
G95: УКУПНО ЗА ГЛАВУ 28 | H95: =SUBTOTAL(9,H89:H94) -> 3666000 | I95: =SUBTOTAL(9,I89:I94) -> 3866000 | J95: =SUBTOTAL(9,J89:J94) -> 4086000 | K95: =SUBTOTAL(9,K89:K94) -> 0 | L95: 7752000
D96: 912 | G96: Основна школа ''Скендербег'' Зарбинце | L96: =H96+J96+K96 -> 0
F97: 463 | G97: Трансфер 421 Стални трошкови | H97: 100000 | I97: 50000 | J97: 220000 | L97: 320000 | N97: + zahtev za 300000 za odeljenje u GNSelo
F98: 463 | G98: Трансфер 422 Трошкови путовања | H98: 110000 | I98: 50000 | J98: 30000 | L98: 140000
F99: 463 | G99: Трансфер 423 Услуге по уговору | J99: 10000 | L99: 10000
F100: 463 | G100: Трансфер 424 Специјализоване услуге | L100: 0
F101: 463 | G101: Трансфер 425 Текуће поправке и одржавање | H101: 110000 | I101: 250000 | J101: =180000-30000 -> 150000 | L101: 260000
F102: 463 | G102: Трансфер 426 Материјал | H102: 30000 | J102: 30000 | L102: 60000
G103: УКУПНО ЗА ГЛАВУ 29 | H103: =SUBTOTAL(9,H97:H102) -> 350000 | I103: =SUBTOTAL(9,I97:I102) -> 350000 | J103: =SUBTOTAL(9,J97:J102) -> 440000 | K103: =SUBTOTAL(9,K97:K102) -> 0 | L103: 790000
L104: =H104+J104+K104 -> 0
D105: 912 | G105: Основна музичка школа | L105: 0 | N105: nije dobar zbir OMŠ
F106: 463 | G106: Трансфер 421 Стални трошкови | H106: 425000 | I106: 449300 | J106: 407000 | K106: =H106-J106 -> 18000 | L106: 850000 | M106: =SUMIF(G:I,G106,I:I) -> 28093000 | N106: =SUMIF(G:J,G106,J:J) -> 29165700
F107: 463 | G107: Трансфер 422 Трошкови путовања | H107: 1399500 | I107: 1270000 | J107: 1272000 | K107: =H107-J107 -> 127500 | L107: 2799000 | M107: 20356000 | N107: 20729500
F108: 463 | G108: Трансфер 423 Услуге по уговору | H108: 263500 | I108: 72000 | J108: =173000-30000 -> 143000 | K108: 120500 | L108: 527000 | M108: 1007400 | N108: 1256000
F109: 463 | G109: Трансфер 424 Специјализоване услуге | H109: 150000 | I109: 35000 | J109: 55000 | K109: 95000 | L109: 300000 | M109: 322000 | N109: 712000
F110: 463 | G110: Трансфер 425 Текуће поправке и одржавање | H110: 255000 | I110: 70000 | J110: =150000-25000-25000 -> 100000 | K110: 155000 | L110: 510000 | M110: 5772600 | N110: 5681000
F111: 463 | G111: Трансфер 426 Материјал | H111: 192000 | I111: 100000 | J111: =105000-5000 -> 100000 | K111: 92000 | L111: 384000 | M111: 4208000 | N111: 4287500
F112: 463 | G112: Трансфер 512 Машине и опрема | M112: 0 | N112: 0
G113: УКУПНО ЗА ГЛАВУ 30 | H113: =SUBTOTAL(9,H106:H111) -> 2685000 | I113: =SUBTOTAL(9,I106:I112) -> 1996300 | J113: =SUBTOTAL(9,J106:J112) -> 2077000 | K113: =SUBTOTAL(9,K106:K111) -> 608000 | L113: 5370000 | M113: =SUM(M106:M112) -> 59759000 | N113: =SUM(N106:N112) -> 61831700
H114: =SUBTOTAL(9,H5:H113) -> 64135500 | J114: =SUBTOTAL(9,J5:J113) -> 61831700 | K114: =SUBTOTAL(9,K5:K113) -> 4193300
K115: =H114-J114 -> 2303800

Sheet Sred.skole (hidden)
C1: 2003 | G1: ПРОГРАМ 10: СРЕДЊЕ ОБРАЗОВАЊЕ | L1: =I1+J1+K1 -> 0
C2: 2003-0001 | G2: Функционисање средњих школа | L2: 0
D3: 920 | G3: Средње образовање | H3: rebalans 2017 | I3: budzet 2018
G4: Средња стручна школа ''Свети Сава'' Бујановац | L4: 0
F5: 463 | G5: Трансфер 421 Стални трошкови | H5: 6891000 | I5: 7561200 | L5: 7561200
F6: 463 | G6: Трансфер 422 Трошкови путовања | H6: 1950000 | I6: 2020000 | L6: 2020000
F7: 463 | G7: Трансфер 423 Услуге по уговору | H7: 730000 | I7: =1610000-300000 -> 1310000 | L7: 1310000
F8: 463 | G8: Трансфер 424 Специјализоване услуге | H8: 71000 | I8: 146000 | L8: 146000
F9: 463 | G9: Трансфер 425 Текуће поправке и одржавање | H9: 342000 | I9: 342000 | L9: 342000
F10: 463 | G10: Трансфер 426 Материјал | H10: 402000 | I10: 420000 | L10: 420000
G11: Трансфер 512 Машине и опрема | L11: 0
G12: Функција 920: | H12: =SUBTOTAL(9,H5:H11) -> 10386000 | I12: =SUBTOTAL(9,I5:I11) -> 11799200 | J12: =SUBTOTAL(9,J5:J10) -> 0 | K12: =SUBTOTAL(9,K5:K10) -> 0 | L12: =SUBTOTAL(9,L5:L10) -> 11799200
G13: Програмска активност 2003-0001: | H13: =SUBTOTAL(9,H5:H11) -> 10386000 | I13: =SUBTOTAL(9,I5:I11) -> 11799200 | J13: =SUBTOTAL(9,J5:J10) -> 0 | K13: =SUBTOTAL(9,K5:K10) -> 0 | L13: =SUBTOTAL(9,L5:L10) -> 11799200
G14: УКУПНО ЗА ГЛАВУ 31 | H14: =SUBTOTAL(9,H5:H10) -> 10386000 | I14: =SUBTOTAL(9,I5:I11) -> 11799200 | J14: =SUBTOTAL(9,J5:J10) -> 0 | K14: =SUBTOTAL(9,K5:K10) -> 0 | L14: =SUBTOTAL(9,L5:L10) -> 11799200
L15: =I15+J15+K15 -> 0
D16: 920 | G16: Средња школа ''Сезаи Сурои'' Бујановац | L16: 0
F17: 463 | G17: Трансфер 421 Стални трошкови | H17: 5000000 | I17: 5500000 | L17: 5500000 | M17: =SUMIF(G:H,G17,H:H) -> 11891000 | N17: =SUMIF(G:I,G17,I:I) -> 13061200
F18: 463 | G18: Трансфер 422 Трошкови путовања | H18: 4150000 | I18: =4588475-475 -> 4588000 | L18: 4588000 | M18: 6100000 | N18: 6608000
F19: 463 | G19: Трансфер 423 Услуге по уговору | H19: 443000 | I19: 443000 | L19: 443000 | M19: 1173000 | N19: 1753000
F20: 463 | G20: Трансфер 424 Специјализоване услуге | H20: 109500 | I20: 209500 | L20: 209500 | M20: 180500 | N20: 355500
F21: 463 | G21: Трансфер 425 Текуће поправке и одржавање | H21: 1149500 | I21: =755000-400000 -> 355000 | L21: 355000 | M21: 1491500 | N21: 697000
F22: 463 | G22: Трансфер 426 Материјал | H22: 899000 | I22: 799000 | L22: 799000 | M22: 1301000 | N22: 1219000
F23: 463 | G23: Трансфер 482 Порези и обавезне таксе | I23: 30000 | L23: 30000 | M23: =SUMIF(G:H,G23,H:H) -> 0 | N23: =SUMIF(G:I,G23,I:I) -> 30000
G24: Трансфер 512 Машине и опрема | L24: 0 | M24: 0 | N24: 0
G25: Функција 920: | H25: =SUBTOTAL(9,H17:H23) -> 11751000 | I25: =SUBTOTAL(9,I17:I24) -> 11924500 | J25: =SUBTOTAL(9,J17:J23) -> 0 | K25: =SUBTOTAL(9,K17:K23) -> 0 | L25: =SUBTOTAL(9,L17:L23) -> 11924500
G26: Програмска активност 2003-0001: | H26: =SUBTOTAL(9,H17:H23) -> 11751000 | I26: =SUBTOTAL(9,I17:I24) -> 11924500 | J26: =SUBTOTAL(9,J17:J23) -> 0 | K26: =SUBTOTAL(9,K17:K23) -> 0 | L26: =SUBTOTAL(9,L17:L23) -> 11924500
G27: УКУПНО ЗА ГЛАВУ 32 | H27: =SUBTOTAL(9,H17:H23) -> 11751000 | I27: =SUBTOTAL(9,I17:I24) -> 11924500 | J27: =SUBTOTAL(9,J17:J23) -> 0 | K27: =SUBTOTAL(9,K17:K23) -> 0 | L27: =SUBTOTAL(9,L17:L23) -> 11924500 | N27: =SUM(N17:N23) -> 23723700

Sheet Лист1 (hidden)
C1: 2002 | K1: =H1+I1+J1 -> 0
C2: 2002-0001 | G2: Функционисање основних школа | K2: 0
D3: 912 | G3: Основно образовање | K3: 0
G4: Основна школа ''Бранко Радичевић'' Бујановац | K4: 0
F5: 463 | G5: Трансфер 421 Стални трошкови | H5: 8418000 | I5: 8074300 | J5: =H5-I5 -> 343700 | K5: 16836000
F6: 463 | G6: Трансфер 422 Трошкови путовања | H6: 5975000 | I6: 4811500 | J6: =H6-I6 -> 1163500 | K6: 11950000
F7: 463 | G7: Трансфер 423 Услуге по уговору | H7: 56000 | I7: 36000 | J7: 20000 | K7: 112000
F8: 463 | G8: Трансфер 424 Специјализоване услуге | H8: 17000 | I8: 36000 | J8: -19000 | K8: 34000
F9: 463 | G9: Трансфер 425 Текуће поправке и одржавање | H9: 307000 | I9: 211000 | J9: 96000 | K9: 614000
F10: 463 | G10: Трансфер 426 Материјал | H10: 310000 | I10: 367700 | J10: -57700 | K10: 620000
G11: УКУПНО ЗА ГЛАВУ 19 | H11: =SUBTOTAL(9,H5:H10) -> 15083000 | I11: =SUBTOTAL(9,I5:I10) -> 13536500 | J11: =SUBTOTAL(9,J5:J10) -> 1546500 | K11: =SUBTOTAL(9,K5:K10) -> 30166000
K12: =H12+I12+J12 -> 0
D13: 912 | G13: Основна школа ''Мухарем Кадриу'' Велики Трновац | K13: 0
F14: 463 | G14: Трансфер 421 Стални трошкови | H14: 4250000 | I14: =H14 -> 4250000 | K14: 8500000
F15: 463 | G15: Трансфер 422 Трошкови путовања | H15: 1073500 | I15: =H15 -> 1073500 | K15: 2147000
F16: 463 | G16: Трансфер 423 Услуге по уговору | H16: 200000 | I16: 200000 | K16: 400000
F17: 463 | G17: Трансфер 424 Специјализоване услуге | H17: 124000 | I17: 124000 | K17: 248000
F18: 463 | G18: Трансфер 425 Текуће поправке и одржавање | H18: 1780000 | I18: 1780000 | K18: 3560000
F19: 463 | G19: Трансфер 426 Материјал | H19: 960000 | I19: 960000 | K19: 1920000
G20: УКУПНО ЗА ГЛАВУ 20 | H20: =SUBTOTAL(9,H14:H19) -> 8387500 | I20: =SUBTOTAL(9,I14:I19) -> 8387500 | J20: =SUBTOTAL(9,J14:J19) -> 0 | K20: =SUBTOTAL(9,K14:K19) -> 16775000
K21: =H21+I21+J21 -> 0
D22: 912 | G22: Основна школа ''Бора Станковић'' Кленике | K22: 0
F23: 463 | G23: Трансфер 421 Стални трошкови | H23: 1694000 | I23: 1520000 | J23: =H23-I23 -> 174000 | K23: 3388000
F24: 463 | G24: Трансфер 422 Трошкови путовања | H24: 3550000 | I24: 2470000 | J24: =H24-I24 -> 1080000 | K24: 7100000
F25: 463 | G25: Трансфер 423 Услуге по уговору | H25: 199000 | I25: 159000 | J25: 40000 | K25: 398000
F26: 463 | G26: Трансфер 424 Специјализоване услуге | H26: 90000 | I26: 65000 | J26: 25000 | K26: 180000
F27: 463 | G27: Трансфер 425 Текуће поправке и одржавање | H27: 160000 | I27: 110000 | J27: 50000 | K27: 320000
F28: 463 | G28: Трансфер 426 Материјал | H28: 290000 | I28: 213500 | J28: 76500 | K28: 580000
G29: УКУПНО ЗА ГЛАВУ 21 | H29: =SUBTOTAL(9,H23:H28) -> 5983000 | I29: =SUBTOTAL(9,I23:I28) -> 4537500 | J29: =SUBTOTAL(9,J23:J28) -> 1445500 | K29: =SUBTOTAL(9,K23:K28) -> 11966000
K30: =H30+I30+J30 -> 0
D31: 912 | G31: Основна школа ''Вук Стефановић Караџић'' Левосоје | K31: 0
F32: 463 | G32: Трансфер 421 Стални трошкови | H32: 1585000 | I32: =H32 -> 1585000 | K32: 3170000
F33: 463 | G33: Трансфер 422 Трошкови путовања | H33: 1265000 | I33: =H33 -> 1265000 | K33: 2530000
F34: 463 | G34: Трансфер 423 Услуге по уговору | H34: 115000 | I34: 115000 | K34: 230000
F35: 463 | G35: Трансфер 424 Специјализоване услуге | H35: 100000 | I35: 100000 | K35: 200000
F36: 463 | G36: Трансфер 425 Текуће поправке и одржавање | H36: 300000 | I36: 300000 | K36: 600000
F37: 463 | G37: Трансфер 426 Материјал | H37: 350000 | I37: 350000 | K37: 700000
G38: УКУПНО ЗА ГЛАВУ 22 | H38: =SUBTOTAL(9,H32:H37) -> 3715000 | I38: =SUBTOTAL(9,I32:I37) -> 3715000 | J38: =SUBTOTAL(9,J32:J37) -> 0 | K38: =SUBTOTAL(9,K32:K37) -> 7430000
K39: =H39+I39+J39 -> 0
D40: 912 | G40: Основна школа ''Десанка Максимовић'' Биљача | K40: 0
F41: 463 | G41: Трансфер 421 Стални трошкови | H41: 1600000 | I41: =H41 -> 1600000 | K41: 3200000
F42: 463 | G42: Трансфер 422 Трошкови путовања | H42: 1811000 | I42: =H42 -> 1811000 | K42: 3622000
F43: 463 | G43: Трансфер 423 Услуге по уговору | H43: 50000 | I43: 50000 | K43: 100000
F44: 463 | G44: Трансфер 424 Специјализоване услуге | H44: 40000 | I44: 40000 | K44: 80000
F45: 463 | G45: Трансфер 425 Текуће поправке и одржавање | H45: 930000 | I45: 930000 | K45: 1860000
F46: 463 | G46: Трансфер 426 Материјал | H46: 580000 | I46: 580000 | K46: 1160000
G47: УКУПНО ЗА ГЛАВУ 23 | H47: =SUBTOTAL(9,H41:H46) -> 5011000 | I47: =SUBTOTAL(9,I41:I46) -> 5011000 | J47: =SUBTOTAL(9,J41:J46) -> 0 | K47: =SUBTOTAL(9,K41:K46) -> 10022000
K48: =H48+I48+J48 -> 0
D49: 912 | G49: Основна школа ''Наим Фрашери'' Бујановац | K49: 0
F50: 463 | G50: Трансфер 421 Стални трошкови | H50: 5929000 | I50: 4870000 | J50: =H50-I50 -> 1059000 | K50: 11858000
F51: 463 | G51: Трансфер 422 Трошкови путовања | H51: 995000 | I51: 945000 | J51: =H51-I51 -> 50000 | K51: 1990000
F52: 463 | G52: Трансфер 423 Услуге по уговору | H52: 100000 | I52: 100000 | J52: 0 | K52: 200000
F53: 463 | G53: Трансфер 424 Специјализоване услуге | H53: 60000 | I53: 20000 | J53: 40000 | K53: 120000
F54: 463 | G54: Трансфер 425 Текуће поправке и одржавање | H54: 440000 | I54: 440000 | J54: 0 | K54: 880000
F55: 463 | G55: Трансфер 426 Материјал | H55: 476000 | I55: 351000 | J55: 125000 | K55: 952000
G56: УКУПНО ЗА ГЛАВУ 24 | H56: =SUBTOTAL(9,H50:H55) -> 8000000 | I56: =SUBTOTAL(9,I50:I55) -> 6726000 | J56: =SUBTOTAL(9,J50:J55) -> 1274000 | K56: =SUBTOTAL(9,K50:K55) -> 16000000
K57: =H57+I57+J57 -> 0
D58: 912 | G58: Основна школа ''Миђени'' Муховац | K58: 0
F59: 463 | G59: Трансфер 421 Стални трошкови | H59: 800000 | I59: =H59 -> 800000 | K59: 1600000
F60: 463 | G60: Трансфер 422 Трошкови путовања | H60: 1650000 | I60: =H60 -> 1650000 | K60: 3300000
F61: 463 | G61: Трансфер 423 Услуге по уговору | H61: 150000 | I61: 150000 | K61: 300000
F62: 463 | G62: Трансфер 424 Специјализоване услуге | I62: 0 | K62: 0
F63: 463 | G63: Трансфер 425 Текуће поправке и одржавање | H63: 600000 | I63: 600000 | K63: 1200000
F64: 463 | G64: Трансфер 426 Материјал | H64: 330000 | I64: 330000 | K64: 660000
G65: УКУПНО ЗА ГЛАВУ 25 | H65: =SUBTOTAL(9,H59:H64) -> 3530000 | I65: =SUBTOTAL(9,I59:I64) -> 3530000 | J65: =SUBTOTAL(9,J59:J64) -> 0 | K65: =SUBTOTAL(9,K59:K64) -> 7060000
K66: =H66+I66+J66 -> 0
D67: 912 | G67: Основна школа ''Драгомир Трајковић'' Жбевац | K67: 0
F68: 463 | G68: Трансфер 421 Стални трошкови | H68: 950000 | I68: =H68 -> 950000 | K68: 1900000
F69: 463 | G69: Трансфер 422 Трошкови путовања | H69: 2150000 | I69: =H69 -> 2150000 | K69: 4300000
F70: 463 | G70: Трансфер 423 Услуге по уговору | H70: 50000 | I70: 50000 | K70: 100000
F71: 463 | G71: Трансфер 424 Специјализоване услуге | H71: 10000 | I71: 10000 | K71: 20000
F72: 463 | G72: Трансфер 425 Текуће поправке и одржавање | H72: 320000 | I72: 320000 | K72: 640000
F73: 463 | G73: Трансфер 426 Материјал | H73: 115000 | I73: 115000 | K73: 230000
G74: УКУПНО ЗА ГЛАВУ 26 | H74: =SUBTOTAL(9,H68:H73) -> 3595000 | I74: =SUBTOTAL(9,I68:I73) -> 3595000 | J74: =SUBTOTAL(9,J68:J73) -> 0 | K74: =SUBTOTAL(9,K68:K73) -> 7190000
D75: 912 | G75: Основна школа ''Сами Фрашери'' Лучане | K75: =H75+I75+J75 -> 0
F76: 463 | G76: Трансфер 421 Стални трошкови | H76: 1530000 | I76: =H76 -> 1530000 | K76: 3060000
F77: 463 | G77: Трансфер 422 Трошкови путовања | H77: 1500000 | I77: =H77 -> 1500000 | K77: 3000000
F78: 463 | G78: Трансфер 423 Услуге по уговору | H78: 140000 | I78: 140000 | K78: 280000
F79: 463 | G79: Трансфер 424 Специјализоване услуге | H79: 50000 | I79: 50000 | K79: 100000
F80: 463 | G80: Трансфер 425 Текуће поправке и одржавање | H80: 480000 | I80: 480000 | K80: 960000
F81: 463 | G81: Трансфер 426 Материјал | H81: 430000 | I81: 430000 | K81: 860000
G82: УКУПНО ЗА ГЛАВУ 27 | H82: =SUBTOTAL(9,H76:H81) -> 4130000 | I82: =SUBTOTAL(9,I76:I81) -> 4130000 | J82: =SUBTOTAL(9,J76:J81) -> 0 | K82: =SUBTOTAL(9,K76:K81) -> 8260000
K83: =H83+I83+J83 -> 0
D84: 912 | G84: Основна школа ''Али Бекташи'' Несалце | K84: 0
F85: 463 | G85: Трансфер 421 Стални трошкови | H85: 1698000 | I85: =H85 -> 1698000 | K85: 3396000
F86: 463 | G86: Трансфер 422 Трошкови путовања | H86: 1270000 | I86: =H86 -> 1270000 | K86: 2540000
F87: 463 | G87: Трансфер 423 Услуге по уговору | H87: 50000 | I87: 50000 | K87: 100000
F88: 463 | G88: Трансфер 424 Специјализоване услуге | H88: 25000 | I88: 25000 | K88: 50000
F89: 463 | G89: Трансфер 425 Текуће поправке и одржавање | H89: 262000 | I89: 262000 | K89: 524000
F90: 463 | G90: Трансфер 426 Материјал | H90: 361000 | I90: 361000 | K90: 722000
G91: УКУПНО ЗА ГЛАВУ 28 | H91: =SUBTOTAL(9,H85:H90) -> 3666000 | I91: =SUBTOTAL(9,I85:I90) -> 3666000 | J91: =SUBTOTAL(9,J85:J90) -> 0 | K91: =SUBTOTAL(9,K85:K90) -> 7332000
D92: 912 | G92: Основна школа ''Скендербег'' Зарбинце | K92: =H92+I92+J92 -> 0
F93: 463 | G93: Трансфер 421 Стални трошкови | H93: 100000 | I93: =H93 -> 100000 | K93: 200000
F94: 463 | G94: Трансфер 422 Трошкови путовања | H94: 110000 | I94: =H94 -> 110000 | K94: 220000
F95: 463 | G95: Трансфер 423 Услуге по уговору | I95: 0 | K95: 0
F96: 463 | G96: Трансфер 424 Специјализоване услуге | I96: 0 | K96: 0
F97: 463 | G97: Трансфер 425 Текуће поправке и одржавање | H97: 110000 | I97: 110000 | K97: 220000
F98: 463 | G98: Трансфер 426 Материјал | H98: 30000 | I98: 30000 | K98: 60000
G99: УКУПНО ЗА ГЛАВУ 29 | H99: =SUBTOTAL(9,H93:H98) -> 350000 | I99: =SUBTOTAL(9,I93:I98) -> 350000 | J99: =SUBTOTAL(9,J93:J98) -> 0 | K99: =SUBTOTAL(9,K93:K98) -> 700000
K100: =H100+I100+J100 -> 0
D101: 912 | G101: Основна музичка школа | K101: 0
F102: 463 | G102: Трансфер 421 Стални трошкови | H102: 425000 | I102: 425000 | J102: =H102-I102 -> 0 | K102: 850000 | L102: =I5+I14+I23+I32+I41+I50+I59+I68+I76+I85+I93+I102 -> 27402300
F103: 463 | G103: Трансфер 422 Трошкови путовања | H103: 1399500 | I103: 1300000 | J103: =H103-I103 -> 99500 | K103: 2799000 | L103: =I6+I15+I24+I33+I42+I51+I60+I69+I77+I86+I94+I103 -> 20356000
F104: 463 | G104: Трансфер 423 Услуге по уговору | H104: 263500 | I104: 41000 | J104: 222500 | K104: 527000 | L104: 1091000
F105: 463 | G105: Трансфер 424 Специјализоване услуге | H105: 150000 | I105: 55000 | J105: 95000 | K105: 300000 | L105: 525000
F106: 463 | G106: Трансфер 425 Текуће поправке и одржавање | H106: 255000 | I106: 70000 | J106: 185000 | K106: 510000 | L106: 5613000
F107: 463 | G107: Трансфер 426 Материјал | H107: 192000 | I107: 60000 | J107: 132000 | K107: 384000 | L107: 4148200
G108: УКУПНО ЗА ГЛАВУ 30 | H108: =SUBTOTAL(9,H102:H107) -> 2685000 | I108: =SUBTOTAL(9,I102:I107) -> 1951000 | J108: =SUBTOTAL(9,J102:J107) -> 734000 | K108: =SUBTOTAL(9,K102:K107) -> 5370000 | L108: =SUM(L102:L107) -> 59135500
H109: =SUBTOTAL(9,H5:H108) -> 64135500 | I109: =SUBTOTAL(9,I5:I108) -> 59135500 | J109: =SUBTOTAL(9,J5:J108) -> 5000000
J110: =H109-I109 -> 5000000

Sheet Лист2 (hidden)
C1: 2003 | G1: ПРОГРАМ 10: СРЕДЊЕ ОБРАЗОВАЊЕ | K1: =H1+I1+J1 -> 0
C2: 2003-0001 | G2: Функционисање средњих школа | K2: 0
D3: 920 | G3: Средње образовање | K3: 0
G4: Средња стручна школа ''Свети Сава'' Бујановац | K4: 0
F5: 463 | G5: Трансфер 421 Стални трошкови | H5: =6721000-100000 -> 6621000 | K5: 6621000
F6: 463 | G6: Трансфер 422 Трошкови путовања | H6: 2020000 | K6: 2020000
F7: 463 | G7: Трансфер 423 Услуге по уговору | H7: 170000 | K7: 170000
F8: 463 | G8: Трансфер 424 Специјализоване услуге | H8: 71000 | K8: 71000
F9: 463 | G9: Трансфер 425 Текуће поправке и одржавање | H9: 342000 | K9: 342000
F10: 463 | G10: Трансфер 426 Материјал | H10: 402000 | K10: 402000
G11: Функција 920: | H11: =SUBTOTAL(9,H5:H10) -> 9626000 | I11: =SUBTOTAL(9,I5:I10) -> 0 | J11: =SUBTOTAL(9,J5:J10) -> 0 | K11: =SUBTOTAL(9,K5:K10) -> 9626000
G12: Програмска активност 2003-0001: | H12: =SUBTOTAL(9,H5:H10) -> 9626000 | I12: =SUBTOTAL(9,I5:I10) -> 0 | J12: =SUBTOTAL(9,J5:J10) -> 0 | K12: =SUBTOTAL(9,K5:K10) -> 9626000
G13: УКУПНО ЗА ГЛАВУ 31 | H13: =SUBTOTAL(9,H5:H10) -> 9626000 | I13: =SUBTOTAL(9,I5:I10) -> 0 | J13: =SUBTOTAL(9,J5:J10) -> 0 | K13: =SUBTOTAL(9,K5:K10) -> 9626000
K14: =H14+I14+J14 -> 0
D15: 920 | G15: Средња школа ''Сезаи Сурои'' Бујановац | K15: 0
F16: 463 | G16: Трансфер 421 Стални трошкови | H16: 4711014 | K16: 4711014 | L16: =H5+H16 -> 11332014
F17: 463 | G17: Трансфер 422 Трошкови путовања | H17: 4588475 | K17: 4588475 | L17: =H6+H17 -> 6608475
F18: 463 | G18: Трансфер 423 Услуге по уговору | H18: 443000 | K18: 443000 | L18: 613000
F19: 463 | G19: Трансфер 424 Специјализоване услуге | H19: 209500 | K19: 209500 | L19: 280500
F20: 463 | G20: Трансфер 425 Текуће поправке и одржавање | H20: 500000 | K20: 500000 | L20: 842000
F21: 463 | G21: Трансфер 426 Материјал | H21: 799000 | K21: 799000 | L21: 1201000
F22: 463 | G22: Трансфер 482 Порези и обавезне таксе | H22: 70000 | K22: 70000 | L22: =H22 -> 70000
G23: Функција 920: | H23: =SUBTOTAL(9,H16:H22) -> 11320989 | I23: =SUBTOTAL(9,I16:I22) -> 0 | J23: =SUBTOTAL(9,J16:J22) -> 0 | K23: =SUBTOTAL(9,K16:K22) -> 11320989
G24: Програмска активност 2003-0001: | H24: =SUBTOTAL(9,H16:H22) -> 11320989 | I24: =SUBTOTAL(9,I16:I22) -> 0 | J24: =SUBTOTAL(9,J16:J22) -> 0 | K24: =SUBTOTAL(9,K16:K22) -> 11320989
G25: УКУПНО ЗА ГЛАВУ 32 | H25: =SUBTOTAL(9,H16:H22) -> 11320989 | I25: =SUBTOTAL(9,I16:I22) -> 0 | J25: =SUBTOTAL(9,J16:J22) -> 0 | K25: =SUBTOTAL(9,K16:K22) -> 11320989 | L25: =SUM(L16:L22) -> 20946989

Sheet Лист7 (hidden)
A1: 15608000
A2: 2100000
A3: 1700000
A4: 4100000
A5: 3000000
A6: 50000
A7: 8500000
A8: 300000
A9: 250000
A10: 2000000
A11: 240000
A12: 150000
A13: 300000
A14: 700000
A15: 452000
A16: 202000
A18: 2495000
A19: 100000
A20: 100000
A21: 250000
A22: 50000
A23: 2360000
A24: =SUM(A1:A23) -> 45007000

Sheet Лист3 (hidden)
A1: =ROW() -> 1
A2: =ROW() -> 2
A3: =ROW() -> 3
A4: =ROW() -> 4
A5: =ROW() -> 5
A6: =ROW() -> 6
A7: =ROW() -> 7
A8: =ROW() -> 8
A9: =ROW() -> 9
A10: =ROW() -> 10
A11: =ROW() -> 11
A12: =ROW() -> 12
A13: =ROW() -> 13
A14: =ROW() -> 14
A15: =ROW() -> 15
A16: =ROW() -> 16
A17: =ROW() -> 17
A18: =ROW() -> 18
A19: =ROW() -> 19
A20: =ROW() -> 20
A21: =ROW() -> 21
A22: =ROW() -> 22
A23: =ROW() -> 23
A24: =ROW() -> 24
A25: =ROW() -> 25
A26: =ROW() -> 26
A27: =ROW() -> 27
A28: =ROW() -> 28
A29: =ROW() -> 29
A30: =ROW() -> 30
A31: =ROW() -> 31
A32: =ROW() -> 32
A33: =ROW() -> 33
A34: =ROW() -> 34
A35: =ROW() -> 35
A36: =ROW() -> 36
A37: =ROW() -> 37
A38: =ROW() -> 38
A39: =ROW() -> 39
A40: =ROW() -> 40
A41: =ROW() -> 41
A42: =ROW() -> 42
A43: =ROW() -> 43
A44: =ROW() -> 44
A45: =ROW() -> 45
A46: =ROW() -> 46
A47: =ROW() -> 47
A48: =ROW() -> 48
A49: =ROW() -> 49
A50: =ROW() -> 50
A51: =ROW() -> 51
A52: =ROW() -> 52
A53: =ROW() -> 53
A54: =ROW() -> 54
A55: =ROW() -> 55
A56: =ROW() -> 56
A57: =ROW() -> 57
A58: =ROW() -> 58
A59: =ROW() -> 59
A60: =ROW() -> 60
A61: =ROW() -> 61
A62: =ROW() -> 62
A63: =ROW() -> 63
A64: =ROW() -> 64
A65: =ROW() -> 65
A66: =ROW() -> 66
A67: =ROW() -> 67
A68: =ROW() -> 68
A69: =ROW() -> 69
A70: =ROW() -> 70
A71: =ROW() -> 71
A72: =ROW() -> 72
A73: =ROW() -> 73
A74: =ROW() -> 74
A75: =ROW() -> 75
A76: =ROW() -> 76
A77: =ROW() -> 77
A78: =ROW() -> 78
A79: =ROW() -> 79
A80: =ROW() -> 80
A81: =ROW() -> 81
A82: =ROW() -> 82
A83: =ROW() -> 83
A84: =ROW() -> 84
A85: =ROW() -> 85
A86: =ROW() -> 86
A87: =ROW() -> 87
A88: =ROW() -> 88
A89: =ROW() -> 89
A90: =ROW() -> 90
A91: =ROW() -> 91
A92: =ROW() -> 92
A93: =ROW() -> 93
A94: =ROW() -> 94
A95: =ROW() -> 95
A96: =ROW() -> 96
A97: =ROW() -> 97
A98: =ROW() -> 98
A99: =ROW() -> 99
A100: =ROW() -> 100
A101: =ROW() -> 101
A102: =ROW() -> 102
A103: =ROW() -> 103
A104: =ROW() -> 104
A105: =ROW() -> 105
A106: =ROW() -> 106
A107: =ROW() -> 107
A108: =ROW() -> 108
A109: =ROW() -> 109
A110: =ROW() -> 110
A111: =ROW() -> 111
A112: =ROW() -> 112
A113: =ROW() -> 113
A114: =ROW() -> 114
A115: =ROW() -> 115
A116: =ROW() -> 116
A117: =ROW() -> 117
A118: =ROW() -> 118
A119: =ROW() -> 119
A120: =ROW() -> 120
A121: =ROW() -> 121
A122: =ROW() -> 122
A123: =ROW() -> 123
A124: =ROW() -> 124
A125: =ROW() -> 125
A126: =ROW() -> 126
A127: =ROW() -> 127
A128: =ROW() -> 128
A129: =ROW() -> 129
A130: =ROW() -> 130
A131: =ROW() -> 131
A132: =ROW() -> 132
A133: =ROW() -> 133
A134: =ROW() -> 134
A135: =ROW() -> 135
A136: =ROW() -> 136
A137: =ROW() -> 137
A138: =ROW() -> 138
A139: =ROW() -> 139
A140: =ROW() -> 140
A141: =ROW() -> 141
A142: =ROW() -> 142
A143: =ROW() -> 143
A144: =ROW() -> 144
A145: =ROW() -> 145
A146: =ROW() -> 146
A147: =ROW() -> 147
A148: =ROW() -> 148
A149: =ROW() -> 149
A150: =ROW() -> 150
A151: =ROW() -> 151
A152: =ROW() -> 152
A153: =ROW() -> 153
A154: =ROW() -> 154
A155: =ROW() -> 155
A156: =ROW() -> 156
A157: =ROW() -> 157
A158: =ROW() -> 158
A159: =ROW() -> 159
A160: =ROW() -> 160
A161: =ROW() -> 161
A162: =ROW() -> 162
A163: =ROW() -> 163
A164: =ROW() -> 164
A165: =ROW() -> 165
A166: =ROW() -> 166
A167: =ROW() -> 167
A168: =ROW() -> 168
A169: =ROW() -> 169
A170: =ROW() -> 170
A171: =ROW() -> 171
A172: =ROW() -> 172
A173: =ROW() -> 173
A174: =ROW() -> 174
A175: =ROW() -> 175
A176: =ROW() -> 176
A177: =ROW() -> 177
A178: =ROW() -> 178
A179: =ROW() -> 179
A180: =ROW() -> 180
A181: =ROW() -> 181
A182: =ROW() -> 182
A183: =ROW() -> 183
A184: =ROW() -> 184
A185: =ROW() -> 185
A186: =ROW() -> 186
A187: =ROW() -> 187
A188: =ROW() -> 188
A189: =ROW() -> 189
A190: =ROW() -> 190
A191: =ROW() -> 191
A192: =ROW() -> 192
A193: =ROW() -> 193
A194: =ROW() -> 194
A195: =ROW() -> 195
A196: =ROW() -> 196
A197: =ROW() -> 197
A198: =ROW() -> 198
A199: =ROW() -> 199
A200: =ROW() -> 200
... 485 more rows

Sheet Лист4 (hidden)
A1: 70
A2: 71
A3: 72
A4: 73
A5: 74
A6: 75
A7: 76
A8: 77
A9: 78
A10: 79
A11: 80
A12: 81
A13: 82
A14: 83
A15: 84
A16: 85
A17: 86
A18: 87
A19: 88
A20: 89
A21: 90
A22: 91
A23: 92
A24: 93
A25: 94
A26: 95
A27: 96
A28: 97
A29: 98
A30: 99
A31: 100
A32: 101
A33: 102
A34: 103
A35: 104
A36: 105
A37: 106
A38: 107
A39: 108
A40: 109
A41: 110
A42: 111
A43: 112
A44: 113
A45: 114
A46: 115
A47: 116
A48: 117
A49: 118
A50: 119
A51: 120
A52: 121
A53: 122
A54: 123
A55: 124
A56: 125
A57: 126
A58: 127
A59: 128
A60: 129
A61: 130
A62: 131
A63: 132
A64: 133
A65: 134
A66: 135
A67: 136
A68: 137
A69: 138
A70: 139
A71: 140
A72: 141
A73: 142
A74: 143
A75: 144
A76: 145
A77: 146
A78: 147
A79: 148
A80: 149
A81: 150
A82: 151
A83: 152
A84: 153
A85: 154
A86: 155
A87: 156
A88: 157
A89: 158
A90: 159
A91: 160
A92: 161
A93: 162
A94: 163
A95: 164
A96: 165
A97: 166
A98: 167
A99: 168
A100: 169
A101: 170
A102: 171
A103: 172
A104: 173
A105: 174
A106: 175
A107: 176
A108: 177
A109: 178
A110: 179
A111: 180
A112: 181
A113: 182
A114: 183
A115: 184
A116: 185
A117: 186
A118: 187
A119: 188
A120: 189
A121: 190
A122: 191
A123: 192
A124: 193
A125: 194
A126: 195
A127: 196
A128: 197
A129: 198
A130: 199
A131: 200
A132: 201
A133: 202
A134: 203
A135: 204
A136: 205
A137: 206
A138: 207
A139: 208
A140: 209
A141: 210
A142: 211
A143: 212
A144: 213
A145: 214
A146: 215
A147: 216
A148: 217
A149: 218
A150: 219
A151: 220
A152: 221
A153: 222
A154: 223
A155: 224
A156: 225
A157: 226
A158: 227
A159: 228
A160: 229
A161: 230
A162: 231
A163: 232
A164: 233
A165: 234
A166: 235
A167: 236
A168: 237
A169: 238
A170: 239
A171: 240
A172: 241
A173: 242
A174: 243
A175: 244
A176: 245
A177: 246
A178: 247
A179: 248
A180: 249
A181: 250
A182: 251
A183: 252
A184: 253
A185: 254
A186: 255
A187: 256
A188: 257
A189: 258
A190: 259
A191: 260
A192: 261
A193: 262
A194: 263
A195: 264
A196: 265
A197: 266
A198: 267
A199: 268
A200: 269
... 24 more rows

Sheet ekonomska reb1 (hidden)
A1: еко.клас. | D1: ОПИС | H1: Средства из буџета | I1: Средства из соп. извора | J1: Sredstva iz Republike | K1: Укупно
A2: 1 | D2: 2 | H2: 3 | I2: 4 | J2: 5 | K2: 6
A3: 400 | D3: TEKU]I RASHODI | H3: =H11+H18+H21+H25+H27+H32+H34 -> 695237589 | I3: =I11+I18+I21+I25+I27+I32+I34 -> 41130000 | J3: =J11+J18+J21+J25+J27+J32+J34 -> 34322300 | K3: =K11+K18+K21+K25+K27+K32+K34 -> 770689889
A4: 411 | D4: Плате, додаци и накнаде запосленима | H4: 204714900 | J4: 5785000 | K4: =H4+I4+J4 -> 210499900
A5: 412 | D5: Социјални доприноси на терет послодавца | H5: 36644000 | J5: 1037020 | K5: =H5+I5+J5 -> 37681020
A6: 413 | D6: Накнаде у натури | H6: 5000 | K6: 5000
A7: 414 | D7: Социјана давања запосленима | H7: =5427600-30000 -> 5397600 | J7: 1056000 | K7: 6453600
A8: 415 | D8: Накнаде трошкова за запослене | H8: 4700900 | J8: 2780000 | K8: 7480900
A9: 416 | D9: Награде, бонуси и остали пословни расхода | H9: 1564200 | J9: 1000000 | K9: 2564200
A10: 417 | D10: Poslani~ki dodatak | K10: 0
A11: 410 | D11: РАСХОДИ ЗА ЗАПОСЛЕНЕ | H11: =H4+H5+H6+H7+H8+H9+H10 -> 253026600 | I11: =I4+I5+I6+I7+I8+I9+I10 -> 0 | J11: =J4+J5+J6+J7+J8+J9+J10 -> 11658020 | K11: =K4+K5+K6+K7+K8+K9+K10 -> 264684620
A12: 421 | D12: Стални трошкови | H12: 36395500 | J12: 8683280 | K12: =J12+I12+H12 -> 45078780
A13: 422 | D13: Трошкови путовања | H13: 2845000 | J13: 166500 | K13: 3011500
A14: 423 | D14: Услуге по уговору | H14: =45726000+545000 -> 46271000 | I14: 2386000 | J14: 2874100 | K14: 51531100
A15: 424 | D15: Специјализоване услуге | H15: 10695000 | J15: 465000 | K15: 11160000
A16: 425 | D16: Текуће поправке и одржавање | H16: =7888000+18939915+490000 -> 27317915 | I16: 26900000 | J16: 677200 | K16: 54895115
A17: 426 | D17: Материјал | H17: =12659700+3300000 -> 15959700 | J17: 7277800 | K17: 23237500
A18: 420 | D18: КОРИШЋЕЊЕ УСЛУГА И РОБА | H18: =H12+H13+H14+H15+H16+H17 -> 139484115 | I18: =I12+I13+I14+I15+I16+I17 -> 29286000 | J18: =J12+J13+J14+J15+J16+J17 -> 20143880 | K18: =K12+K13+K14+K15+K16+K17 -> 188913995
A19: 451 | D19: Subvencije | H19: =20000000+7000000+5000000 -> 32000000 | K19: =J19+I19+H19 -> 32000000
A20: 454 | D20: Subvencije privatnim preduze|ima | H20: 44130000 | K20: =J20+I20+H20 -> 44130000
A21: 450 | D21: SUBVENCIJE | H21: =H19+H20 -> 76130000 | I21: =I19 -> 0 | J21: =J19 -> 0 | K21: =K19+K20 -> 76130000
A22: 463 | D22: Transferi osltalim nivoima vlasti | H22: =94293000+2890000+26000000+30000 -> 123213000 | K22: =J22+I22+H22 -> 123213000
A23: 464 | D23: Dotacije organizacijama obaveznog soc.osigurawa | H23: =22300000+150000 -> 22450000 | K23: =H23+I23+J23 -> 22450000
A24: 465 | D24: Ostale teku}e doacije po zakonu | H24: 20275200 | J24: 1100000 | K24: =H24+I24+J24 -> 21375200
A25: 460 | D25: DONACIJE, DOTACIJE I TRANSFERI | H25: =H22+H24+H23 -> 165938200 | I25: =I22+I24+I23 -> 0 | J25: =J22+J24 -> 1100000 | K25: =K22+K24+K23 -> 167038200
A26: 472 | D26: Naknade za socijalnu za{titu iz buxeta | H26: =12405000+3635000 -> 16040000 | I26: =8664000+180000 -> 8844000 | K26: =J26+I26+H26 -> 24884000
A27: 470 | D27: СОЦИЈАЛНО ОСИГУРАЊЕ И СОЦИЈАЛНА ЗАШ. | H27: =H26 -> 16040000 | I27: =I26 -> 8844000 | J27: =J26 -> 0 | K27: =K26 -> 24884000
A28: 481 | D28: Дотације невладиним организацијама | H28: =22733000+2680000 -> 25413000 | I28: 3000000 | K28: =J28+I28+H28 -> 28413000
A29: 482 | D29: Порези , обавезне таксе и казне | H29: 762500 | J29: 120400 | K29: =J29+I29+H29 -> 882900
A30: 483 | D30: Нов~ане казне и пенали по решењу судова | H30: =3390000+200000+3145000 -> 6735000 | J30: 1300000 | K30: =J30+I30+H30 -> 8035000
A31: 485 | D31: Накнада штете за неискоришћен годишњи одмор | H31: 900000 | K31: =J31+I31+H31 -> 900000
A32: 480 | D32: ОСТАЛИ РАСХОДИ | H32: =H28+H29+H30+H31 -> 33810500 | I32: =I28+I29+I30+I31 -> 3000000 | J32: 1420400 | K32: 38230900
A33: 499 | D33: Sredstva rezerve | H33: =100000+14343174-490000-3145000 -> 10808174 | K33: =J33+I33+H33 -> 10808174
A34: 490 | D34: СРЕДСТВА РЕЗЕРВИ | H34: =H33 -> 10808174 | I34: =I33 -> 0 | J34: =J33 -> 0 | K34: =K33 -> 10808174
A36: 500 | D36: KAPITALNI IZDACI | H36: =H40 -> 99909961 | I36: =I40 -> 97939450 | J36: 1140700 | K36: 198990111
A37: 511 | D37: Зграде и грађевински објекти | H37: =9380000+79044461 -> 88424461 | I37: =20000000+77939450 -> 97939450 | J37: 115000 | K37: =J37+I37+H37 -> 186478911
A38: 512 | D38: Машине и опрема | H38: =4420500+6560000 -> 10980500 | J38: 935700 | K38: =J38+I38+H38 -> 11916200
A39: 515 | D39: Нематеријална имовина | H39: 505000 | J39: 90000 | K39: =J39+I39+H39 -> 595000
A40: 510 | D40: ОСНОВНА СРЕДСТВА | H40: =H37+H38+H39 -> 99909961 | I40: =I37+I38+I39 -> 97939450 | J40: =J37+J38+J39 -> 1140700 | K40: =K37+K38+K39 -> 198990111
D41: У К У П Н I JAVNI RASHODI | H41: =H3+H40 -> 795147550 | I41: =I3+I40 -> 139069450 | J41: 35463000 | K41: 969680000

Sheet programska rebalans1 (hidden)
B3: Values
A4: Row Labels | B4: Sum of Средства из буџета | C4: Sum of Средства из буџета републике | D4: Sum of Средства из сопствених извора | E4: Sum of Укупно
A5: ПРОГРАМ 1: ЛОКАЛНИ РАЗВОЈ И ПРОСТОРНО ПЛАНИРАЊЕ | E5: 0
A6: ПРОГРАМ 10: СРЕДЊЕ ОБРАЗОВАЊЕ | E6: 0
A7: ПРОГРАМ 11: СОЦИЈАЛНА И ДЕЧЈА ЗАШТИТА | E7: 0
A8: ПРОГРАМ 12: ЗДРАВСТВЕНА ЗАШТИТА | E8: 0
A9: ПРОГРАМ 13: РАЗВОЈ КУЛТУРЕ | E9: 0
A10: ПРОГРАМ 14: РАЗВОЈ СПОРТА И ОМЛАДИНЕ | E10: 0
A11: ПРОГРАМ 15: ЛОКАЛНА САМОУПРАВА | E11: 0
A12: ПРОГРАМ 16: ПОЛИТИЧКИ СИСТЕМ ЛОКАЛНЕ САМОУПРАВЕ | E12: 0
A13: ПРОГРАМ 2: КОМУНАЛНА ДЕЛАТНОСТ | E13: 0
A14: ПРОГРАМ 3: ЛОКАЛНИ ЕКОНОМСКИ РАЗВОЈ | E14: 0
A15: ПРОГРАМ 4: РАЗВОЈ ТУРИЗМА | E15: 0
A16: ПРОГРАМ 5: РАЗВОЈ ПОЉОПРИВРЕДЕ | E16: 0
A17: ПРОГРАМ 6: ЗАШТИТА ЖИВОТНЕ СРЕДИНЕ | E17: 0
A18: ПРОГРАМ 7: ПУТНА ИНФРАСТРУКТУРА | E18: 0
A19: ПРОГРАМ 8: ПРЕДШКОЛСКО ВАСПИТАЊЕ | E19: 0
A20: ПРОГРАМ 9: ОСНОВНО ОБРАЗОВАЊЕ | E20: 0
A21: Програмска активност 0101-0002: | B21: 32905000 | C21: 0 | D21: 0 | E21: 32905000
A22: Програмска активност 0401-0001: | B22: 8114000 | C22: 0 | D22: 0 | E22: 8114000
A23: Програмска активност 0401-0004: | B23: 400000 | C23: 0 | D23: 0 | E23: 400000
A24: Програмска активност 0401-0005: | B24: 0 | C24: 20000000 | D24: 0 | E24: 20000000
A25: Програмска активност 0602-0001: | B25: 192613200 | C25: 0 | D25: 0 | E25: 192613200
A26: Програмска активност 0602-0002: | B26: 3906000 | C26: 0 | D26: 0 | E26: 3906000
A27: Програмска активност 0602-0004: | B27: 5532200 | C27: 0 | D27: 0 | E27: 5532200
A28: Програмска активност 0602-0007: | B28: 3700000 | C28: 0 | D28: 0 | E28: 3700000
A29: Програмска активност 0602-0009: | B29: 14343174 | C29: 0 | D29: 0 | E29: 14343174
A30: Програмска активност 0602-0010: | B30: 100000 | C30: 0 | D30: 0 | E30: 100000
A31: Програмска активност 0602-0014: | B31: 1450000 | C31: 0 | D31: 0 | E31: 1450000
A32: Програмска активност 0901-0001: | B32: 6000000 | C32: 0 | D32: 0 | E32: 6000000
A33: Програмска активност 0901-0002: | B33: 2455000 | C33: 0 | D33: 0 | E33: 2455000
A34: Програмска активност 0901-0005: | B34: 500000 | C34: 0 | D34: 0 | E34: 500000
A35: Програмска активност 0901-0006: | B35: 190000 | C35: 3046000 | D35: 0 | E35: 3236000
A36: Програмска активност 0901-0007: | B36: 135000 | C36: 3930000 | D36: 0 | E36: 4065000
A37: Програмска активност 1101-0001: | B37: 3000000 | C37: 7495200 | D37: 0 | E37: 10495200
A38: Програмска активност 1102-0001: | B38: 20446000 | C38: 0 | D38: 0 | E38: 20446000
A39: Програмска активност 1102-0002: | B39: 1000000 | C39: 0 | D39: 0 | E39: 1000000
A40: Програмска активност 1102-0003: | B40: 9000000 | C40: 0 | D40: 0 | E40: 9000000
A41: Програмска активност 1102-0004: | B41: 1100000 | C41: 0 | D41: 0 | E41: 1100000
A42: Програмска активност 1102-0008: | B42: 20550000 | C42: 0 | D42: 0 | E42: 20550000
A43: Програмска активност 1201-0001 | B43: 22000000 | C43: 0 | D43: 1100000 | E43: 23010000
A44: Програмска активност 1201-0001: | B44: 13822500 | C44: 0 | D44: 124000 | E44: 13946500
A45: Програмска активност 1201-0002: | B45: 4130000 | C45: 0 | D45: 0 | E45: 4130000
A46: Програмска активност 1201-0003: | B46: 2900000 | C46: 0 | D46: 0 | E46: 2900000
A47: Програмска активност 1201-0004: | B47: 7000000 | C47: 0 | D47: 0 | E47: 7000000
A48: Програмска активност 1301-0001: | B48: 10100000 | C48: 0 | D48: 0 | E48: 10100000
A49: Програмска активност 1301-0004: | B49: 14737200 | C49: 0 | D49: 7073000 | E49: 21810200
A50: Програмска активност 1301-0005: | B50: 1000000 | C50: 0 | D50: 0 | E50: 1000000
A51: Програмска активност 1501-0002: | B51: 26000000 | C51: 0 | D51: 0 | E51: 26000000
A52: Програмска активност 1501-0003: | B52: 11630000 | C52: 0 | D52: 0 | E52: 11630000
A53: Програмска активност 1502-0001: | B53: 7607800 | C53: 0 | D53: 0 | E53: 7607800
A54: Програмска активност 1502-0002: | B54: 386000 | C54: 0 | D54: 0 | E54: 386000
A55: Програмска активност 1801-0001: | B55: 22550000 | C55: 0 | D55: 0 | E55: 22550000
A56: Програмска активност 1801-0002: | B56: 400000 | C56: 0 | D56: 0 | E56: 400000
A57: Програмска активност 2001-0001: | B57: 72067200 | C57: 0 | D57: 27166000 | E57: 99233200
A58: Програмска активност 2002-0001: | B58: 70732500 | C58: 0 | D58: 0 | E58: 70732500
A59: Програмска активност 2003-0001: | B59: 33900500 | C59: 7254000 | D59: 0 | E59: 41154500
A60: Програмска активност 2101-0001: | B60: 19387400 | C60: 0 | D60: 0 | E60: 19387400
A61: Програмска активност 2101-0002: | B61: 10200500 | C61: 0 | D61: 0 | E61: 10200500
A62: Програмска активност 2101-0003: | B62: 7792000 | C62: 0 | D62: 0 | E62: 7792000
A63: Пројекат 0701-01 | B63: 0 | C63: 26900000 | D63: 0 | E63: 26900000
A64: Пројекат 0701-02 | B64: 0 | C64: 30844250 | D64: 0 | E64: 30844250
A65: Пројекат 0701-03 | B65: 0 | C65: 26400000 | D65: 0 | E65: 26400000
A66: Пројекат 0701-04 | B66: 0 | C66: 13200000 | D66: 0 | E66: 13200000
A67: Пројекат 0701-05 | B67: 2500000 | C67: 0 | D67: 0 | E67: 2500000
A68: Пројекат 0701-06 | B68: 3000000 | C68: 0 | D68: 0 | E68: 3000000
A69: Пројекат 0701-07 | B69: 3000000 | C69: 0 | D69: 0 | E69: 3000000
A70: Пројекат 0701-08 | B70: 2500000 | C70: 0 | D70: 0 | E70: 2500000
A71: Пројекат 0701-09 | B71: 2500000 | C71: 0 | D71: 0 | E71: 2500000
A72: Пројекат 0701-10 | B72: 6530000 | C72: 0 | D72: 0 | E72: 6530000
A73: Пројекат 0701-11 | B73: 4055000 | C73: 0 | D73: 0 | E73: 4055000
A74: Пројекат 0701-12 | B74: 1500000 | C74: 0 | D74: 0 | E74: 1500000
A75: Пројекат 0701-13 | B75: 1900000 | C75: 0 | D75: 0 | E75: 1900000
A76: Пројекат 0701-14: | B76: 1551000 | C76: 0 | D76: 0 | E76: 1551000
A77: Пројекат 0701-15 | B77: 5850000 | C77: 0 | D77: 0 | E77: 5850000
A78: Пројекат 0701-16 | B78: 285000 | C78: 0 | D78: 0 | E78: 285000
A79: Пројекат 0701-17 | B79: 2162000 | C79: 0 | D79: 0 | E79: 2162000
A80: Пројекат 0701-18 | B80: 1400000 | C80: 0 | D80: 0 | E80: 1400000
A81: Пројекат 0701-19 | B81: 676000 | C81: 0 | D81: 0 | E81: 676000
A82: Пројекат 0701-20 | B82: 512000 | C82: 0 | D82: 0 | E82: 512000
A83: Пројекат 0701-21 | B83: 550000 | C83: 0 | D83: 0 | E83: 550000
A84: Пројекат 0701-22 | B84: 431000 | C84: 0 | D84: 0 | E84: 431000
A85: Пројекат 0701-23 | B85: 1500000 | C85: 0 | D85: 0 | E85: 1500000
A86: Пројекат 0701-24 | B86: 2480000 | C86: 0 | D86: 0 | E86: 2480000
A87: Пројекат 0701-25 | B87: 5000 | C87: 0 | D87: 0 | E87: 5000
A88: Пројекат 0701-26 | B88: 925000 | C88: 0 | D88: 0 | E88: 925000
A89: Пројекат 0701-27 | B89: 1260000 | C89: 0 | D89: 0 | E89: 1260000
A90: Пројекат 0701-28 | B90: 5000 | C90: 0 | D90: 0 | E90: 5000
A91: Пројекат 0701-29 | B91: 1900000 | C91: 0 | D91: 0 | E91: 1900000
A92: Пројекат 0701-30 | B92: 410000 | C92: 0 | D92: 0 | E92: 410000
A93: Пројекат 0701-31 | B93: 1350000 | C93: 0 | D93: 0 | E93: 1350000
A94: Пројекат 0701-32 | B94: 1200000 | C94: 0 | D94: 0 | E94: 1200000
A95: Пројекат 0701-33 | B95: 1150000 | C95: 0 | D95: 0 | E95: 1150000
A96: Пројекат 0701-34 | B96: 3450000 | C96: 0 | D96: 0 | E96: 3450000
A97: Пројекат 0701-35 | B97: 1050000 | C97: 0 | D97: 0 | E97: 1050000
A98: Пројекат 0701-36 | B98: 800000 | C98: 0 | D98: 0 | E98: 800000
A99: Пројекат 0701-37 | B99: 1150000 | C99: 0 | D99: 0 | E99: 1150000
A100: Пројекат 0701-38 | B100: 4450000 | C100: 0 | D100: 0 | E100: 4450000
A101: Пројекат 0701-39 | B101: 500000 | C101: 0 | D101: 0 | E101: 500000
A102: Пројекат 0701-40 | B102: 1450000 | C102: 0 | D102: 0 | E102: 1450000
A103: Пројекат 0701-41 | B103: 850000 | C103: 0 | D103: 0 | E103: 850000
A104: Пројекат 0701-42 | B104: 1950000 | C104: 0 | D104: 0 | E104: 1950000
A105: Пројекат 0701-43 | B105: 2450000 | C105: 0 | D105: 0 | E105: 2450000
A106: Пројекат 0701-44 | B106: 1450000 | C106: 0 | D106: 0 | E106: 1450000
A107: Пројекат 0701-45 | B107: 1550000 | C107: 0 | D107: 0 | E107: 1550000
A108: Пројекат 0701-46 | B108: 1250000 | C108: 0 | D108: 0 | E108: 1250000
A109: Пројекат 0701-47 | B109: 5000 | C109: 0 | D109: 0 | E109: 5000
A110: Пројекат 0701-48 | B110: 1250000 | C110: 0 | D110: 0 | E110: 1250000
A111: Пројекат 0701-49 | B111: 1450000 | C111: 0 | D111: 0 | E111: 1450000
A112: Пројекат 0701-50 | B112: 950000 | C112: 0 | D112: 0 | E112: 950000
A113: Пројекат 0701-51 | B113: 1850000 | C113: 0 | D113: 0 | E113: 1850000
A114: Пројекат 0701-52 | B114: 850000 | C114: 0 | D114: 0 | E114: 850000
A115: Пројекат 0701-53 | B115: 1650000 | C115: 0 | D115: 0 | E115: 1650000
A116: Пројекат 0701-54 | B116: 3350000 | C116: 0 | D116: 0 | E116: 3350000
A117: Пројекат 0701-55 | B117: 1950000 | C117: 0 | D117: 0 | E117: 1950000
A118: Пројекат 0701-56 | B118: 700000 | C118: 0 | D118: 0 | E118: 700000
A119: Пројекат 0701-57 | B119: 600000 | C119: 0 | D119: 0 | E119: 600000
A120: Пројекат 0701-58 | B120: 700000 | C120: 0 | D120: 0 | E120: 700000
A121: Пројекат 0701-59 | B121: 1100000 | C121: 0 | D121: 0 | E121: 1100000
A122: Пројекат 0701-60 | B122: 700000 | C122: 0 | D122: 0 | E122: 700000
A123: Пројекат 0701-61: | B123: 1151000 | C123: 0 | D123: 0 | E123: 1151000
A124: Пројекат 1102-01: | B124: 3000000 | C124: 0 | D124: 0 | E124: 3000000
A125: Пројекат 1102-02: | B125: 4150000 | C125: 0 | D125: 0 | E125: 4150000
A126: Пројекат 1201-01 | B126: 150000 | C126: 0 | D126: 0 | E126: 150000
A127: Пројекат 1201-02 | B127: 135000 | C127: 0 | D127: 0 | E127: 135000
A128: Пројекат 1201-03 | B128: 255000 | C128: 0 | D128: 0 | E128: 255000
A129: Пројекат 1201-04: | B129: 190000 | C129: 0 | D129: 0 | E129: 190000
A130: Пројекат 1301-01: | B130: 500000 | C130: 0 | D130: 0 | E130: 500000
A131: Пројекат 1301-02: | B131: 300000 | C131: 0 | D131: 0 | E131: 300000
A132: Пројекат 1701-62: | B132: 389695 | C132: 0 | D132: 0 | E132: 389695
A133: Пројекат 1701-63: | B133: 301681 | C133: 0 | D133: 0 | E133: 301681
A134: Пројекат 1701-64: | B134: 400000 | C134: 0 | D134: 0 | E134: 400000
A135: Пројекат 1701-65: | B135: 500000 | C135: 0 | D135: 0 | E135: 500000
A136: Пројекат 1701-66: | B136: 400000 | C136: 0 | D136: 0 | E136: 400000
A137: Grand Total | B137: 790147550 | C137: 139069450 | D137: 35463000 | E137: 964590000

Sheet функ klas. reb1 (hidden)
B3: Values
A4: Row Labels | B4: Sum of Средства из буџета | C4: Sum of Средства из буџета републике | D4: Sum of Средства из сопствених извора | E4: Sum of Укупно
A5: Функција 070: | B5: 6825000 | C5: 6976000 | D5: 0 | E5: 13801000
A6: Функција 090: | B6: 6155000 | C6: 0 | D6: 0 | E6: 6155000
A7: Функција 111: | B7: 37379900 | C7: 0 | D7: 0 | E7: 37379900
A8: Функција 130: | B8: 205626374 | C8: 0 | D8: 0 | E8: 205626374
A9: Функција 160: | B9: 10886000 | C9: 7495200 | D9: 0 | E9: 18381200
A10: Функција 330: | B10: 5532200 | C10: 0 | D10: 0 | E10: 5532200
A11: Функција 411: | B11: 37630000 | C11: 0 | D11: 0 | E11: 37630000
A12: Функција 421: | B12: 32905000 | C12: 0 | D12: 0 | E12: 32905000
A13: Функција 451: | B13: 95684376 | C13: 97344250 | D13: 0 | E13: 193028626
A14: Функција 473: | B14: 7993800 | C14: 0 | D14: 0 | E14: 7993800
A15: Функција 550: | B15: 8114000 | C15: 0 | D15: 0 | E15: 8114000
A16: Функција 560: | B16: 400000 | C16: 20000000 | D16: 0 | E16: 20400000
A17: Функција 630: | B17: 20550000 | C17: 0 | D17: 0 | E17: 20550000
A18: Функција 640: | B18: 27596000 | C18: 0 | D18: 0 | E18: 27596000
A19: Функција 660: | B19: 10000000 | C19: 0 | D19: 0 | E19: 10000000
A20: Функција 721: | B20: 400000 | C20: 0 | D20: 0 | E20: 400000
A21: Функција 740: | B21: 22550000 | C21: 0 | D21: 0 | E21: 22550000
A22: Функција 810: | B22: 26637200 | C22: 0 | D22: 7073000 | E22: 33710200
A23: Функција 820: | B23: 36552500 | C23: 0 | D23: 1224000 | E23: 37686500
A24: Функција 830: | B24: 7000000 | C24: 0 | D24: 0 | E24: 7000000
A25: Функција 840: | B25: 2900000 | C25: 0 | D25: 0 | E25: 2900000
A26: Функција 860: | B26: 4130000 | C26: 0 | D26: 0 | E26: 4130000
A27: Функција 911: | B27: 72067200 | C27: 0 | D27: 27166000 | E27: 99233200
A28: Функција 912: | B28: 59729000 | C28: 0 | D28: 0 | E28: 59729000
A29: Функција 920: | B29: 22437000 | C29: 0 | D29: 0 | E29: 22437000
A30: Функција 960: | B30: 22467000 | C30: 7254000 | D30: 0 | E30: 29721000
A31: Grand Total | B31: 790147550 | C31: 139069450 | D31: 35463000 | E31: 964590000
